{"text_format":"1","workbook":"xlsx","n_sheets":3,"sheets":["BoQ 01 ( Technical )","BoQ 01 ( Financial )","QUOTATION"],"not_rendered":{"charts":0,"images":5,"macros":1,"external_links":0,"defined_names":16,"comments":0,"pivot_tables":0},"unopened":[],"bounds":{"document_bytes":16777216,"sheet_cells":100000,"rows_first":2000,"rows_last":500,"rows_between":2000,"halvings":0,"cell_chars":16384,"cell_head_chars":4096},"cells_cut":0,"cells_raw":0,"read":"whole","date_system":"1900"}

{"sheet":"BoQ 01 ( Technical )","index":0,"n_rows":388,"n_cols":11,"rows_kept":388,"cut":false,"hidden":false,"merged":[[0,3,0,10]]}
["BoQ 01",null,"PR/Multi/MSF-FRB.01-D.01-B.09/GZT/PRO-HE/28-2-2025/Ra-Ba-Ar-B.01-D.01-B.09-02","Technical"]
["SN","Category\nKategori","Technical Specifications\nTeknik Özellikler","Unit\nBirim","Trade Name\nTicari Adı","Expiry Date\nSon Kullanma Tarihi","Country of Origin\nMenşei Ülke","Package & Form\nPaket ve Form","Dose\nDoz","Company Or Agent Name\nŞirket veya Temsilci Adı ","PHC"]
[{"$f":"IF(ISBLANK(B3),\"\",SUBTOTAL(103,$B$3:B3))","v":1},"Medicines","ACETYLSALICYLIC ACID (ASPIRIN), 75 MG, GASTRO-RESISTANT TAB.","TABLET",null,"Year or More | سنة او اكثر",null,null,"75 mg",null,"Raju"]
[{"$f":"IF(ISBLANK(B4),\"\",SUBTOTAL(103,$B$3:B4))","v":2},"Medicines","ALLOPURINOL 300MG TAB","TABLET",null,"Year or More | سنة او اكثر",null,null,"300mg",null,"Raju"]
[{"$f":"IF(ISBLANK(B5),\"\",SUBTOTAL(103,$B$3:B5))","v":3},"Medicines","ALUMINIUM HYDROXIDE 400MG / MAGNESIUM HYDROX. 400MG,CHEW.TAB.","TABLET",null,"Year or More | سنة او اكثر",null,null,"400/400mg",null,"Raju"]
[{"$f":"IF(ISBLANK(B6),\"\",SUBTOTAL(103,$B$3:B6))","v":4},"Medicines","AMIKACIN 100MG","AMPOULE",null,"Year or More | سنة او اكثر",null,null,"100mg",null,"Raju"]
[{"$f":"IF(ISBLANK(B7),\"\",SUBTOTAL(103,$B$3:B7))","v":5},"Medicines","AMIKACIN 500MG","AMPOULE",null,"Year or More | سنة او اكثر",null,null,"500 mg",null,"Raju"]
[{"$f":"IF(ISBLANK(B8),\"\",SUBTOTAL(103,$B$3:B8))","v":6},"Medicines","AMLODIPINE 5MG","TABLET",null,"Year or More | سنة او اكثر",null,null,"5mg",null,"Raju"]
[{"$f":"IF(ISBLANK(B9),\"\",SUBTOTAL(103,$B$3:B9))","v":7},"Medicines","AMLODIPINE/VALSARTAN 160/5","TABLET",null,"Year or More | سنة او اكثر",null,null,"160/5 mg",null,"Raju"]
[{"$f":"IF(ISBLANK(B10),\"\",SUBTOTAL(103,$B$3:B10))","v":8},"Medicines","AMOXICILLIN 228MG / CLAVULANIC ACID, SYRUP 70ML","ORAL SUSPENSION",null,"Year or More | سنة او اكثر",null,null,"228mg/70ml",null,"Raju"]
[{"$f":"IF(ISBLANK(B11),\"\",SUBTOTAL(103,$B$3:B11))","v":9},"Medicines","AMOXICILLIN 400MG / CLAVULANIC ACID, 57 MG / 5ML, POWDER ORAL SUSP 70ML","ORAL SUSPENSION",null,"Year or More | سنة او اكثر",null,null,"457mg/5ml",null,"Raju"]
[{"$f":"IF(ISBLANK(B12),\"\",SUBTOTAL(103,$B$3:B12))","v":10},"Medicines","AMOXICILLIN 500MG, TAB.","CAPSULE",null,"Year or More | سنة او اكثر",null,null,"500mg",null,"Raju"]
[{"$f":"IF(ISBLANK(B13),\"\",SUBTOTAL(103,$B$3:B13))","v":11},"Medicines","AMOXICILLIN 875MG / CLAVULANIC ACID 125MG, TAB","TABLET",null,"Year or More | سنة او اكثر",null,null,"1000mg",null,"Raju"]
[{"$f":"IF(ISBLANK(B14),\"\",SUBTOTAL(103,$B$3:B14))","v":12},"Medicines","AMOXICILLIN, 250MG/5ML, POWDER ORAL SUSP., 100 ML, BOT.","ORAL SUSPENSION",null,"Year or More | سنة او اكثر",null,null,"250 mg",null,"Raju"]
[{"$f":"IF(ISBLANK(B15),\"\",SUBTOTAL(103,$B$3:B15))","v":13},"Medicines","ANTI -D","VIAL",null,"Year or More | سنة او اكثر",null,null,null,null,"Raju"]
[{"$f":"IF(ISBLANK(B16),\"\",SUBTOTAL(103,$B$3:B16))","v":14},"Medicines","ASCORBIC ACID (VITAMIN C), 250 MG, TAB.","TABLET",null,"Year or More | سنة او اكثر",null,null,"250 mg",null,"Raju"]
[{"$f":"IF(ISBLANK(B17),\"\",SUBTOTAL(103,$B$3:B17))","v":15},"Medicines","ATENOLOL 50MG","TABLET",null,"Year or More | سنة او اكثر",null,null,"50mg",null,"Raju"]
[{"$f":"IF(ISBLANK(B18),\"\",SUBTOTAL(103,$B$3:B18))","v":16},"Medicines","ATORVASTATIN 40MG","TABLET",null,"Year or More | سنة او اكثر",null,null,"40 mg",null,"Raju"]
[{"$f":"IF(ISBLANK(B19),\"\",SUBTOTAL(103,$B$3:B19))","v":17},"Medicines","AZITHROMYCIN 200MG/5ML SYRUP","BOTTLE",null,"Year or More | سنة او اكثر",null,null,"200mg/5ml",null,"Raju"]
[{"$f":"IF(ISBLANK(B20),\"\",SUBTOTAL(103,$B$3:B20))","v":18},"Medicines","AZITHROMYCIN 500MG","TABLET",null,"Year or More | سنة او اكثر",null,null,"500mg",null,"Raju"]
[{"$f":"IF(ISBLANK(B21),\"\",SUBTOTAL(103,$B$3:B21))","v":19},"Medicines","B.COMBLEX","AMPOULE",null,"Year or More | سنة او اكثر",null,null,null,null,"Raju"]
[{"$f":"IF(ISBLANK(B22),\"\",SUBTOTAL(103,$B$3:B22))","v":20},"Medicines","B.COMBLEX / TAB","TABLET",null,"Year or More | سنة او اكثر",null,null,null,null,"Raju"]
[{"$f":"IF(ISBLANK(B23),\"\",SUBTOTAL(103,$B$3:B23))","v":21},"Medicines","BECLOMETASONE DIPROPIONATE, 0.10MG","INHALATION",null,"Year or More | سنة او اكثر",null,null,"100 mcg",null,"Raju"]
[{"$f":"IF(ISBLANK(B24),\"\",SUBTOTAL(103,$B$3:B24))","v":22},"Medicines","BENZYL BENZOATE, 25%, LOTION, 100 ML","BOTTLE",null,"Year or More | سنة او اكثر",null,null,0.25,null,"Raju"]
[{"$f":"IF(ISBLANK(B25),\"\",SUBTOTAL(103,$B$3:B25))","v":23},"Medicines","BETAHISTINE 16MG","TABLET",null,"Year or More | سنة او اكثر",null,null,16,null,"Raju"]
[{"$f":"IF(ISBLANK(B26),\"\",SUBTOTAL(103,$B$3:B26))","v":24},"Medicines","BISACODYL 10 MG TAB ( LAXINE )","TABLET",null,"Year or More | سنة او اكثر",null,null,"10mg",null,"Raju"]
[{"$f":"IF(ISBLANK(B27),\"\",SUBTOTAL(103,$B$3:B27))","v":25},"Medicines","BISOPROLOL FUMARATE, 5 MG, BREAK.TAB.","TABLET",null,"Year or More | سنة او اكثر",null,null,"10mg",null,"Raju"]
[{"$f":"IF(ISBLANK(B28),\"\",SUBTOTAL(103,$B$3:B28))","v":26},"Medicines","CALCIUM+VIT D3","TABLET",null,"Year or More | سنة او اكثر",null,null,"1500mg",null,"Raju"]
[{"$f":"IF(ISBLANK(B29),\"\",SUBTOTAL(103,$B$3:B29))","v":27},"Medicines","CARBAMAZEPINE, 200 MG, TAB.","TABLET",null,"Year or More | سنة او اكثر",null,null,"200 mg",null,"Raju"]
[{"$f":"IF(ISBLANK(B30),\"\",SUBTOTAL(103,$B$3:B30))","v":28},"Medicines","CARBAMAZEPINE, 400MG, TAB.","TABLET",null,"Year or More | سنة او اكثر",null,null,"400mg",null,"Raju"]
[{"$f":"IF(ISBLANK(B31),\"\",SUBTOTAL(103,$B$3:B31))","v":29},"Medicines","CARBAMAZEPINE,100 MG","SYRUP",null,"Year or More | سنة او اكثر",null,null,"100mg",null,"Raju"]
[{"$f":"IF(ISBLANK(B32),\"\",SUBTOTAL(103,$B$3:B32))","v":30},"Medicines","CEFIXIME 400 MG","TABLET",null,"Year or More | سنة او اكثر",null,null,"400 mg",null,"Raju"]
[{"$f":"IF(ISBLANK(B33),\"\",SUBTOTAL(103,$B$3:B33))","v":31},"Medicines","CEFIXIME, 100MG/5ML, POWDER FOR ORAL SUSP., 60 ML, BOT.","BOTTLE",null,"Year or More | سنة او اكثر",null,null,"100mg/5ml",null,"Raju"]
[{"$f":"IF(ISBLANK(B34),\"\",SUBTOTAL(103,$B$3:B34))","v":32},"Medicines","CEFTRIAXONE SODIUM, EQ.1 G BASE, POWDER, VIAL + LIDOCAINE IM","VIAL",null,"Year or More | سنة او اكثر",null,null,"1000mg",null,"Raju"]
[{"$f":"IF(ISBLANK(B35),\"\",SUBTOTAL(103,$B$3:B35))","v":33},"Medicines","CEFTRIAXONE SODIUM, EQ.500 MG","VIAL",null,"Year or More | سنة او اكثر",null,null,"500mg",null,"Raju"]
[{"$f":"IF(ISBLANK(B36),\"\",SUBTOTAL(103,$B$3:B36))","v":34},"Medicines","CHLORPHENIRAMINE MALEATE","AMPOULE",null,"Year or More | سنة او اكثر",null,null,"45.5mg",null,"Raju"]
[{"$f":"IF(ISBLANK(B37),\"\",SUBTOTAL(103,$B$3:B37))","v":35},"Medicines","CHLORPHENIRAMINE MALEATE (2MG) + PARACETAMOL (500MG) + PHENYLEPHRINE (10MG) TAB","TABLET",null,"Year or More | سنة او اكثر",null,null,"10mg",null,"Raju"]
[{"$f":"IF(ISBLANK(B38),\"\",SUBTOTAL(103,$B$3:B38))","v":36},"Medicines","CIPROFLOXACIN HYDROCHLORIDE, EQ. 500 MG BASE, TAB.","TABLET",null,"Year or More | سنة او اكثر",null,null,"500mg",null,"Raju"]
[{"$f":"IF(ISBLANK(B39),\"\",SUBTOTAL(103,$B$3:B39))","v":37},"Medicines","CLOPIDOGREL 75MG","TABLET",null,"Year or More | سنة او اكثر",null,null,"75mg",null,"Raju"]
[{"$f":"IF(ISBLANK(B40),\"\",SUBTOTAL(103,$B$3:B40))","v":38},"Medicines","CLOTRIMAZOLE 1% TOPICAL CREAM, TUBE 20GR TUBE","CREAM",null,"Year or More | سنة او اكثر",null,null,0.01,null,"Raju"]
[{"$f":"IF(ISBLANK(B41),\"\",SUBTOTAL(103,$B$3:B41))","v":39},"Medicines","CLOTRIMAZOLE, 500 MG, VAGINAL TAB. + APPLICATOR","OVUOL",null,"Year or More | سنة او اكثر",null,null,"500 mg",null,"Raju"]
[{"$f":"IF(ISBLANK(B42),\"\",SUBTOTAL(103,$B$3:B42))","v":40},"Medicines","DEXAMETHASONE 8MG/ML 2 ML","AMPOULE",null,"Year or More | سنة او اكثر",null,null,"8mg/2ml",null,"Raju"]
[{"$f":"IF(ISBLANK(B43),\"\",SUBTOTAL(103,$B$3:B43))","v":41},"Medicines","DEXTROSE (GLUCOSE), 5%, 1000 ML, FLEX. BAG, PVC FREE","BAG",null,"Year or More | سنة او اكثر",null,null,0.05,null,"Raju"]
[{"$f":"IF(ISBLANK(B44),\"\",SUBTOTAL(103,$B$3:B44))","v":42},"Medicines","DIAZEPAM 5MG/ML ,2ML","AMPOULE",null,"Year or More | سنة او اكثر",null,null,"10 mg",null,"Raju"]
[{"$f":"IF(ISBLANK(B45),\"\",SUBTOTAL(103,$B$3:B45))","v":43},"Medicines","DICLOFENAC SODIUM 25 MG","SUPP",null,"Year or More | سنة او اكثر",null,null,"25mg",null,"Raju"]
[{"$f":"IF(ISBLANK(B46),\"\",SUBTOTAL(103,$B$3:B46))","v":44},"Medicines","DICLOFENAC SODIUM 50MG","TABLET",null,"Year or More | سنة او اكثر",null,null,"50mg",null,"Raju"]
[{"$f":"IF(ISBLANK(B47),\"\",SUBTOTAL(103,$B$3:B47))","v":45},"Medicines","DICLOFENAC SODIUM 75 MG","AMPOULE",null,"Year or More | سنة او اكثر",null,null,"75mg/3ml",null,"Raju"]
[{"$f":"IF(ISBLANK(B48),\"\",SUBTOTAL(103,$B$3:B48))","v":46},"Medicines","DICLOFENAC SODIUM GEL","GEL",null,"Year or More | سنة او اكثر",null,null,null,null,"Raju"]
[{"$f":"IF(ISBLANK(B49),\"\",SUBTOTAL(103,$B$3:B49))","v":47},"Medicines","DIGOXIN 0.25 MG","TABLET",null,"Year or More | سنة او اكثر",null,null,"0.25mg",null,"Raju"]
[{"$f":"IF(ISBLANK(B50),\"\",SUBTOTAL(103,$B$3:B50))","v":48},"Medicines","ENALAPRIL MALEATE 5MG","TABLET",null,"Year or More | سنة او اكثر",null,null,"5mg",null,"Raju"]
[{"$f":"IF(ISBLANK(B51),\"\",SUBTOTAL(103,$B$3:B51))","v":49},"Medicines","EPINEPHRINE (ADRENALINE) TARTRATE, EQ.1MG/ML BASE, IM INJECT., 1ML","AMPOULE",null,"Year or More | سنة او اكثر",null,null,"1mg/1ml",null,"Raju"]
[{"$f":"IF(ISBLANK(B52),\"\",SUBTOTAL(103,$B$3:B52))","v":50},"Medicines","ETHINYLESTR. 0.03 MG / LEVONORGESTREL 0.15 MG, BLISTER 28TAB","TABLET",null,"Year or More | سنة او اكثر",null,null,null,null,"Raju"]
[{"$f":"IF(ISBLANK(B53),\"\",SUBTOTAL(103,$B$3:B53))","v":51},"Medicines","ETORICOXIBE 90MG","TABLET",null,"Year or More | سنة او اكثر",null,null,"90mg",null,"Raju"]
[{"$f":"IF(ISBLANK(B54),\"\",SUBTOTAL(103,$B$3:B54))","v":52},"Medicines","FERROUS SALT EQ. 60 MG IRON / FOLIC ACID 0.4 MG, TAB","TABLET",null,"Year or More | سنة او اكثر",null,null,"60mg/0.4mg",null,"Raju"]
[{"$f":"IF(ISBLANK(B55),\"\",SUBTOTAL(103,$B$3:B55))","v":53},"Medicines","FERROUS SALT, EQ. IRON 45MG/5ML, SYRUP, 200ML, BOT.","BOTTLE",null,"Year or More | سنة او اكثر",null,null,"45mg/5ml",null,"Raju"]
[{"$f":"IF(ISBLANK(B56),\"\",SUBTOTAL(103,$B$3:B56))","v":54},"Medicines","FOLIC ACID 5MG","TABLET",null,"Year or More | سنة او اكثر",null,null,"5mg",null,"Raju"]
[{"$f":"IF(ISBLANK(B57),\"\",SUBTOTAL(103,$B$3:B57))","v":55},"Medicines","FUROSEMIDE, 40 MG, TAB.","TABLET",null,"Year or More | سنة او اكثر",null,null,"40mg",null,"Raju"]
[{"$f":"IF(ISBLANK(B58),\"\",SUBTOTAL(103,$B$3:B58))","v":56},"Medicines","GLEBENGLAMIDE 5MG","TABLET",null,"Year or More | سنة او اكثر",null,null,"5mg",null,"Raju"]
[{"$f":"IF(ISBLANK(B59),\"\",SUBTOTAL(103,$B$3:B59))","v":57},"Medicines","GLICLAZIDE 80MG","TABLET",null,"Year or More | سنة او اكثر",null,null,"80mg",null,"Raju"]
[{"$f":"IF(ISBLANK(B60),\"\",SUBTOTAL(103,$B$3:B60))","v":58},"Medicines","GLYCERIN ","SUPP",null,"Year or More | سنة او اكثر",null,null,null,null,"Raju"]
[{"$f":"IF(ISBLANK(B61),\"\",SUBTOTAL(103,$B$3:B61))","v":59},"Medicines","HYDROCORTISONE 1% CREAM, TOPICAL 20MG","CREAM",null,"Year or More | سنة او اكثر",null,null,"1% cream",null,"Raju"]
[{"$f":"IF(ISBLANK(B62),\"\",SUBTOTAL(103,$B$3:B62))","v":60},"Medicines","HYDROCORTISONE 100MG","VIAL",null,"Year or More | سنة او اكثر",null,null,"100mg",null,"Raju"]
[{"$f":"IF(ISBLANK(B63),\"\",SUBTOTAL(103,$B$3:B63))","v":61},"Medicines","HYOSCINE BUTYLBROMIDE (SCOPOLAMINE BUTYLBROM), 20 MG/1ML,AMP","AMPOULE",null,"Year or More | سنة او اكثر",null,null,"20mg/ml",null,"Raju"]
[{"$f":"IF(ISBLANK(B64),\"\",SUBTOTAL(103,$B$3:B64))","v":62},"Medicines","HYOSCINE BUTYLBROMIDE (SCOPOLAMINE BUTYLBROMIDE), 10 MG, TAB","TABLET",null,"Year or More | سنة او اكثر",null,null,"10mg",null,"Raju"]
[{"$f":"IF(ISBLANK(B65),\"\",SUBTOTAL(103,$B$3:B65))","v":63},"Medicines","IBUPROFEN 400MG","TABLET",null,"Year or More | سنة او اكثر",null,null,"400 mg",null,"Raju"]
[{"$f":"IF(ISBLANK(B66),\"\",SUBTOTAL(103,$B$3:B66))","v":64},"Medicines","IBUPROFEN, 100MG/5ML, ORAL SUSP., 150 ML, BOT.","ORAL SUSPENSION",null,"Year or More | سنة او اكثر",null,null,"100mg/5ml",null,"Raju"]
[{"$f":"IF(ISBLANK(B67),\"\",SUBTOTAL(103,$B$3:B67))","v":65},"Medicines","IDROCIL","EYE DROP",null,"Year or More | سنة او اكثر",null,null,null,null,"Raju"]
[{"$f":"IF(ISBLANK(B68),\"\",SUBTOTAL(103,$B$3:B68))","v":66},"Medicines","INSULIN HUMAN, BIPHASIC 30-70 IU/ML, 10ML, VIAL N","VIAL",null,"Year or More | سنة او اكثر",null,null,null,null,"Raju"]
[{"$f":"IF(ISBLANK(B69),\"\",SUBTOTAL(103,$B$3:B69))","v":67},"Medicines","ISOSORBIDE DINITRATE 10MG","TABLET",null,"Year or More | سنة او اكثر",null,null,"10mg",null,"Raju"]
[{"$f":"IF(ISBLANK(B70),\"\",SUBTOTAL(103,$B$3:B70))","v":68},"Medicines","LACTULOSE, 3.1 G/5ML, ORAL SOL., BOT.","BOTTLE",null,"Year or More | سنة او اكثر",null,null,"3.3g/5ml",null,"Raju"]
[{"$f":"IF(ISBLANK(B71),\"\",SUBTOTAL(103,$B$3:B71))","v":69},"Medicines","LEVETIRACETAM 500 MG TAB","TABLET",null,"Year or More | سنة او اكثر",null,null,"500mg",null,"Raju"]
[{"$f":"IF(ISBLANK(B72),\"\",SUBTOTAL(103,$B$3:B72))","v":70},"Medicines","LEVOTHYROXINE SODIUM 100 MCG TAB","TABLET",null,"Year or More | سنة او اكثر",null,null,"100mcg",null,"Raju"]
[{"$f":"IF(ISBLANK(B73),\"\",SUBTOTAL(103,$B$3:B73))","v":71},"Medicines","LIDOCAINE HYDROCHLORIDE, 2%, PRESERVATIVE-FREE, 20 ML, AMP","AMPOULE",null,"Year or More | سنة او اكثر",null,null,"20mg",null,"Raju"]
[{"$f":"IF(ISBLANK(B74),\"\",SUBTOTAL(103,$B$3:B74))","v":72},"Medicines","LINCOMYCIN-300MG","AMPOULE",null,"Year or More | سنة او اكثر",null,null,"300mg",null,"Raju"]
[{"$f":"IF(ISBLANK(B75),\"\",SUBTOTAL(103,$B$3:B75))","v":73},"Medicines","LINCOMYCIN-600 MG","AMPOULE",null,"Year or More | سنة او اكثر",null,null,"600mg",null,"Raju"]
[{"$f":"IF(ISBLANK(B76),\"\",SUBTOTAL(103,$B$3:B76))","v":74},"Medicines","LORATADINE 2.5MG/5ML","ORAL SUSPENSION",null,"Year or More | سنة او اكثر",null,null,"2.5mg",null,"Raju"]
[{"$f":"IF(ISBLANK(B77),\"\",SUBTOTAL(103,$B$3:B77))","v":75},"Medicines","LORATADINE, 10MG, TAB.","TABLET",null,"Year or More | سنة او اكثر",null,null,"10mg",null,"Raju"]
[{"$f":"IF(ISBLANK(B78),\"\",SUBTOTAL(103,$B$3:B78))","v":76},"Medicines","LOSARTAN 50MG+HYDROCHLORTHIAZIDE 12.5","TABLET",null,"Year or More | سنة او اكثر",null,null,"50/12.5mg",null,"Raju"]
[{"$f":"IF(ISBLANK(B79),\"\",SUBTOTAL(103,$B$3:B79))","v":77},"Medicines","MEFENAMIC ACID 500 MG","TABLET",null,"Year or More | سنة او اكثر",null,null,"500mg",null,"Raju"]
[{"$f":"IF(ISBLANK(B80),\"\",SUBTOTAL(103,$B$3:B80))","v":78},"Medicines","METFORMIN HCL 500 MG","TABLET",null,"Year or More | سنة او اكثر",null,null,"500 mg",null,"Raju"]
[{"$f":"IF(ISBLANK(B81),\"\",SUBTOTAL(103,$B$3:B81))","v":79},"Medicines","METOPROLOL TARTARAT 50 MG","TABLET",null,"Year or More | سنة او اكثر",null,null,"50mg",null,"Raju"]
[{"$f":"IF(ISBLANK(B82),\"\",SUBTOTAL(103,$B$3:B82))","v":80},"Medicines","METRONIDAZOLE + MICONAZOLE","SUPP",null,"Year or More | سنة او اكثر",null,null,null,null,"Raju"]
[{"$f":"IF(ISBLANK(B83),\"\",SUBTOTAL(103,$B$3:B83))","v":81},"Medicines","METRONIDAZOLE 125MG/5ML SYRUP","BOTTLE",null,"Year or More | سنة او اكثر",null,null,"125mg/5ml",null,"Raju"]
[{"$f":"IF(ISBLANK(B84),\"\",SUBTOTAL(103,$B$3:B84))","v":82},"Medicines","METRONIDAZOLE 500MG","TABLET",null,"Year or More | سنة او اكثر",null,null,"500mg",null,"Raju"]
[{"$f":"IF(ISBLANK(B85),\"\",SUBTOTAL(103,$B$3:B85))","v":83},"Medicines","METRONIDAZOLE, 5 MG/ML, 100 ML, SEMI-RIGID BOT. PVC FREE","VIAL",null,"Year or More | سنة او اكثر",null,null,"5 mg",null,"Raju"]
[{"$f":"IF(ISBLANK(B86),\"\",SUBTOTAL(103,$B$3:B86))","v":84},"Medicines","MICONAZOLE NITRATE, 2%, CREAM, 30 G, TUBE","TUBE",null,"Year or More | سنة او اكثر",null,null,"2% CREAM",null,"Raju"]
[{"$f":"IF(ISBLANK(B87),\"\",SUBTOTAL(103,$B$3:B87))","v":85},"Medicines","MISOPROSTOL 200MCG","TABLET",null,"Year or More | سنة او اكثر",null,null,"200mg",null,"Raju"]
[{"$f":"IF(ISBLANK(B88),\"\",SUBTOTAL(103,$B$3:B88))","v":86},"Medicines","NIMESULIDE 100 MG","TABLET",null,"Year or More | سنة او اكثر",null,null,"100mg",null,"Raju"]
[{"$f":"IF(ISBLANK(B89),\"\",SUBTOTAL(103,$B$3:B89))","v":87},"Medicines","NITROFURANTOIN 100 MG","TABLET",null,"Year or More | سنة او اكثر",null,null,"100mg",null,"Raju"]
[{"$f":"IF(ISBLANK(B90),\"\",SUBTOTAL(103,$B$3:B90))","v":88},"Medicines","NYSTATIN, 100,000 IU/ML, ORAL SUSP. + GRADUATED DROPPER","ORAL SUSPENSION",null,"Year or More | سنة او اكثر",null,null,"100.000 IU",null,"Raju"]
[{"$f":"IF(ISBLANK(B91),\"\",SUBTOTAL(103,$B$3:B91))","v":89},"Medicines","OMEPRAZOLE SODIUM, EQ. 40 MG BASE, POWDER, VIAL, FR INFUSION","VIAL",null,"Year or More | سنة او اكثر",null,null,"40mg",null,"Raju"]
[{"$f":"IF(ISBLANK(B92),\"\",SUBTOTAL(103,$B$3:B92))","v":90},"Medicines","OMEPRAZOLE, 40 MG","CAPSULE",null,"Year or More | سنة او اكثر",null,null,"40mg",null,"Raju"]
[{"$f":"IF(ISBLANK(B93),\"\",SUBTOTAL(103,$B$3:B93))","v":91},"Medicines","ONDANSETRON HYDROCHLORIDE, EQ. 8 MG BASE, TAB.","TABLET",null,"Year or More | سنة او اكثر",null,null,"8mg",null,"Raju"]
[{"$f":"IF(ISBLANK(B94),\"\",SUBTOTAL(103,$B$3:B94))","v":92},"Medicines","ONDANSTERONE 4MG/5ML SYR","SYR",null,"Year or More | سنة او اكثر",null,null,"4mg/5ml",null,"Raju"]
[{"$f":"IF(ISBLANK(B95),\"\",SUBTOTAL(103,$B$3:B95))","v":93},"Medicines","ONDANSTERONE 8MG AMP","AMPOULE",null,"Year or More | سنة او اكثر",null,null,"8mg/4ml",null,"Raju"]
[{"$f":"IF(ISBLANK(B96),\"\",SUBTOTAL(103,$B$3:B96))","v":94},"Medicines","OXYTOCIN 10 UI / ML","AMPOULE",null,"Year or More | سنة او اكثر",null,null,null,null,"Raju"]
[{"$f":"IF(ISBLANK(B97),\"\",SUBTOTAL(103,$B$3:B97))","v":95},"Medicines","PARACETAMOL (ACETAMINOPHEN), 120MG/5ML,ORAL SUSP.,100ML BOT.","ORAL SUSPENSION",null,"Year or More | سنة او اكثر",null,null,"120mg/5ml",null,"Raju"]
[{"$f":"IF(ISBLANK(B98),\"\",SUBTOTAL(103,$B$3:B98))","v":96},"Medicines","PARACETAMOL (ACETAMINOPHEN), 500 MG, TAB.","TABLET",null,"Year or More | سنة او اكثر",null,null,"500mg",null,"Raju"]
[{"$f":"IF(ISBLANK(B99),\"\",SUBTOTAL(103,$B$3:B99))","v":97},"Medicines","PARACETAMOL (ACETAMINOPHEN),10 MG/ML, 100ML, BOT.","BOTTLE",null,"Year or More | سنة او اكثر",null,null,null,null,"Raju"]
[{"$f":"IF(ISBLANK(B100),\"\",SUBTOTAL(103,$B$3:B100))","v":98},"Medicines","PARACETAMOL 300MG + CHLOREZOXAZONE 250MG TAB","TABLET",null,"Year or More | سنة او اكثر",null,null,"250mg",null,"Raju"]
[{"$f":"IF(ISBLANK(B101),\"\",SUBTOTAL(103,$B$3:B101))","v":99},"Medicines","PHENOBARBITAL 15MG","TABLET",null,"Year or More | سنة او اكثر",null,null,"15mg",null,"Raju"]
[{"$f":"IF(ISBLANK(B102),\"\",SUBTOTAL(103,$B$3:B102))","v":100},"Medicines","PHENYTOIN SODIUM, 100 MG, TAB.","TABLET",null,"Year or More | سنة او اكثر",null,null,"100mg",null,"Raju"]
[{"$f":"IF(ISBLANK(B103),\"\",SUBTOTAL(103,$B$3:B103))","v":101},"Medicines","POLYVIDONE IODINE, 10%, SOLUTION, 1000ML, DROPPER BOT.","BOTTLE",null,"Year or More | سنة او اكثر",null,null,null,null,"Raju"]
[{"$f":"IF(ISBLANK(B104),\"\",SUBTOTAL(103,$B$3:B104))","v":102},"Medicines","PREDNISOLONE 20 MG","TABLET",null,"Year or More | سنة او اكثر",null,null,"20mg",null,"Raju"]
[{"$f":"IF(ISBLANK(B105),\"\",SUBTOTAL(103,$B$3:B105))","v":103},"Medicines","PREDNISOLONE 5MG","TABLET",null,"Year or More | سنة او اكثر",null,null,"5mg",null,"Raju"]
[{"$f":"IF(ISBLANK(B106),\"\",SUBTOTAL(103,$B$3:B106))","v":104},"Medicines","RECSIL","SUPP",null,"Year or More | سنة او اكثر",null,null,null,null,"Raju"]
[{"$f":"IF(ISBLANK(B107),\"\",SUBTOTAL(103,$B$3:B107))","v":105},"Medicines","RINGER LACTATE, 500 ML, FLEX. BAG, PVC FREE","BAG",null,"Year or More | سنة او اكثر",null,null,"500mg",null,"Raju"]
[{"$f":"IF(ISBLANK(B108),\"\",SUBTOTAL(103,$B$3:B108))","v":106},"Medicines","SALBUTAMOL 2.5MG/ 2.5ML NEBULIZED","NEBULIZED",null,"Year or More | سنة او اكثر",null,null,"2.5mg",null,"Raju"]
[{"$f":"IF(ISBLANK(B109),\"\",SUBTOTAL(103,$B$3:B109))","v":107},"Medicines","SALBUTAMOL 2MG -100MCG/ML 200 DOSES SPRAY","INHALER",null,"Year or More | سنة او اكثر",null,null,"0.1mg",null,"Raju"]
[{"$f":"IF(ISBLANK(B110),\"\",SUBTOTAL(103,$B$3:B110))","v":108},"Medicines","SODIUM CHLORIDE, 0.9%, 1 L, FLEX. BAG, PVC FREE","BAG",null,"Year or More | سنة او اكثر",null,null,null,null,"Raju"]
[{"$f":"IF(ISBLANK(B111),\"\",SUBTOTAL(103,$B$3:B111))","v":109},"Medicines","SULFADIAZINE SILVER, 1%, CREAM, STERILE, 50 G, TUBE","TUBE",null,"Year or More | سنة او اكثر",null,null,null,null,"Raju"]
[{"$f":"IF(ISBLANK(B112),\"\",SUBTOTAL(103,$B$3:B112))","v":110},"Medicines","TEMPRA (PARACETAMOL 100 MG / 1ML )","DROPS",null,"Year or More | سنة او اكثر",null,null,"100 mg ",null,"Raju"]
[{"$f":"IF(ISBLANK(B113),\"\",SUBTOTAL(103,$B$3:B113))","v":111},"Medicines","TRAMADOL HYDROCHLORIDE, 50 MG/ML, 2 ML, AMP.","AMPOULE",null,"Year or More | سنة او اكثر",null,null,"50 mg",null,"Raju"]
[{"$f":"IF(ISBLANK(B114),\"\",SUBTOTAL(103,$B$3:B114))","v":112},"Medicines","ULTRASOUND -GEL","PIECE",null,"Year or More | سنة او اكثر",null,null,null,null,"Raju"]
[{"$f":"IF(ISBLANK(B115),\"\",SUBTOTAL(103,$B$3:B115))","v":113},"Medicines","VALPROATE SODIUM, 200 MG, GASTRO-RESISTANT TAB.","TABLET",null,"Year or More | سنة او اكثر",null,null,"200mg  ",null,"Raju"]
[{"$f":"IF(ISBLANK(B116),\"\",SUBTOTAL(103,$B$3:B116))","v":114},"Medicines","VALPROATE SODIUM, 200 MG/ML, 40 ML, BOT. + SYRINGE","BOTTLE",null,"Year or More | سنة او اكثر",null,null,"40mg/ml",null,"Raju"]
[{"$f":"IF(ISBLANK(B117),\"\",SUBTOTAL(103,$B$3:B117))","v":115},"Medicines","VALPROATE SODIUM, 500 MG, GASTRO-RESISTANT TAB.","TABLET",null,"Year or More | سنة او اكثر",null,null,"500mg",null,"Raju"]
[{"$f":"IF(ISBLANK(B118),\"\",SUBTOTAL(103,$B$3:B118))","v":116},"Medicines","VIT D3 400 IU SYR","SYR",null,"Year or More | سنة او اكثر",null,null,"400 iu",null,"Raju"]
[{"$f":"IF(ISBLANK(B119),\"\",SUBTOTAL(103,$B$3:B119))","v":117},"Medicines","VITAMIN K AMP 1MG/ML","AMPOULE",null,"Year or More | سنة او اكثر",null,null,"1mg",null,"Raju"]
[{"$f":"IF(ISBLANK(B120),\"\",SUBTOTAL(103,$B$3:B120))","v":118},"Medicines","WARFARIN 5 MG ","TABLET",null,"Year or More | سنة او اكثر",null,null,5,null,"Raju"]
[{"$f":"IF(ISBLANK(B121),\"\",SUBTOTAL(103,$B$3:B121))","v":119},"Medicines","ZINC OXIDE, 10%, OINTMENT, 100 G, TUBE","TUBE",null,"Year or More | سنة او اكثر",null,null,null,null,"Raju"]
[{"$f":"IF(ISBLANK(B122),\"\",SUBTOTAL(103,$B$3:B122))","v":120},"Medicines","ZINC SULFATE, EQ. TO 20 MG ZINC MINERAL, DISPERSIBLE TAB.","TABLET",null,"Year or More | سنة او اكثر",null,null,"20mg",null,"Raju"]
[{"$f":"IF(ISBLANK(B123),\"\",SUBTOTAL(103,$B$3:B123))","v":121},"Medicines","ACETYLSALICYLIC ACID (ASPIRIN), 75 MG, GASTRO-RESISTANT TAB.","TABLET",null,"Year or More | سنة او اكثر",null,null,"75mg",null,"Badanli"]
[{"$f":"IF(ISBLANK(B124),\"\",SUBTOTAL(103,$B$3:B124))","v":122},"Medicines","ACETYLSALICYLIC ACID 100MG","TABLET",null,"Year or More | سنة او اكثر",null,null,"100mg",null,"Badanli"]
[{"$f":"IF(ISBLANK(B125),\"\",SUBTOTAL(103,$B$3:B125))","v":123},"Medicines","ALBENDAZOL 400 MG TAB","TABLET",null,"Year or More | سنة او اكثر",null,null,"400mg",null,"Badanli"]
[{"$f":"IF(ISBLANK(B126),\"\",SUBTOTAL(103,$B$3:B126))","v":124},"Medicines","ALBENDAZOLE 100MG/15ML","SYR",null,"Year or More | سنة او اكثر",null,null,"100mg",null,"Badanli"]
[{"$f":"IF(ISBLANK(B127),\"\",SUBTOTAL(103,$B$3:B127))","v":125},"Medicines","ALLOPURINOL 300MG TAB","TABLET",null,"Year or More | سنة او اكثر",null,null,"300mg",null,"Badanli"]
[{"$f":"IF(ISBLANK(B128),\"\",SUBTOTAL(103,$B$3:B128))","v":126},"Medicines","AMIKACIN 100MG","VIAL",null,"Year or More | سنة او اكثر",null,null,"100mg",null,"Badanli"]
[{"$f":"IF(ISBLANK(B129),\"\",SUBTOTAL(103,$B$3:B129))","v":127},"Medicines","AMIKACIN 500MG","VIAL",null,"Year or More | سنة او اكثر",null,null,"500mg",null,"Badanli"]
[{"$f":"IF(ISBLANK(B130),\"\",SUBTOTAL(103,$B$3:B130))","v":128},"Medicines","AMLODIPINE 10 MG TAB","TABLET",null,"Year or More | سنة او اكثر",null,null,"10mg",null,"Badanli"]
[{"$f":"IF(ISBLANK(B131),\"\",SUBTOTAL(103,$B$3:B131))","v":129},"Medicines","AMLODIPINE 5MG","TABLET",null,"Year or More | سنة او اكثر",null,null,"5mg",null,"Badanli"]
[{"$f":"IF(ISBLANK(B132),\"\",SUBTOTAL(103,$B$3:B132))","v":130},"Medicines","AMLODIPINE/VALSARTAN 160/10","TABLET",null,"Year or More | سنة او اكثر",null,null,null,null,"Badanli"]
[{"$f":"IF(ISBLANK(B133),\"\",SUBTOTAL(103,$B$3:B133))","v":131},"Medicines","AMLODIPINE/VALSARTAN 160/5","TABLET",null,"Year or More | سنة او اكثر",null,null,null,null,"Badanli"]
[{"$f":"IF(ISBLANK(B134),\"\",SUBTOTAL(103,$B$3:B134))","v":132},"Medicines","AMOXICILLIN 228MG / CLAVULANIC ACID, SYRUP 70ML","ORAL SUSPENSION",null,"Year or More | سنة او اكثر",null,null,"228mg ",null,"Badanli"]
[{"$f":"IF(ISBLANK(B135),\"\",SUBTOTAL(103,$B$3:B135))","v":133},"Medicines","AMOXICILLIN 400MG / CLAVULANIC ACID, 57 MG / 5ML, POWDER ORAL SUSP 70ML","ORAL SUSPENSION",null,"Year or More | سنة او اكثر",null,null,"457mg/5ml",null,"Badanli"]
[{"$f":"IF(ISBLANK(B136),\"\",SUBTOTAL(103,$B$3:B136))","v":134},"Medicines","AMOXICILLIN 500MG / CLAVULANIC ACID, 62.5 MG, TAB.","TABLET",null,"Year or More | سنة او اكثر",null,null,"500mg ",null,"Badanli"]
[{"$f":"IF(ISBLANK(B137),\"\",SUBTOTAL(103,$B$3:B137))","v":135},"Medicines","AMOXICILLIN 875MG / CLAVULANIC ACID 125MG, TAB","TABLET",null,"Year or More | سنة او اكثر",null,null,"875mg ",null,"Badanli"]
[{"$f":"IF(ISBLANK(B138),\"\",SUBTOTAL(103,$B$3:B138))","v":136},"Medicines","AMOXICILLIN, 125MG/5ML, POWDER ORAL SUSP., 100 ML, BOT.","TABLET",null,"Year or More | سنة او اكثر",null,null,"125mg",null,"Badanli"]
[{"$f":"IF(ISBLANK(B139),\"\",SUBTOTAL(103,$B$3:B139))","v":137},"Medicines","ASCORBIC ACID (VITAMIN C), 250 MG, TAB.","TABLET",null,"Year or More | سنة او اكثر",null,null,"250mg",null,"Badanli"]
[{"$f":"IF(ISBLANK(B140),\"\",SUBTOTAL(103,$B$3:B140))","v":138},"Medicines","ATENOLOL 50MG","TABLET",null,"Year or More | سنة او اكثر",null,null,"50mg",null,"Badanli"]
[{"$f":"IF(ISBLANK(B141),\"\",SUBTOTAL(103,$B$3:B141))","v":139},"Medicines","ATORVASTATIN 20MG","TABLET",null,"Year or More | سنة او اكثر",null,null,"20mg",null,"Badanli"]
[{"$f":"IF(ISBLANK(B142),\"\",SUBTOTAL(103,$B$3:B142))","v":140},"Medicines","ATORVASTATIN 40MG","TABLET",null,"Year or More | سنة او اكثر",null,null,"40mg",null,"Badanli"]
[{"$f":"IF(ISBLANK(B143),\"\",SUBTOTAL(103,$B$3:B143))","v":141},"Medicines","ATOXIA 90MG / TAB","TABLET",null,"Year or More | سنة او اكثر",null,null,"90mg ",null,"Badanli"]
[{"$f":"IF(ISBLANK(B144),\"\",SUBTOTAL(103,$B$3:B144))","v":142},"Medicines","AZITHROMYCIN 200MG/5ML SYRUP","BOTTLE",null,"Year or More | سنة او اكثر",null,null,"200mg",null,"Badanli"]
[{"$f":"IF(ISBLANK(B145),\"\",SUBTOTAL(103,$B$3:B145))","v":143},"Medicines","AZITHROMYCIN 500MG","TABLET",null,"Year or More | سنة او اكثر",null,null,"500mg",null,"Badanli"]
[{"$f":"IF(ISBLANK(B146),\"\",SUBTOTAL(103,$B$3:B146))","v":144},"Medicines","AZITHROMYCIN, 250 MG, TAB.","TABLET",null,"Year or More | سنة او اكثر",null,null,"250mg",null,"Badanli"]
[{"$f":"IF(ISBLANK(B147),\"\",SUBTOTAL(103,$B$3:B147))","v":145},"Medicines","B.COMBLEX / TAB","TABLET",null,"Year or More | سنة او اكثر",null,null,null,null,"Badanli"]
[{"$f":"IF(ISBLANK(B148),\"\",SUBTOTAL(103,$B$3:B148))","v":146},"Medicines","B1+B6+B12","TABLET",null,"Year or More | سنة او اكثر",null,null,null,null,"Badanli"]
[{"$f":"IF(ISBLANK(B149),\"\",SUBTOTAL(103,$B$3:B149))","v":147},"Medicines","BECLOMETASONE DIPROPIONATE, 0.10MG","INHALATION",null,"Year or More | سنة او اكثر",null,null,null,null,"Badanli"]
[{"$f":"IF(ISBLANK(B150),\"\",SUBTOTAL(103,$B$3:B150))","v":148},"Medicines","BENZYL BENZOATE, 25%, LOTION, 1 L, BOT","BOTTLE",null,"Year or More | سنة او اكثر",null,null,null,null,"Badanli"]
[{"$f":"IF(ISBLANK(B151),\"\",SUBTOTAL(103,$B$3:B151))","v":149},"Medicines","BETAHISTINE 16 MG TAB","TABLET",null,"Year or More | سنة او اكثر",null,null,"16mg",null,"Badanli"]
[{"$f":"IF(ISBLANK(B152),\"\",SUBTOTAL(103,$B$3:B152))","v":150},"Medicines","BETAMETHASONE VALERATE 0.1% 15G CREAM","TUBE",null,"Year or More | سنة او اكثر",null,null,"0115g",null,"Badanli"]
[{"$f":"IF(ISBLANK(B153),\"\",SUBTOTAL(103,$B$3:B153))","v":151},"Medicines","BISOPROLOL 5MG","TABLET",null,"Year or More | سنة او اكثر",null,null,"5mg",null,"Badanli"]
[{"$f":"IF(ISBLANK(B154),\"\",SUBTOTAL(103,$B$3:B154))","v":152},"Medicines","BISOPROLOL FUMARATE, 10 MG, BREAK.TAB.","TABLET",null,"Year or More | سنة او اكثر",null,null,"10mg",null,"Badanli"]
[{"$f":"IF(ISBLANK(B155),\"\",SUBTOTAL(103,$B$3:B155))","v":153},"Medicines","CALAMINE, 15%, LOTION, 500 ML, BOT.","BOTTLE",null,"Year or More | سنة او اكثر",null,null,"500ml",null,"Badanli"]
[{"$f":"IF(ISBLANK(B156),\"\",SUBTOTAL(103,$B$3:B156))","v":154},"Medicines","CALCIUM+VIT D3","TABLET",null,"Year or More | سنة او اكثر",null,null,null,null,"Badanli"]
[{"$f":"IF(ISBLANK(B157),\"\",SUBTOTAL(103,$B$3:B157))","v":155},"Medicines","CAPTOPRIL 25MG","TABLET",null,"Year or More | سنة او اكثر",null,null,"25mg",null,"Badanli"]
[{"$f":"IF(ISBLANK(B158),\"\",SUBTOTAL(103,$B$3:B158))","v":156},"Medicines","CARBAMAZEPINE, 200 MG, TAB.","TABLET",null,"Year or More | سنة او اكثر",null,null,"200mg",null,"Badanli"]
[{"$f":"IF(ISBLANK(B159),\"\",SUBTOTAL(103,$B$3:B159))","v":157},"Medicines","CARBAMAZEPINE, 400 MG, TAB.","TABLET",null,"Year or More | سنة او اكثر",null,null,"400mg",null,"Badanli"]
[{"$f":"IF(ISBLANK(B160),\"\",SUBTOTAL(103,$B$3:B160))","v":158},"Medicines","CEFIXIME 400 MG","TABLET",null,"Year or More | سنة او اكثر",null,null,"400mg",null,"Badanli"]
[{"$f":"IF(ISBLANK(B161),\"\",SUBTOTAL(103,$B$3:B161))","v":159},"Medicines","CEFIXIME, 100MG/5ML, POWDER FOR ORAL SUSP., 60 ML, BOT.","BOTTLE",null,"Year or More | سنة او اكثر",null,null,"100mg",null,"Badanli"]
[{"$f":"IF(ISBLANK(B162),\"\",SUBTOTAL(103,$B$3:B162))","v":160},"Medicines","CEFIXIME, 200 MG, TAB.","TABLET",null,"Year or More | سنة او اكثر",null,null,"200mg",null,"Badanli"]
[{"$f":"IF(ISBLANK(B163),\"\",SUBTOTAL(103,$B$3:B163))","v":161},"Medicines","CEFTRIAXONE SODIUM, EQ.1 G BASE, POWDER, VIAL + LIDOCAINE IM","VIAL",null,"Year or More | سنة او اكثر",null,null,"1mg",null,"Badanli"]
[{"$f":"IF(ISBLANK(B164),\"\",SUBTOTAL(103,$B$3:B164))","v":162},"Medicines","CEFTRIAXONE SODIUM, EQ.500 MG BASE, POWDER, VIAL","VIAL",null,"Year or More | سنة او اكثر",null,null,"500mg",null,"Badanli"]
[{"$f":"IF(ISBLANK(B165),\"\",SUBTOTAL(103,$B$3:B165))","v":163},"Medicines","CETIRIZINE 10MG","TABLET",null,"Year or More | سنة او اكثر",null,null,"10mg",null,"Badanli"]
[{"$f":"IF(ISBLANK(B166),\"\",SUBTOTAL(103,$B$3:B166))","v":164},"Medicines","CHLORHEXIDINE DIGLUCONATE 5%, SOLUTION, 1 L, BOT.","BOTTLE",null,"Year or More | سنة او اكثر",null,null,"1mg",null,"Badanli"]
[{"$f":"IF(ISBLANK(B167),\"\",SUBTOTAL(103,$B$3:B167))","v":165},"Medicines","CIPROFLOXACIN HYDROCHLORIDE, EQ. 500 MG BASE, TAB.","TABLET",null,"Year or More | سنة او اكثر",null,null,"500mg",null,"Badanli"]
[{"$f":"IF(ISBLANK(B168),\"\",SUBTOTAL(103,$B$3:B168))","v":166},"Medicines","CIPROFLOXACIN, 0.3%, EAR/EYE DROPS, STERILE, BOT.","BOTTLE",null,"Year or More | سنة او اكثر",null,null,null,null,"Badanli"]
[{"$f":"IF(ISBLANK(B169),\"\",SUBTOTAL(103,$B$3:B169))","v":167},"Medicines","CLOPIDOGREL 75MG","TABLET",null,"Year or More | سنة او اكثر",null,null,"75mg",null,"Badanli"]
[{"$f":"IF(ISBLANK(B170),\"\",SUBTOTAL(103,$B$3:B170))","v":168},"Medicines","CLORPHENIRAMINE AMP","AMPOULE",null,"Year or More | سنة او اكثر",null,null,null,null,"Badanli"]
[{"$f":"IF(ISBLANK(B171),\"\",SUBTOTAL(103,$B$3:B171))","v":169},"Medicines","CLOTRIMAZOLE 1% TOPICAL CREAM, TUBE 20GR TUBE","CREAM",null,"Year or More | سنة او اكثر",null,null,"20gr",null,"Badanli"]
[{"$f":"IF(ISBLANK(B172),\"\",SUBTOTAL(103,$B$3:B172))","v":170},"Medicines","CLOTRIMAZOLE, 500 MG, VAGINAL TAB. + APPLICATOR","OVUOL",null,"Year or More | سنة او اكثر",null,null,"500mg",null,"Badanli"]
[{"$f":"IF(ISBLANK(B173),\"\",SUBTOTAL(103,$B$3:B173))","v":171},"Medicines","COTRIMOXAZOLE SYRUP","BOTTLE",null,"Year or More | سنة او اكثر",null,null,null,null,"Badanli"]
[{"$f":"IF(ISBLANK(B174),\"\",SUBTOTAL(103,$B$3:B174))","v":172},"Medicines","DEPAKINE 200 MG SYR","BOTTLE",null,"Year or More | سنة او اكثر",null,null,"200mg",null,"Badanli"]
[{"$f":"IF(ISBLANK(B175),\"\",SUBTOTAL(103,$B$3:B175))","v":173},"Medicines","DEPAKINE 500 TAB","TABLET",null,"Year or More | سنة او اكثر",null,null,"500mg",null,"Badanli"]
[{"$f":"IF(ISBLANK(B176),\"\",SUBTOTAL(103,$B$3:B176))","v":174},"Medicines","DEXAMETHASONE 8MG/ML 2 ML","AMPOULE",null,"Year or More | سنة او اكثر",null,null,"8mg",null,"Badanli"]
[{"$f":"IF(ISBLANK(B177),\"\",SUBTOTAL(103,$B$3:B177))","v":175},"Medicines","DEXTROSE (GLUCOSE), 5%, 1 L, FLEX. BAG, PVC FREE","BAG",null,"Year or More | سنة او اكثر",null,null,null,null,"Badanli"]
[{"$f":"IF(ISBLANK(B178),\"\",SUBTOTAL(103,$B$3:B178))","v":176},"Medicines","DEXTROSE (GLUCOSE), 5%, 500 ML, FLEX. BAG, PVC FREE","BAG",null,"Year or More | سنة او اكثر",null,null,"500ml",null,"Badanli"]
[{"$f":"IF(ISBLANK(B179),\"\",SUBTOTAL(103,$B$3:B179))","v":177},"Medicines","DICLOFENAC 12.5 SUPPOSTORIES","SUPP",null,"Year or More | سنة او اكثر",null,null,"12.5mg",null,"Badanli"]
[{"$f":"IF(ISBLANK(B180),\"\",SUBTOTAL(103,$B$3:B180))","v":178},"Medicines","DICLOFENAC 25 MG SUPPOSTORIES","SUPP",null,"Year or More | سنة او اكثر",null,null,"25mg",null,"Badanli"]
[{"$f":"IF(ISBLANK(B181),\"\",SUBTOTAL(103,$B$3:B181))","v":179},"Medicines","DICLOFENAC CREEM","TUBE",null,"Year or More | سنة او اكثر",null,null,null,null,"Badanli"]
[{"$f":"IF(ISBLANK(B182),\"\",SUBTOTAL(103,$B$3:B182))","v":180},"Medicines","DICLOFENAC POTASSIUM 50 MG, TAB","TABLET",null,"Year or More | سنة او اكثر",null,null,"50mg",null,"Badanli"]
[{"$f":"IF(ISBLANK(B183),\"\",SUBTOTAL(103,$B$3:B183))","v":181},"Medicines","DICLOFENAC SODIUM 50MG","TABLET",null,"Year or More | سنة او اكثر",null,null,"50mg",null,"Badanli"]
[{"$f":"IF(ISBLANK(B184),\"\",SUBTOTAL(103,$B$3:B184))","v":182},"Medicines","DICLOFENAC SODIUM 75 MG","AMPOULE",null,"Year or More | سنة او اكثر",null,null,"75mg",null,"Badanli"]
[{"$f":"IF(ISBLANK(B185),\"\",SUBTOTAL(103,$B$3:B185))","v":183},"Medicines","DIGOXIN 0.25 MG","TABLET",null,"Year or More | سنة او اكثر",null,null,"0.25mg",null,"Badanli"]
[{"$f":"IF(ISBLANK(B186),\"\",SUBTOTAL(103,$B$3:B186))","v":184},"Medicines","DILTIAZEM 60","TUBE",null,"Year or More | سنة او اكثر",null,null,"60mg",null,"Badanli"]
[{"$f":"IF(ISBLANK(B187),\"\",SUBTOTAL(103,$B$3:B187))","v":185},"Medicines","ENALAPRIL 10 MG TAB","TABLET",null,"Year or More | سنة او اكثر",null,null,"10mg",null,"Badanli"]
[{"$f":"IF(ISBLANK(B188),\"\",SUBTOTAL(103,$B$3:B188))","v":186},"Medicines","ENALAPRIL MALEATE 5MG","TABLET",null,"Year or More | سنة او اكثر",null,null,"5mg",null,"Badanli"]
[{"$f":"IF(ISBLANK(B189),\"\",SUBTOTAL(103,$B$3:B189))","v":187},"Medicines","EPINEPHRINE (ADRENALINE) TARTRATE, EQ.1MG/ML BASE, IM INJECT., 1ML","AMPOULE",null,"Year or More | سنة او اكثر",null,null,"1ml",null,"Badanli"]
[{"$f":"IF(ISBLANK(B190),\"\",SUBTOTAL(103,$B$3:B190))","v":188},"Medicines","ETORICOXIBE 90MG","TABLET",null,"Year or More | سنة او اكثر",null,null,"90mg",null,"Badanli"]
[{"$f":"IF(ISBLANK(B191),\"\",SUBTOTAL(103,$B$3:B191))","v":189},"Medicines","FERROUS SALT EQ. 60 MG IRON / FOLIC ACID 0.4 MG, TAB","TABLET",null,"Year or More | سنة او اكثر",null,null,"60mg",null,"Badanli"]
[{"$f":"IF(ISBLANK(B192),\"\",SUBTOTAL(103,$B$3:B192))","v":190},"Medicines","FERROUS SALT, EQ. IRON 45MG/5ML, SYRUP, 200ML, BOT.","BOTTLE",null,"Year or More | سنة او اكثر",null,null,"45mg",null,"Badanli"]
[{"$f":"IF(ISBLANK(B193),\"\",SUBTOTAL(103,$B$3:B193))","v":191},"Medicines","FLOCNAZOL 200 MG TAB","TABLET",null,"Year or More | سنة او اكثر",null,null,"200mg",null,"Badanli"]
[{"$f":"IF(ISBLANK(B194),\"\",SUBTOTAL(103,$B$3:B194))","v":192},"Medicines","FOLIC ACID 5MG","TABLET",null,"Year or More | سنة او اكثر",null,null,"5mg",null,"Badanli"]
[{"$f":"IF(ISBLANK(B195),\"\",SUBTOTAL(103,$B$3:B195))","v":193},"Medicines","FUCINE OINTMENT ","TUBE",null,"Year or More | سنة او اكثر",null,null,null,null,"Badanli"]
[{"$f":"IF(ISBLANK(B196),\"\",SUBTOTAL(103,$B$3:B196))","v":194},"Medicines","FUROSEMIDE 40MG","TABLET",null,"Year or More | سنة او اكثر",null,null,"40mg",null,"Badanli"]
[{"$f":"IF(ISBLANK(B197),\"\",SUBTOTAL(103,$B$3:B197))","v":195},"Medicines","GENTAMICIN 0.3% EYE / EAR DROP","EYE DROP",null,"Year or More | سنة او اكثر",null,null,null,null,"Badanli"]
[{"$f":"IF(ISBLANK(B198),\"\",SUBTOTAL(103,$B$3:B198))","v":196},"Medicines","GENTAMICIN SULFATE, EQ. 40 MG/ML BASE, 2 ML, AMP.","AMPOULE",null,"Year or More | سنة او اكثر",null,null,"40 mg",null,"Badanli"]
[{"$f":"IF(ISBLANK(B199),\"\",SUBTOTAL(103,$B$3:B199))","v":197},"Medicines","GLIBENCLAMIDE, 5 MG, TAB.","TABLET",null,"Year or More | سنة او اكثر",null,null,"5mg",null,"Badanli"]
[{"$f":"IF(ISBLANK(B200),\"\",SUBTOTAL(103,$B$3:B200))","v":198},"Medicines","GLICLAZIDE 80MG","TABLET",null,"Year or More | سنة او اكثر",null,null,"80mg",null,"Badanli"]
[{"$f":"IF(ISBLANK(B201),\"\",SUBTOTAL(103,$B$3:B201))","v":199},"Medicines","GLYCERYL TRINITRATE, 0.5 MG, SUBLINGUAL TAB.","TABLET",null,"Year or More | سنة او اكثر",null,null,"5mg",null,"Badanli"]
[{"$f":"IF(ISBLANK(B202),\"\",SUBTOTAL(103,$B$3:B202))","v":200},"Medicines","HYDROCORTISONE (ACETATE OR BASE), 1%, OINTMENT, 15 G, TUBE","TUBE",null,"Year or More | سنة او اكثر",null,null,"15mg",null,"Badanli"]
[{"$f":"IF(ISBLANK(B203),\"\",SUBTOTAL(103,$B$3:B203))","v":201},"Medicines","HYDROCORTISONE 1% CREAM, TOPICAL 20MG","TUBE",null,"Year or More | سنة او اكثر",null,null,"20mg",null,"Badanli"]
[{"$f":"IF(ISBLANK(B204),\"\",SUBTOTAL(103,$B$3:B204))","v":202},"Medicines","HYDROCORTISONE 100 MG VAIL","VIAL",null,"Year or More | سنة او اكثر",null,null,"100mg",null,"Badanli"]
[{"$f":"IF(ISBLANK(B205),\"\",SUBTOTAL(103,$B$3:B205))","v":203},"Medicines","HYOSCINE BUTYLBROMIDE (SCOPOLAMINE BUTYLBROM), 20 MG/1ML,AMP","AMPOULE",null,"Year or More | سنة او اكثر",null,null,"20 mg",null,"Badanli"]
[{"$f":"IF(ISBLANK(B206),\"\",SUBTOTAL(103,$B$3:B206))","v":204},"Medicines","HYOSCINE BUTYLBROMIDE (SCOPOLAMINE BUTYLBROMIDE), 10 MG, TAB","TABLET",null,"Year or More | سنة او اكثر",null,null,"10mg",null,"Badanli"]
[{"$f":"IF(ISBLANK(B207),\"\",SUBTOTAL(103,$B$3:B207))","v":205},"Medicines","IBUPROFEN 400MG","TABLET",null,"Year or More | سنة او اكثر",null,null,"400mg",null,"Badanli"]
[{"$f":"IF(ISBLANK(B208),\"\",SUBTOTAL(103,$B$3:B208))","v":206},"Medicines","IBUPROFEN, 100MG/5ML, ORAL SUSP., 150 ML, BOT.","BOTTLE",null,"Year or More | سنة او اكثر",null,null,"100mg",null,"Badanli"]
[{"$f":"IF(ISBLANK(B209),\"\",SUBTOTAL(103,$B$3:B209))","v":207},"Medicines","IBUPROFEN, 200 MG, TAB.","TABLET",null,"Year or More | سنة او اكثر",null,null,"200mg",null,"Badanli"]
[{"$f":"IF(ISBLANK(B210),\"\",SUBTOTAL(103,$B$3:B210))","v":208},"Medicines","INSULIN HUMAN, BIPHASIC 30-70 IU/ML, 10ML, VIAL N","VIAL",null,"Year or More | سنة او اكثر",null,null,null,null,"Badanli"]
[{"$f":"IF(ISBLANK(B211),\"\",SUBTOTAL(103,$B$3:B211))","v":209},"Medicines","ISOSORBIDE DINITRATE 10MG","TABLET",null,"Year or More | سنة او اكثر",null,null,"10mg",null,"Badanli"]
[{"$f":"IF(ISBLANK(B212),\"\",SUBTOTAL(103,$B$3:B212))","v":210},"Medicines","ISOSORBIDE DINITRATE, 5 MG, SUBLINGUAL TAB.","TABLET",null,"Year or More | سنة او اكثر",null,null,"5mg",null,"Badanli"]
[{"$f":"IF(ISBLANK(B213),\"\",SUBTOTAL(103,$B$3:B213))","v":211},"Medicines","LACTULOSE, 3.1 G/5ML, ORAL SOL., BOT.","BOTTLE",null,"Year or More | سنة او اكثر",null,null,"3.1 g",null,"Badanli"]
[{"$f":"IF(ISBLANK(B214),\"\",SUBTOTAL(103,$B$3:B214))","v":212},"Medicines","LANSOPRAZOLE 30MG","CAPSULE",null,"Year or More | سنة او اكثر",null,null,"30mg",null,"Badanli"]
[{"$f":"IF(ISBLANK(B215),\"\",SUBTOTAL(103,$B$3:B215))","v":213},"Medicines","LEVETIRACETAM 100 MG SYR","BOTTLE",null,"Year or More | سنة او اكثر",null,null,"100mg",null,"Badanli"]
[{"$f":"IF(ISBLANK(B216),\"\",SUBTOTAL(103,$B$3:B216))","v":214},"Medicines","LEVETIRACETAM 500 MG TAB","TABLET",null,"Year or More | سنة او اكثر",null,null,"500mg",null,"Badanli"]
[{"$f":"IF(ISBLANK(B217),\"\",SUBTOTAL(103,$B$3:B217))","v":215},"Medicines","LEVOFLOXACINE 500 MG TAB","TABLET",null,"Year or More | سنة او اكثر",null,null,"500mg",null,"Badanli"]
[{"$f":"IF(ISBLANK(B218),\"\",SUBTOTAL(103,$B$3:B218))","v":216},"Medicines","LEVONORGESTERL+ETHYNILESTRADYOL 150MCG + 30MCG","TABLET",null,"Year or More | سنة او اكثر",null,null,"30mg",null,"Badanli"]
[{"$f":"IF(ISBLANK(B219),\"\",SUBTOTAL(103,$B$3:B219))","v":217},"Medicines","LIDOCAINE HYDROCHLORIDE, 1%, PRESERVATIVE-FREE, 10 ML, AMP","AMPOULE",null,"Year or More | سنة او اكثر",null,null,null,null,"Badanli"]
[{"$f":"IF(ISBLANK(B220),\"\",SUBTOTAL(103,$B$3:B220))","v":218},"Medicines","LINCOMYCIN-600 MG","AMPOULE",null,"Year or More | سنة او اكثر",null,null,"600mg",null,"Badanli"]
[{"$f":"IF(ISBLANK(B221),\"\",SUBTOTAL(103,$B$3:B221))","v":219},"Medicines","LORATADINE 2.5MG/5ML","BOTTLE",null,"Year or More | سنة او اكثر",null,null,"2.5mg",null,"Badanli"]
[{"$f":"IF(ISBLANK(B222),\"\",SUBTOTAL(103,$B$3:B222))","v":220},"Medicines","LORATADINE, 10MG, TAB.","TABLET",null,"Year or More | سنة او اكثر",null,null,"10mg",null,"Badanli"]
[{"$f":"IF(ISBLANK(B223),\"\",SUBTOTAL(103,$B$3:B223))","v":221},"Medicines","LOSARTAN 50MG+HYDROCHLORTHIAZIDE 12.5","TABLET",null,"Year or More | سنة او اكثر",null,null,"50mg",null,"Badanli"]
[{"$f":"IF(ISBLANK(B224),\"\",SUBTOTAL(103,$B$3:B224))","v":222},"Medicines","METFORMIN HCL 1000MG","TABLET",null,"Year or More | سنة او اكثر",null,null,"1000mg",null,"Badanli"]
[{"$f":"IF(ISBLANK(B225),\"\",SUBTOTAL(103,$B$3:B225))","v":223},"Medicines","METFORMIN HYDROCHLORIDE, 500 MG, TAB.","TABLET",null,"Year or More | سنة او اكثر",null,null,"500mg",null,"Badanli"]
[{"$f":"IF(ISBLANK(B226),\"\",SUBTOTAL(103,$B$3:B226))","v":224},"Medicines","METFORMIN HYDROCHLORIDE, 850 MG, TAB.","TABLET",null,"Year or More | سنة او اكثر",null,null,"850mg",null,"Badanli"]
[{"$f":"IF(ISBLANK(B227),\"\",SUBTOTAL(103,$B$3:B227))","v":225},"Medicines","METHYLDOPA, 250 MG","TABLET",null,"Year or More | سنة او اكثر",null,null,"250mg",null,"Badanli"]
[{"$f":"IF(ISBLANK(B228),\"\",SUBTOTAL(103,$B$3:B228))","v":226},"Medicines","METOPROLOL TARTARAT 50 MG","TABLET",null,"Year or More | سنة او اكثر",null,null,"50mg",null,"Badanli"]
[{"$f":"IF(ISBLANK(B229),\"\",SUBTOTAL(103,$B$3:B229))","v":227},"Medicines","METRONIDAZOLE 125MG/5ML SYRUP","BOTTLE",null,"Year or More | سنة او اكثر",null,null,"125mg",null,"Badanli"]
[{"$f":"IF(ISBLANK(B230),\"\",SUBTOTAL(103,$B$3:B230))","v":228},"Medicines","METRONIDAZOLE 500MG","TABLET",null,"Year or More | سنة او اكثر",null,null,"500mg",null,"Badanli"]
[{"$f":"IF(ISBLANK(B231),\"\",SUBTOTAL(103,$B$3:B231))","v":229},"Medicines","METRONIDAZOLE 500MG VAGINAL SUPP","VAGINAL",null,"Year or More | سنة او اكثر",null,null,"500mg",null,"Badanli"]
[{"$f":"IF(ISBLANK(B232),\"\",SUBTOTAL(103,$B$3:B232))","v":230},"Medicines","METRONIDAZOLE, 5 MG/ML, 100 ML, SEMI-RIGID BOT. PVC FREE","VIAL",null,"Year or More | سنة او اكثر",null,null,"5 mg",null,"Badanli"]
[{"$f":"IF(ISBLANK(B233),\"\",SUBTOTAL(103,$B$3:B233))","v":231},"Medicines","MICONAZOLE NITRATE, 2%, CREAM, 30 G, TUBE","TUBE",null,"Year or More | سنة او اكثر",null,null,"30mg",null,"Badanli"]
[{"$f":"IF(ISBLANK(B234),\"\",SUBTOTAL(103,$B$3:B234))","v":232},"Medicines","MICROLUT (LEVONORGESTREL)","TUBE",null,"Year or More | سنة او اكثر",null,null,null,null,"Badanli"]
[{"$f":"IF(ISBLANK(B235),\"\",SUBTOTAL(103,$B$3:B235))","v":233},"Medicines","MULTI VITAMINES AND MINERALS FOR PREGNANTS","TABLET",null,"Year or More | سنة او اكثر",null,null,null,null,"Badanli"]
[{"$f":"IF(ISBLANK(B236),\"\",SUBTOTAL(103,$B$3:B236))","v":234},"Medicines","MULTIVITAMIN","TABLET",null,"Year or More | سنة او اكثر",null,null,null,null,"Badanli"]
[{"$f":"IF(ISBLANK(B237),\"\",SUBTOTAL(103,$B$3:B237))","v":235},"Medicines","MULTIVITAMINS, TAB.","TABLET",null,"Year or More | سنة او اكثر",null,null,null,null,"Badanli"]
[{"$f":"IF(ISBLANK(B238),\"\",SUBTOTAL(103,$B$3:B238))","v":236},"Medicines","MUPIROCIN 2% TOPICAL CREAM 15G","TUBE",null,"Year or More | سنة او اكثر",null,null,"15g",null,"Badanli"]
[{"$f":"IF(ISBLANK(B239),\"\",SUBTOTAL(103,$B$3:B239))","v":237},"Medicines","NIMSULIDE 100 MG TAB","TABLET",null,"Year or More | سنة او اكثر",null,null,"100mg",null,"Badanli"]
[{"$f":"IF(ISBLANK(B240),\"\",SUBTOTAL(103,$B$3:B240))","v":238},"Medicines","NITROFURANTOINE 100MG TAB","TABLET",null,"Year or More | سنة او اكثر",null,null,"100mg",null,"Badanli"]
[{"$f":"IF(ISBLANK(B241),\"\",SUBTOTAL(103,$B$3:B241))","v":239},"Medicines","NITROFURANTOINE 50MG/5ML SUSP","BOTTLE",null,"Year or More | سنة او اكثر",null,null,"50mg",null,"Badanli"]
[{"$f":"IF(ISBLANK(B242),\"\",SUBTOTAL(103,$B$3:B242))","v":240},"Medicines","NYSTATIN, 100,000 IU/ML, ORAL SUSP. + GRADUATED DROPPER","BOTTLE",null,"Year or More | سنة او اكثر",null,null,"100,000 iu",null,"Badanli"]
[{"$f":"IF(ISBLANK(B243),\"\",SUBTOTAL(103,$B$3:B243))","v":241},"Medicines","OMEPRAZOLE SODIUM, EQ. 40 MG BASE, POWDER, VIAL, FR INFUSION","VIAL",null,"Year or More | سنة او اكثر",null,null,"40mg",null,"Badanli"]
[{"$f":"IF(ISBLANK(B244),\"\",SUBTOTAL(103,$B$3:B244))","v":242},"Medicines","OMEPRAZOLE, 40 MG","CAPSULE",null,"Year or More | سنة او اكثر",null,null,"40mg",null,"Badanli"]
[{"$f":"IF(ISBLANK(B245),\"\",SUBTOTAL(103,$B$3:B245))","v":243},"Medicines","ONDANESTRON HYDROCHLORIDE EQ, 4MG BASE, TAB","TABLET",null,"Year or More | سنة او اكثر",null,null,"4mg",null,"Badanli"]
[{"$f":"IF(ISBLANK(B246),\"\",SUBTOTAL(103,$B$3:B246))","v":244},"Medicines","ONDANSETRON HYDROCHLORIDE, EQ. 2MG/ML BASE, 2 ML, AMP.","AMPOULE",null,"Year or More | سنة او اكثر",null,null,"2mg",null,"Badanli"]
[{"$f":"IF(ISBLANK(B247),\"\",SUBTOTAL(103,$B$3:B247))","v":245},"Medicines","ONDANSETRON HYDROCHLORIDE, EQ. 8 MG BASE, TAB.","TABLET",null,"Year or More | سنة او اكثر",null,null,"8mg",null,"Badanli"]
[{"$f":"IF(ISBLANK(B248),\"\",SUBTOTAL(103,$B$3:B248))","v":246},"Medicines","ONDANSTERONE 4MG/5ML SYR","SYR",null,"Year or More | سنة او اكثر",null,null,"4mg",null,"Badanli"]
[{"$f":"IF(ISBLANK(B249),\"\",SUBTOTAL(103,$B$3:B249))","v":247},"Medicines","ONDANSTERONE 8MG AMP","AMPOULE",null,"Year or More | سنة او اكثر",null,null,"8mg",null,"Badanli"]
[{"$f":"IF(ISBLANK(B250),\"\",SUBTOTAL(103,$B$3:B250))","v":248},"Medicines","PARACETAMOL (ACETAMINOPHEN), 100 MG, TAB.","TABLET",null,"Year or More | سنة او اكثر",null,null,"100mg",null,"Badanli"]
[{"$f":"IF(ISBLANK(B251),\"\",SUBTOTAL(103,$B$3:B251))","v":249},"Medicines","PARACETAMOL (ACETAMINOPHEN), 120MG/5ML,ORAL SUSP.,100ML BOT.","BOTTLE",null,"Year or More | سنة او اكثر",null,null,"120mg/5ml",null,"Badanli"]
[{"$f":"IF(ISBLANK(B252),\"\",SUBTOTAL(103,$B$3:B252))","v":250},"Medicines","PARACETAMOL (ACETAMINOPHEN), 500 MG, TAB.","TABLET",null,"Year or More | سنة او اكثر",null,null,"500mg",null,"Badanli"]
[{"$f":"IF(ISBLANK(B253),\"\",SUBTOTAL(103,$B$3:B253))","v":251},"Medicines","PARACETAMOL (ACETAMINOPHEN),100 MG/ML, 50 ML, BOT.","BOTTLE",null,"Year or More | سنة او اكثر",null,null,"100 mg",null,"Badanli"]
[{"$f":"IF(ISBLANK(B254),\"\",SUBTOTAL(103,$B$3:B254))","v":252},"Medicines","PARACETAMOL 200 MG SYR","BOTTLE",null,"Year or More | سنة او اكثر",null,null,"200mg",null,"Badanli"]
[{"$f":"IF(ISBLANK(B255),\"\",SUBTOTAL(103,$B$3:B255))","v":253},"Medicines","PARACETAMOL 300MG + CHLOREZOXAZONE 250MG TAB","TABLET",null,"Year or More | سنة او اكثر",null,null,"250mg",null,"Badanli"]
[{"$f":"IF(ISBLANK(B256),\"\",SUBTOTAL(103,$B$3:B256))","v":254},"Medicines","PARACETAMOL 500 MG FLACONسيتامول وريدي","VIAL",null,"Year or More | سنة او اكثر",null,null,"500mg",null,"Badanli"]
[{"$f":"IF(ISBLANK(B257),\"\",SUBTOTAL(103,$B$3:B257))","v":255},"Medicines","PERMETHRIN 1% SHAMPOO","BOTTLE",null,"Year or More | سنة او اكثر",null,null,null,null,"Badanli"]
[{"$f":"IF(ISBLANK(B258),\"\",SUBTOTAL(103,$B$3:B258))","v":256},"Medicines","PERMETHRIN, 5%, CREAM, TUBE","TUBE",null,"Year or More | سنة او اكثر",null,null,null,null,"Badanli"]
[{"$f":"IF(ISBLANK(B259),\"\",SUBTOTAL(103,$B$3:B259))","v":257},"Medicines","PERMETHRIN, LOTION","TUBE",null,"Year or More | سنة او اكثر",null,null,null,null,"Badanli"]
[{"$f":"IF(ISBLANK(B260),\"\",SUBTOTAL(103,$B$3:B260))","v":258},"Medicines","PHENYTOIN SODIUM, 100 MG, TAB.","TABLET",null,"Year or More | سنة او اكثر",null,null,"100mg",null,"Badanli"]
[{"$f":"IF(ISBLANK(B261),\"\",SUBTOTAL(103,$B$3:B261))","v":259},"Medicines","POLYVIDONE IODINE, 10%, SOLUTION, 200 ML, DROPPER BOT.","BOTTLE",null,"Year or More | سنة او اكثر",null,null,"200ml",null,"Badanli"]
[{"$f":"IF(ISBLANK(B262),\"\",SUBTOTAL(103,$B$3:B262))","v":260},"Medicines","PREDNISOLONE 5MG","TABLET",null,"Year or More | سنة او اكثر",null,null,"5mg",null,"Badanli"]
[{"$f":"IF(ISBLANK(B263),\"\",SUBTOTAL(103,$B$3:B263))","v":261},"Medicines","PROGESTERONE 100MG","CAPSULE",null,"Year or More | سنة او اكثر",null,null,"100mg",null,"Badanli"]
[{"$f":"IF(ISBLANK(B264),\"\",SUBTOTAL(103,$B$3:B264))","v":262},"Medicines","PROSPAN SYR","BOTTLE",null,"Year or More | سنة او اكثر",null,null,null,null,"Badanli"]
[{"$f":"IF(ISBLANK(B265),\"\",SUBTOTAL(103,$B$3:B265))","v":263},"Medicines","PROSTASIN 0.4 MG /TAB","TABLET",null,"Year or More | سنة او اكثر",null,null,"0.4 mg ",null,"Badanli"]
[{"$f":"IF(ISBLANK(B266),\"\",SUBTOTAL(103,$B$3:B266))","v":264},"Medicines","RIVAROXABAN 20","TABLET",null,"Year or More | سنة او اكثر",null,null,null,null,"Badanli"]
[{"$f":"IF(ISBLANK(B267),\"\",SUBTOTAL(103,$B$3:B267))","v":265},"Medicines","SALBUTAMOL 2.5MG/ML NEBULES 2.5ML","BOTTLE",null,"Year or More | سنة او اكثر",null,null,"2.5mg",null,"Badanli"]
[{"$f":"IF(ISBLANK(B268),\"\",SUBTOTAL(103,$B$3:B268))","v":266},"Medicines","SALBUTAMOL 2MG -100MCG/ML 200 DOSES SPRAY","INHALER",null,"Year or More | سنة او اكثر",null,null,"2mg -100mcg",null,"Badanli"]
[{"$f":"IF(ISBLANK(B269),\"\",SUBTOTAL(103,$B$3:B269))","v":267},"Medicines","SIMETHICONE ORAL DROP 30ML","BOTTLE",null,"Year or More | سنة او اكثر",null,null,"30mg",null,"Badanli"]
[{"$f":"IF(ISBLANK(B270),\"\",SUBTOTAL(103,$B$3:B270))","v":268},"Medicines","SODIUM CHLORIDE, 0.9%, 1 L, FLEX. BAG, PVC FREE","BAG",null,"Year or More | سنة او اكثر",null,null,"1mg",null,"Badanli"]
[{"$f":"IF(ISBLANK(B271),\"\",SUBTOTAL(103,$B$3:B271))","v":269},"Medicines","SODIUM CHLORIDE, 0.9%, 500ML, PLAST. BOT.,IRRIGATION,STERILE","BAG",null,"Year or More | سنة او اكثر",null,null,"500mg",null,"Badanli"]
[{"$f":"IF(ISBLANK(B272),\"\",SUBTOTAL(103,$B$3:B272))","v":270},"Medicines","SPIRONOLACTONE, 25 MG, TAB.","TABLET",null,"Year or More | سنة او اكثر",null,null,"25mg",null,"Badanli"]
[{"$f":"IF(ISBLANK(B273),\"\",SUBTOTAL(103,$B$3:B273))","v":271},"Medicines","SULFADIAZINE SILVER, 1%, CREAM, STERILE, 50 G, TUBE","TUBE",null,"Year or More | سنة او اكثر",null,null,"50mg",null,"Badanli"]
[{"$f":"IF(ISBLANK(B274),\"\",SUBTOTAL(103,$B$3:B274))","v":272},"Medicines","TETRACYCLINE HYDROCHLORIDE, 1%, EYE OINTMENT, STER, 5G, TUBE","TUBE",null,"Year or More | سنة او اكثر",null,null,"5mg",null,"Badanli"]
[{"$f":"IF(ISBLANK(B275),\"\",SUBTOTAL(103,$B$3:B275))","v":273},"Medicines","TRIAMCINOLONE ACETONIDE 0.1 %, NEOMYCIN 0.25%, GRAMICIDIN 0.025%, NYSTATIN 100,000 UNITS CREAM 30GR","TUBE",null,"Year or More | سنة او اكثر",null,null,"30mg",null,"Badanli"]
[{"$f":"IF(ISBLANK(B276),\"\",SUBTOTAL(103,$B$3:B276))","v":274},"Medicines","VALPROATE SODIUM, 200 MG, GASTRO-RESISTANT TAB.","TABLET",null,"Year or More | سنة او اكثر",null,null,"200mg",null,"Badanli"]
[{"$f":"IF(ISBLANK(B277),\"\",SUBTOTAL(103,$B$3:B277))","v":275},"Medicines","VALPROATE SODIUM, 200 MG/ML, 40 ML, BOT. + SYRINGE","BOTTLE",null,"Year or More | سنة او اكثر",null,null,"200 mg",null,"Badanli"]
[{"$f":"IF(ISBLANK(B278),\"\",SUBTOTAL(103,$B$3:B278))","v":276},"Medicines","VALPROATE SODIUM, 500 MG, GASTRO-RESISTANT TAB.","TABLET",null,"Year or More | سنة او اكثر",null,null,"500mg",null,"Badanli"]
[{"$f":"IF(ISBLANK(B279),\"\",SUBTOTAL(103,$B$3:B279))","v":277},"Medicines","VALSARTAN+HYDROCHLOROTHIAZIDE 160/25 MG TAB","TABLET",null,"Year or More | سنة او اكثر",null,null,"160/25mg",null,"Badanli"]
[{"$f":"IF(ISBLANK(B280),\"\",SUBTOTAL(103,$B$3:B280))","v":278},"Medicines","VALSARTAN+HYDROCHLOROTHIAZIDE 80/12.5 MG TAB","TABLET",null,"Year or More | سنة او اكثر",null,null,"80/12.5mg",null,"Badanli"]
[{"$f":"IF(ISBLANK(B281),\"\",SUBTOTAL(103,$B$3:B281))","v":279},"Medicines","VIT D3 400 IU SYR","SYR",null,"Year or More | سنة او اكثر",null,null,"400iu",null,"Badanli"]
[{"$f":"IF(ISBLANK(B282),\"\",SUBTOTAL(103,$B$3:B282))","v":280},"Medicines","WARFARIN SODIUM 5MG TAB","TABLET",null,"Year or More | سنة او اكثر",null,null,"5mg",null,"Badanli"]
[{"$f":"IF(ISBLANK(B283),\"\",SUBTOTAL(103,$B$3:B283))","v":281},"Medicines","ZINC OXIDE, 10%, OINTMENT, 100 G, TUBE","TUBE",null,"Year or More | سنة او اكثر",null,null,"100mg",null,"Badanli"]
[{"$f":"IF(ISBLANK(B284),\"\",SUBTOTAL(103,$B$3:B284))","v":282},"Medicines","ZINC SULFATE, EQ. TO 20 MG ZINC MINERAL, DISPERSIBLE","TABLET",null,"Year or More | سنة او اكثر",null,null,"20mg",null,"Badanli"]
[{"$f":"IF(ISBLANK(B285),\"\",SUBTOTAL(103,$B$3:B285))","v":283},"Medicines","ACETYLSALICYLIC ACID 100MG","TABLET",null,"Year or More | سنة او اكثر",null,null,"100mg",null,"Ariha"]
[{"$f":"IF(ISBLANK(B286),\"\",SUBTOTAL(103,$B$3:B286))","v":284},"Medicines","ALBENDAZOLE 100MG/15ML","SYR",null,"Year or More | سنة او اكثر",null,null,"100mg",null,"Ariha"]
[{"$f":"IF(ISBLANK(B287),\"\",SUBTOTAL(103,$B$3:B287))","v":285},"Medicines","AMIKACIN 500MG","AMPOULE",null,"Year or More | سنة او اكثر",null,null,"500mg",null,"Ariha"]
[{"$f":"IF(ISBLANK(B288),\"\",SUBTOTAL(103,$B$3:B288))","v":286},"Medicines","AMLODIPINE 5MG","AMPOULE",null,"Year or More | سنة او اكثر",null,null,"5mg",null,"Ariha"]
[{"$f":"IF(ISBLANK(B289),\"\",SUBTOTAL(103,$B$3:B289))","v":287},"Medicines","AMOXICILLIN 250 SYRUP","TABLET",null,"Year or More | سنة او اكثر",null,null,"250mg",null,"Ariha"]
[{"$f":"IF(ISBLANK(B290),\"\",SUBTOTAL(103,$B$3:B290))","v":288},"Medicines","AMOXICILLIN 500MG","BOTTLE",null,"Year or More | سنة او اكثر",null,null,"500mg",null,"Ariha"]
[{"$f":"IF(ISBLANK(B291),\"\",SUBTOTAL(103,$B$3:B291))","v":289},"Medicines","AMOXICILLIN+ CLAVULANIC ACID SYRUP 228MG-70ML","TABLET",null,"Year or More | سنة او اكثر",null,null,"228mg/70ml",null,"Ariha"]
[{"$f":"IF(ISBLANK(B292),\"\",SUBTOTAL(103,$B$3:B292))","v":290},"Medicines","AMOXICILLIN+ CLAVULANIC ACID SYRUP 400MG+57MG- 70ML","BOTTLE",null,"Year or More | سنة او اكثر",null,null,"457mg/70ml",null,"Ariha"]
[{"$f":"IF(ISBLANK(B293),\"\",SUBTOTAL(103,$B$3:B293))","v":291},"Medicines","AMOXICILLIN+ CLAVULANIC ACID TABLET 1. G","BOTTLE",null,"Year or More | سنة او اكثر",null,null,"1mg",null,"Ariha"]
[{"$f":"IF(ISBLANK(B294),\"\",SUBTOTAL(103,$B$3:B294))","v":292},"Medicines","ATENOLOL 50MG","TABLET",null,"Year or More | سنة او اكثر",null,null,"50mg",null,"Ariha"]
[{"$f":"IF(ISBLANK(B295),\"\",SUBTOTAL(103,$B$3:B295))","v":293},"Medicines","ATORVASTATIN 20MG","TABLET",null,"Year or More | سنة او اكثر",null,null,"20mg",null,"Ariha"]
[{"$f":"IF(ISBLANK(B296),\"\",SUBTOTAL(103,$B$3:B296))","v":294},"Medicines","ATORVASTATIN 40MG","TABLET",null,"Year or More | سنة او اكثر",null,null,"40mg",null,"Ariha"]
[{"$f":"IF(ISBLANK(B297),\"\",SUBTOTAL(103,$B$3:B297))","v":295},"Medicines","AZITHROMYCIN 200MG/5ML SYRUP","TABLET",null,"Year or More | سنة او اكثر",null,null,"200mg",null,"Ariha"]
[{"$f":"IF(ISBLANK(B298),\"\",SUBTOTAL(103,$B$3:B298))","v":296},"Medicines","AZITHROMYCIN 500MG","TABLET",null,"Year or More | سنة او اكثر",null,null,"500mg",null,"Ariha"]
[{"$f":"IF(ISBLANK(B299),\"\",SUBTOTAL(103,$B$3:B299))","v":297},"Medicines","BETAMETHASONE VALERATE 0.1% 15G CREAM","BOTTLE",null,"Year or More | سنة او اكثر",null,null,"15g",null,"Ariha"]
[{"$f":"IF(ISBLANK(B300),\"\",SUBTOTAL(103,$B$3:B300))","v":298},"Medicines","BISOPROLOL 5MG","TABLET",null,"Year or More | سنة او اكثر",null,null,"5mg",null,"Ariha"]
[{"$f":"IF(ISBLANK(B301),\"\",SUBTOTAL(103,$B$3:B301))","v":299},"Medicines","CALCIUM+VIT D3","TUBE",null,"Year or More | سنة او اكثر",null,null,null,null,"Ariha"]
[{"$f":"IF(ISBLANK(B302),\"\",SUBTOTAL(103,$B$3:B302))","v":300},"Medicines","CAPTOPRIL 25MG","TABLET",null,"Year or More | سنة او اكثر",null,null,"25mg",null,"Ariha"]
[{"$f":"IF(ISBLANK(B303),\"\",SUBTOTAL(103,$B$3:B303))","v":301},"Medicines","CEFIXIME 100 MG SYRUP","INHALER",null,"Year or More | سنة او اكثر",null,null,"100mg",null,"Ariha"]
[{"$f":"IF(ISBLANK(B304),\"\",SUBTOTAL(103,$B$3:B304))","v":302},"Medicines","CEFIXIME 400 MG","EFF TABLET",null,"Year or More | سنة او اكثر",null,null,"400mg",null,"Ariha"]
[{"$f":"IF(ISBLANK(B305),\"\",SUBTOTAL(103,$B$3:B305))","v":303},"Medicines","CEFTRIAXONE 1000 MG","TABLET",null,"Year or More | سنة او اكثر",null,null,"1000mg",null,"Ariha"]
[{"$f":"IF(ISBLANK(B306),\"\",SUBTOTAL(103,$B$3:B306))","v":304},"Medicines","CEFTRIAXONE 500MG","VIAL",null,"Year or More | سنة او اكثر",null,null,"500mg",null,"Ariha"]
[{"$f":"IF(ISBLANK(B307),\"\",SUBTOTAL(103,$B$3:B307))","v":305},"Medicines","CETIRIZINE 10MG","BOTTLE",null,"Year or More | سنة او اكثر",null,null,"10mg",null,"Ariha"]
[{"$f":"IF(ISBLANK(B308),\"\",SUBTOTAL(103,$B$3:B308))","v":306},"Medicines","CHLORPHENAMINE/ PHENIRAMINE 45.5MG/2ML IN 5ML","TABLET",null,"Year or More | سنة او اكثر",null,null,"455mg/2ml",null,"Ariha"]
[{"$f":"IF(ISBLANK(B309),\"\",SUBTOTAL(103,$B$3:B309))","v":307},"Medicines","CIPROFLOXACIN 500","VIAL",null,"Year or More | سنة او اكثر",null,null,"500mg",null,"Ariha"]
[{"$f":"IF(ISBLANK(B310),\"\",SUBTOTAL(103,$B$3:B310))","v":308},"Medicines","CLOPIDOGREL 75MG","VIAL",null,"Year or More | سنة او اكثر",null,null,"75mg",null,"Ariha"]
[{"$f":"IF(ISBLANK(B311),\"\",SUBTOTAL(103,$B$3:B311))","v":309},"Medicines","CLOTRIMAZOLE 1% TOPICAL CREAM, TUBE 20GR TUBE","TABLET",null,"Year or More | سنة او اكثر",null,null,"20mg",null,"Ariha"]
[{"$f":"IF(ISBLANK(B312),\"\",SUBTOTAL(103,$B$3:B312))","v":310},"Medicines","DEXAMETHASONE 8MG/ML 2 ML","TABLET",null,"Year or More | سنة او اكثر",null,null,"8mg",null,"Ariha"]
[{"$f":"IF(ISBLANK(B313),\"\",SUBTOTAL(103,$B$3:B313))","v":311},"Medicines","DICLOFENAC SODIUM 50MG","TABLET",null,"Year or More | سنة او اكثر",null,null,"50mg",null,"Ariha"]
[{"$f":"IF(ISBLANK(B314),\"\",SUBTOTAL(103,$B$3:B314))","v":312},"Medicines","DICLOFENAC SODIUM 75 MG","TABLET",null,"Year or More | سنة او اكثر",null,null,"75mg",null,"Ariha"]
[{"$f":"IF(ISBLANK(B315),\"\",SUBTOTAL(103,$B$3:B315))","v":313},"Medicines","DIGOXIN 0.25 MG","CREAM",null,"Year or More | سنة او اكثر",null,null,"25mg",null,"Ariha"]
[{"$f":"IF(ISBLANK(B316),\"\",SUBTOTAL(103,$B$3:B316))","v":314},"Medicines","ENALAPRIL MALEATE 5MG","SYR",null,"Year or More | سنة او اكثر",null,null,"5mg",null,"Ariha"]
[{"$f":"IF(ISBLANK(B317),\"\",SUBTOTAL(103,$B$3:B317))","v":315},"Medicines","ETORICOXIBE 90MG","AMPOULE",null,"Year or More | سنة او اكثر",null,null,"90mg",null,"Ariha"]
[{"$f":"IF(ISBLANK(B318),\"\",SUBTOTAL(103,$B$3:B318))","v":316},"Medicines","FERRUM FOLIC ACID 200 MG+0.4MG","TABLET",null,"Year or More | سنة او اكثر",null,null,null,null,"Ariha"]
[{"$f":"IF(ISBLANK(B319),\"\",SUBTOTAL(103,$B$3:B319))","v":317},"Medicines","FLUNARIZINE 10MG CAP","AMPOULE",null,"Year or More | سنة او اكثر",null,null,"10mg",null,"Ariha"]
[{"$f":"IF(ISBLANK(B320),\"\",SUBTOTAL(103,$B$3:B320))","v":318},"Medicines","FOLIC ACID 5MG","TABLET",null,"Year or More | سنة او اكثر",null,null,"5mg",null,"Ariha"]
[{"$f":"IF(ISBLANK(B321),\"\",SUBTOTAL(103,$B$3:B321))","v":319},"Medicines","FUROSEMIDE 40MG","TABLET",null,"Year or More | سنة او اكثر",null,null,"40mg",null,"Ariha"]
[{"$f":"IF(ISBLANK(B322),\"\",SUBTOTAL(103,$B$3:B322))","v":320},"Medicines","FUROSEMIDE 40MG","AMPOULE",null,"Year or More | سنة او اكثر",null,null,"40mg",null,"Ariha"]
[{"$f":"IF(ISBLANK(B323),\"\",SUBTOTAL(103,$B$3:B323))","v":321},"Medicines","GLICLAZIDE 80MG","TABLET",null,"Year or More | سنة او اكثر",null,null,"80mg",null,"Ariha"]
[{"$f":"IF(ISBLANK(B324),\"\",SUBTOTAL(103,$B$3:B324))","v":322},"Medicines","GENTAMICIN 0.3% EYE / EAR DROP","TABLET",null,"Year or More | سنة او اكثر",null,null,null,null,"Ariha"]
[{"$f":"IF(ISBLANK(B325),\"\",SUBTOTAL(103,$B$3:B325))","v":323},"Medicines","HYDROCORTISONE 1% CREAM, TOPICAL 20MG","CAPSULE",null,"Year or More | سنة او اكثر",null,null,null,null,"Ariha"]
[{"$f":"IF(ISBLANK(B326),\"\",SUBTOTAL(103,$B$3:B326))","v":324},"Medicines","HYOSCINE N-BUTYL BROMIDE 10 MG","TABLET",null,"Year or More | سنة او اكثر",null,null,null,null,"Ariha"]
[{"$f":"IF(ISBLANK(B327),\"\",SUBTOTAL(103,$B$3:B327))","v":325},"Medicines","IBUPROFEN 100MG/5ML SYRUP","TABLET",null,"Year or More | سنة او اكثر",null,null,"100mg",null,"Ariha"]
[{"$f":"IF(ISBLANK(B328),\"\",SUBTOTAL(103,$B$3:B328))","v":326},"Medicines","IBUPROFEN 400MG","AMPOULE",null,"Year or More | سنة او اكثر",null,null,"400mg",null,"Ariha"]
[{"$f":"IF(ISBLANK(B329),\"\",SUBTOTAL(103,$B$3:B329))","v":327},"Medicines","ISOSORBIDE DINITRATE 5MG","TABLET",null,"Year or More | سنة او اكثر",null,null,"5mg",null,"Ariha"]
[{"$f":"IF(ISBLANK(B330),\"\",SUBTOTAL(103,$B$3:B330))","v":328},"Medicines","ISOSORBIDE DINITRATE 10MG","TABLET",null,"Year or More | سنة او اكثر",null,null,"10mg",null,"Ariha"]
[{"$f":"IF(ISBLANK(B331),\"\",SUBTOTAL(103,$B$3:B331))","v":329},"Medicines","KENACOMB TOPICAL CREAM 30GR","EYE DROP",null,"Year or More | سنة او اكثر",null,null,"30g",null,"Ariha"]
[{"$f":"IF(ISBLANK(B332),\"\",SUBTOTAL(103,$B$3:B332))","v":330},"Medicines","LANSOPRAZOLE 30MG","VIAL",null,"Year or More | سنة او اكثر",null,null,"30mg",null,"Ariha"]
[{"$f":"IF(ISBLANK(B333),\"\",SUBTOTAL(103,$B$3:B333))","v":331},"Medicines","LEVONORGESTERL+ETHYNILESTRADYOL 150MCG + 30MCG","TABLET",null,"Year or More | سنة او اكثر",null,null,"150mcg+30mcg",null,"Ariha"]
[{"$f":"IF(ISBLANK(B334),\"\",SUBTOTAL(103,$B$3:B334))","v":332},"Medicines","LINCOMYCIN-600 MG","BOTTLE",null,"Year or More | سنة او اكثر",null,null,"600mg",null,"Ariha"]
[{"$f":"IF(ISBLANK(B335),\"\",SUBTOTAL(103,$B$3:B335))","v":333},"Medicines","LORATADINE 2.5MG/5ML","TABLET",null,"Year or More | سنة او اكثر",null,null,"2.5mg",null,"Ariha"]
[{"$f":"IF(ISBLANK(B336),\"\",SUBTOTAL(103,$B$3:B336))","v":334},"Medicines","LORATADINE 5MG","TABLET",null,"Year or More | سنة او اكثر",null,null,"5mg",null,"Ariha"]
[{"$f":"IF(ISBLANK(B337),\"\",SUBTOTAL(103,$B$3:B337))","v":335},"Medicines","LOSARTAN 50MG+HYDROCHLORTHIAZIDE 12.5","TABLET",null,"Year or More | سنة او اكثر",null,null,"5mg",null,"Ariha"]
[{"$f":"IF(ISBLANK(B338),\"\",SUBTOTAL(103,$B$3:B338))","v":336},"Medicines","METFORMIN HCL 1000MG","TUBE",null,"Year or More | سنة او اكثر",null,null,"1000mg",null,"Ariha"]
[{"$f":"IF(ISBLANK(B339),\"\",SUBTOTAL(103,$B$3:B339))","v":337},"Medicines","METHYLDOPA, 250 MG","CAPSULE",null,"Year or More | سنة او اكثر",null,null,"250mg",null,"Ariha"]
[{"$f":"IF(ISBLANK(B340),\"\",SUBTOTAL(103,$B$3:B340))","v":338},"Medicines","METOPROLOL TARTARAT 50 MG","TABLET",null,"Year or More | سنة او اكثر",null,null,"50mg",null,"Ariha"]
[{"$f":"IF(ISBLANK(B341),\"\",SUBTOTAL(103,$B$3:B341))","v":339},"Medicines","METRONIDAZOLE 500MG VAGINAL SUPP","AMPOULE",null,"Year or More | سنة او اكثر",null,null,"500mg",null,"Ariha"]
[{"$f":"IF(ISBLANK(B342),\"\",SUBTOTAL(103,$B$3:B342))","v":340},"Medicines","METRONIDAZOLE 500MG","SYR",null,"Year or More | سنة او اكثر",null,null,"500mg",null,"Ariha"]
[{"$f":"IF(ISBLANK(B343),\"\",SUBTOTAL(103,$B$3:B343))","v":341},"Medicines","METRONIDAZOLE 125MG/5ML SYRUP","TABLET",null,"Year or More | سنة او اكثر",null,null,"125mg",null,"Ariha"]
[{"$f":"IF(ISBLANK(B344),\"\",SUBTOTAL(103,$B$3:B344))","v":342},"Medicines","MULTI VITAMINES AND MINERALS FOR PREGNANTS","TABLET",null,"Year or More | سنة او اكثر",null,null,null,null,"Ariha"]
[{"$f":"IF(ISBLANK(B345),\"\",SUBTOTAL(103,$B$3:B345))","v":343},"Medicines","MUPIROCIN 2% TOPICAL CREAM 15G","TABLET",null,"Year or More | سنة او اكثر",null,null,null,null,"Ariha"]
[{"$f":"IF(ISBLANK(B346),\"\",SUBTOTAL(103,$B$3:B346))","v":344},"Medicines","NITROFURANTOINE 100MG TAB","TABLET",null,"Year or More | سنة او اكثر",null,null,"100mg",null,"Ariha"]
[{"$f":"IF(ISBLANK(B347),\"\",SUBTOTAL(103,$B$3:B347))","v":345},"Medicines","NITROFURANTOINE 50MG/5ML SUSP","TABLET",null,"Year or More | سنة او اكثر",null,null,"50mg/5ml",null,"Ariha"]
[{"$f":"IF(ISBLANK(B348),\"\",SUBTOTAL(103,$B$3:B348))","v":346},"Medicines","OMEPRAZOLE, 40 MG","VAGINAL",null,"Year or More | سنة او اكثر",null,null,"40mg",null,"Ariha"]
[{"$f":"IF(ISBLANK(B349),\"\",SUBTOTAL(103,$B$3:B349))","v":347},"Medicines","ONDANSTERONE 4MG/5ML SYR","TABLET",null,"Year or More | سنة او اكثر",null,null,"4mg/5ml",null,"Ariha"]
[{"$f":"IF(ISBLANK(B350),\"\",SUBTOTAL(103,$B$3:B350))","v":348},"Medicines","ONDANSTERONE 8MG AMP","BOTTLE",null,"Year or More | سنة او اكثر",null,null,"8mg",null,"Ariha"]
[{"$f":"IF(ISBLANK(B351),\"\",SUBTOTAL(103,$B$3:B351))","v":349},"Medicines","ONDANSTERONE 8MG TAB","TABLET",null,"Year or More | سنة او اكثر",null,null,"8mg",null,"Ariha"]
[{"$f":"IF(ISBLANK(B352),\"\",SUBTOTAL(103,$B$3:B352))","v":350},"Medicines","ORAL REHYDRATION SALTS (O.R.S.), SACHET 20.5 G/1 L","TUBE",null,"Year or More | سنة او اكثر",null,null,"20.5 g",null,"Ariha"]
[{"$f":"IF(ISBLANK(B353),\"\",SUBTOTAL(103,$B$3:B353))","v":351},"Medicines","OXYMETAZOLINE 0.05%","TABLET",null,"Year or More | سنة او اكثر",null,null,"05mg",null,"Ariha"]
[{"$f":"IF(ISBLANK(B354),\"\",SUBTOTAL(103,$B$3:B354))","v":352},"Medicines","PARACETAMOL 120MG/5ML SYRUP","BOTTLE",null,"Year or More | سنة او اكثر",null,null,"120mg",null,"Ariha"]
[{"$f":"IF(ISBLANK(B355),\"\",SUBTOTAL(103,$B$3:B355))","v":353},"Medicines","PARACETAMOL 500MG","CAPSULE",null,"Year or More | سنة او اكثر",null,null,"500mg",null,"Ariha"]
[{"$f":"IF(ISBLANK(B356),\"\",SUBTOTAL(103,$B$3:B356))","v":354},"Medicines","PARACETAMOL 300MG + CHLOREZOXAZONE 250MG TAB","SYR",null,"Year or More | سنة او اكثر",null,null,"250mg",null,"Ariha"]
[{"$f":"IF(ISBLANK(B357),\"\",SUBTOTAL(103,$B$3:B357))","v":355},"Medicines","PERMETHRIN 1% SHAMPOO","AMPOULE",null,"Year or More | سنة او اكثر",null,null,null,null,"Ariha"]
[{"$f":"IF(ISBLANK(B358),\"\",SUBTOTAL(103,$B$3:B358))","v":356},"Medicines","PHENOBARBITAL 15MG","TABLET",null,"Year or More | سنة او اكثر",null,null,"15mg",null,"Ariha"]
[{"$f":"IF(ISBLANK(B359),\"\",SUBTOTAL(103,$B$3:B359))","v":357},"Medicines","PHYNETOIN 100MG","SACCHE",null,"Year or More | سنة او اكثر",null,null,"100mg",null,"Ariha"]
[{"$f":"IF(ISBLANK(B360),\"\",SUBTOTAL(103,$B$3:B360))","v":358},"Medicines","PREDNISOLONE 5MG","NASAL SPRAY",null,"Year or More | سنة او اكثر",null,null,"5mg",null,"Ariha"]
[{"$f":"IF(ISBLANK(B361),\"\",SUBTOTAL(103,$B$3:B361))","v":359},"Medicines","PREDNISOLONE 40MG","BOTTLE",null,"Year or More | سنة او اكثر",null,null,"40mg",null,"Ariha"]
[{"$f":"IF(ISBLANK(B362),\"\",SUBTOTAL(103,$B$3:B362))","v":360},"Medicines","PROGESTERONE 100MG","TABLET",null,"Year or More | سنة او اكثر",null,null,"100mg",null,"Ariha"]
[{"$f":"IF(ISBLANK(B363),\"\",SUBTOTAL(103,$B$3:B363))","v":361},"Medicines","PROSPAN SYR","TABLET",null,"Year or More | سنة او اكثر",null,null,null,null,"Ariha"]
[{"$f":"IF(ISBLANK(B364),\"\",SUBTOTAL(103,$B$3:B364))","v":362},"Medicines","PHENYLEPHRINE,TRIPROLIDINE1.25MG 100 ML SYR","BOTTLE",null,"Year or More | سنة او اكثر",null,null,"100mg",null,"Ariha"]
[{"$f":"IF(ISBLANK(B365),\"\",SUBTOTAL(103,$B$3:B365))","v":363},"Medicines","SALBUTAMOL 2MG -100MCG/ML 200 DOSES SPRAY","TABLET",null,"Year or More | سنة او اكثر",null,null,"2mg -100mcg",null,"Ariha"]
[{"$f":"IF(ISBLANK(B366),\"\",SUBTOTAL(103,$B$3:B366))","v":364},"Medicines","SALBUTAMOL 2.5MG/ML NEBULES 2.5ML","TABLET",null,"Year or More | سنة او اكثر",null,null,"2.5mg/2.5ml",null,"Ariha"]
[{"$f":"IF(ISBLANK(B367),\"\",SUBTOTAL(103,$B$3:B367))","v":365},"Medicines","SIMETHICONE ORAL DROP 30ML","TABLET",null,"Year or More | سنة او اكثر",null,null,"30ml",null,"Ariha"]
[{"$f":"IF(ISBLANK(B368),\"\",SUBTOTAL(103,$B$3:B368))","v":366},"Medicines","SPIRONOLACTONE 25MG","AMPOULE",null,"Year or More | سنة او اكثر",null,null,"25mg",null,"Ariha"]
[{"$f":"IF(ISBLANK(B369),\"\",SUBTOTAL(103,$B$3:B369))","v":367},"Medicines","SULFADIAZINE SILVER, 1%, CREAM, STERILE, 40 G","TABLET",null,"Year or More | سنة او اكثر",null,null,"40mg",null,"Ariha"]
[{"$f":"IF(ISBLANK(B370),\"\",SUBTOTAL(103,$B$3:B370))","v":368},"Medicines","SULFAMETHOXAZOLE + TRIMETHOPRIM 480MG","SYR",null,"Year or More | سنة او اكثر",null,null,"480mg",null,"Ariha"]
[{"$f":"IF(ISBLANK(B371),\"\",SUBTOTAL(103,$B$3:B371))","v":369},"Medicines","SULFAMETHOXAZOLE + TRIMETHOPRIM 240MG 100ML SUSP","SYR",null,"Year or More | سنة او اكثر",null,null,"240mg/100ml",null,"Ariha"]
[{"$f":"IF(ISBLANK(B372),\"\",SUBTOTAL(103,$B$3:B372))","v":370},"Medicines","TETRACYCLINE HYDROCHLORIDE, 1%, EYE OINTMENT, 5 G","INHALER",null,"Year or More | سنة او اكثر",null,null,"5mg",null,"Ariha"]
[{"$f":"IF(ISBLANK(B373),\"\",SUBTOTAL(103,$B$3:B373))","v":371},"Medicines","VIT D3 2.000 IU TAB","BOTTLE",null,"Year or More | سنة او اكثر",null,null,"2000iu",null,"Ariha"]
[{"$f":"IF(ISBLANK(B374),\"\",SUBTOTAL(103,$B$3:B374))","v":372},"Medicines","VIT D3 400 IU SYR","INHALER",null,"Year or More | سنة او اكثر",null,null,"400iu",null,"Ariha"]
[{"$f":"IF(ISBLANK(B375),\"\",SUBTOTAL(103,$B$3:B375))","v":373},"Medicines","ZOLMITRIPTANE 5MG 4 TABS","BOTTLE",null,"Year or More | سنة او اكثر",null,null,"4mg",null,"Ariha"]
[{"$f":"IF(ISBLANK(B376),\"\",SUBTOTAL(103,$B$3:B376))","v":374},"Medicines","SODIUM CHLORID 0.9 % 1 LITRE","BOTTLE",null,"Year or More | سنة او اكثر",null,null,null,null,"Ariha"]
[{"$f":"IF(ISBLANK(B377),\"\",SUBTOTAL(103,$B$3:B377))","v":375},"Medicines","GLUCOSE 5% 1 LITRE","TUBE",null,"Year or More | سنة او اكثر",null,null,null,null,"Ariha"]
[{"$f":"IF(ISBLANK(B378),\"\",SUBTOTAL(103,$B$3:B378))","v":376},"Medicines","Sulfamethoxazole + Trimethoprim 480Mg","TABLET",null,"Year or More | سنة او اكثر",null,null,"480mg",null,"Ariha"]
[{"$f":"IF(ISBLANK(B379),\"\",SUBTOTAL(103,$B$3:B379))","v":377},"Medicines","Sulfamethoxazole + Trimethoprim 240Mg 100ml susp","BOTTLE",null,"Year or More | سنة او اكثر",null,null,"100mg",null,"Ariha"]
[{"$f":"IF(ISBLANK(B380),\"\",SUBTOTAL(103,$B$3:B380))","v":378},"Medicines","TETRACYCLINE hydrochloride, 1%, eye ointment, 5 g","TUBE",null,"Year or More | سنة او اكثر",null,null,"5mg",null,"Ariha"]
[{"$f":"IF(ISBLANK(B381),\"\",SUBTOTAL(103,$B$3:B381))","v":379},"Medicines","Vit D3 2.000 IU tab","TABLET",null,"Year or More | سنة او اكثر",null,null,"2000iu",null,"Ariha"]
[{"$f":"IF(ISBLANK(B382),\"\",SUBTOTAL(103,$B$3:B382))","v":380},"Medicines","Vit D3 400 IU syr","SYR",null,"Year or More | سنة او اكثر",null,null,"400iu",null,"Ariha"]
[{"$f":"IF(ISBLANK(B383),\"\",SUBTOTAL(103,$B$3:B383))","v":381},"Medicines","ZINC sulfate, eq. to 20 mg zinc mineral, dispersible","TABLET",null,"Year or More | سنة او اكثر",null,null,"20mg",null,"Ariha"]
[{"$f":"IF(ISBLANK(B384),\"\",SUBTOTAL(103,$B$3:B384))","v":382},"Medicines","Zolmitriptane 5Mg 4 tabs","TABLET",null,"Year or More | سنة او اكثر",null,null,"5mg",null,"Ariha"]
[{"$f":"IF(ISBLANK(B385),\"\",SUBTOTAL(103,$B$3:B385))","v":383},"Medicines","sodium chlorid 0.9 % 1 Litre","INFUSION",null,"Year or More | سنة او اكثر",null,null,null,null,"Ariha"]
[{"$f":"IF(ISBLANK(B386),\"\",SUBTOTAL(103,$B$3:B386))","v":384},"Medicines","glucose 5% 1 Litre","INFUSION",null,"Year or More | سنة او اكثر",null,null,null,null,"Ariha"]
["Supplier Name | Tedarikçi Adı | اسم المزود"]
["Supplier Stamp & Signature | Tedarikçi Mühür ve İmzası | توقيع وختم المزود"]

{"sheet":"BoQ 01 ( Financial )","index":1,"n_rows":380,"n_cols":8,"rows_kept":380,"cut":false,"hidden":false,"merged":[[0,3,0,7]]}
["BoQ 01",null,"PR/Multi/MSF-FRB.01-D.01-B.09/GZT/PRO-HE/28-2-2025/Ra-Ba-Ar-B.01-D.01-B.09-02","Financial"]
["SN","Category\nKategori","Technical Specifications\nTeknik Özellikler","Unit\nBirim","Quantity\nMiktar ","UNIT PRICE","TOTAL PRICE","PHC"]
[{"$f":"IF(ISBLANK(B3),\"\",SUBTOTAL(103,$B$3:B3))","v":1},"Medicines","ACETYLSALICYLIC ACID (ASPIRIN), 75 MG, GASTRO-RESISTANT TAB.","TABLET",67200,null,{"$f":"Table145[[#This Row],[Quantity\nMiktar ]]*Table145[[#This Row],[UNIT PRICE]]","v":0},"Raju"]
[{"$f":"IF(ISBLANK(B4),\"\",SUBTOTAL(103,$B$3:B4))","v":2},"Medicines","ALLOPURINOL 300MG TAB","TABLET",6000,null,{"$f":"Table145[[#This Row],[Quantity\nMiktar ]]*Table145[[#This Row],[UNIT PRICE]]","v":0},"Raju"]
[{"$f":"IF(ISBLANK(B5),\"\",SUBTOTAL(103,$B$3:B5))","v":3},"Medicines","ALUMINIUM HYDROXIDE 400MG / MAGNESIUM HYDROX. 400MG,CHEW.TAB.","TABLET",15000,null,{"$f":"Table145[[#This Row],[Quantity\nMiktar ]]*Table145[[#This Row],[UNIT PRICE]]","v":0},"Raju"]
[{"$f":"IF(ISBLANK(B6),\"\",SUBTOTAL(103,$B$3:B6))","v":4},"Medicines","AMIKACIN 100MG","AMPOULE",504,null,{"$f":"Table145[[#This Row],[Quantity\nMiktar ]]*Table145[[#This Row],[UNIT PRICE]]","v":0},"Raju"]
[{"$f":"IF(ISBLANK(B7),\"\",SUBTOTAL(103,$B$3:B7))","v":5},"Medicines","AMIKACIN 500MG","AMPOULE",378,null,{"$f":"Table145[[#This Row],[Quantity\nMiktar ]]*Table145[[#This Row],[UNIT PRICE]]","v":0},"Raju"]
[{"$f":"IF(ISBLANK(B8),\"\",SUBTOTAL(103,$B$3:B8))","v":6},"Medicines","AMLODIPINE 5MG","TABLET",36000,null,{"$f":"Table145[[#This Row],[Quantity\nMiktar ]]*Table145[[#This Row],[UNIT PRICE]]","v":0},"Raju"]
[{"$f":"IF(ISBLANK(B9),\"\",SUBTOTAL(103,$B$3:B9))","v":7},"Medicines","AMLODIPINE/VALSARTAN 160/5","TABLET",18900,null,{"$f":"Table145[[#This Row],[Quantity\nMiktar ]]*Table145[[#This Row],[UNIT PRICE]]","v":0},"Raju"]
[{"$f":"IF(ISBLANK(B10),\"\",SUBTOTAL(103,$B$3:B10))","v":8},"Medicines","AMOXICILLIN 228MG / CLAVULANIC ACID, SYRUP 70ML","ORAL SUSPENSION",630,null,{"$f":"Table145[[#This Row],[Quantity\nMiktar ]]*Table145[[#This Row],[UNIT PRICE]]","v":0},"Raju"]
[{"$f":"IF(ISBLANK(B11),\"\",SUBTOTAL(103,$B$3:B11))","v":9},"Medicines","AMOXICILLIN 400MG / CLAVULANIC ACID, 57 MG / 5ML, POWDER ORAL SUSP 70ML","ORAL SUSPENSION",750,null,{"$f":"Table145[[#This Row],[Quantity\nMiktar ]]*Table145[[#This Row],[UNIT PRICE]]","v":0},"Raju"]
[{"$f":"IF(ISBLANK(B12),\"\",SUBTOTAL(103,$B$3:B12))","v":10},"Medicines","AMOXICILLIN 500MG, TAB.","CAPSULE",38000,null,{"$f":"Table145[[#This Row],[Quantity\nMiktar ]]*Table145[[#This Row],[UNIT PRICE]]","v":0},"Raju"]
[{"$f":"IF(ISBLANK(B13),\"\",SUBTOTAL(103,$B$3:B13))","v":11},"Medicines","AMOXICILLIN 875MG / CLAVULANIC ACID 125MG, TAB","TABLET",11500,null,{"$f":"Table145[[#This Row],[Quantity\nMiktar ]]*Table145[[#This Row],[UNIT PRICE]]","v":0},"Raju"]
[{"$f":"IF(ISBLANK(B14),\"\",SUBTOTAL(103,$B$3:B14))","v":12},"Medicines","AMOXICILLIN, 250MG/5ML, POWDER ORAL SUSP., 100 ML, BOT.","ORAL SUSPENSION",1260,null,{"$f":"Table145[[#This Row],[Quantity\nMiktar ]]*Table145[[#This Row],[UNIT PRICE]]","v":0},"Raju"]
[{"$f":"IF(ISBLANK(B15),\"\",SUBTOTAL(103,$B$3:B15))","v":13},"Medicines","ANTI -D","VIAL",25,null,{"$f":"Table145[[#This Row],[Quantity\nMiktar ]]*Table145[[#This Row],[UNIT PRICE]]","v":0},"Raju"]
[{"$f":"IF(ISBLANK(B16),\"\",SUBTOTAL(103,$B$3:B16))","v":14},"Medicines","ASCORBIC ACID (VITAMIN C), 250 MG, TAB.","TABLET",15000,null,{"$f":"Table145[[#This Row],[Quantity\nMiktar ]]*Table145[[#This Row],[UNIT PRICE]]","v":0},"Raju"]
[{"$f":"IF(ISBLANK(B17),\"\",SUBTOTAL(103,$B$3:B17))","v":15},"Medicines","ATENOLOL 50MG","TABLET",5400,null,{"$f":"Table145[[#This Row],[Quantity\nMiktar ]]*Table145[[#This Row],[UNIT PRICE]]","v":0},"Raju"]
[{"$f":"IF(ISBLANK(B18),\"\",SUBTOTAL(103,$B$3:B18))","v":16},"Medicines","ATORVASTATIN 40MG","TABLET",12600,null,{"$f":"Table145[[#This Row],[Quantity\nMiktar ]]*Table145[[#This Row],[UNIT PRICE]]","v":0},"Raju"]
[{"$f":"IF(ISBLANK(B19),\"\",SUBTOTAL(103,$B$3:B19))","v":17},"Medicines","AZITHROMYCIN 200MG/5ML SYRUP","BOTTLE",756,null,{"$f":"Table145[[#This Row],[Quantity\nMiktar ]]*Table145[[#This Row],[UNIT PRICE]]","v":0},"Raju"]
[{"$f":"IF(ISBLANK(B20),\"\",SUBTOTAL(103,$B$3:B20))","v":18},"Medicines","AZITHROMYCIN 500MG","TABLET",5670,null,{"$f":"Table145[[#This Row],[Quantity\nMiktar ]]*Table145[[#This Row],[UNIT PRICE]]","v":0},"Raju"]
[{"$f":"IF(ISBLANK(B21),\"\",SUBTOTAL(103,$B$3:B21))","v":19},"Medicines","B.COMBLEX","AMPOULE",1260,null,{"$f":"Table145[[#This Row],[Quantity\nMiktar ]]*Table145[[#This Row],[UNIT PRICE]]","v":0},"Raju"]
[{"$f":"IF(ISBLANK(B22),\"\",SUBTOTAL(103,$B$3:B22))","v":20},"Medicines","B.COMBLEX / TAB","TABLET",37800,null,{"$f":"Table145[[#This Row],[Quantity\nMiktar ]]*Table145[[#This Row],[UNIT PRICE]]","v":0},"Raju"]
[{"$f":"IF(ISBLANK(B23),\"\",SUBTOTAL(103,$B$3:B23))","v":21},"Medicines","BECLOMETASONE DIPROPIONATE, 0.10MG","INHALATION",1260,null,{"$f":"Table145[[#This Row],[Quantity\nMiktar ]]*Table145[[#This Row],[UNIT PRICE]]","v":0},"Raju"]
[{"$f":"IF(ISBLANK(B24),\"\",SUBTOTAL(103,$B$3:B24))","v":22},"Medicines","BENZYL BENZOATE, 25%, LOTION, 100 ML","BOTTLE",630,null,{"$f":"Table145[[#This Row],[Quantity\nMiktar ]]*Table145[[#This Row],[UNIT PRICE]]","v":0},"Raju"]
[{"$f":"IF(ISBLANK(B25),\"\",SUBTOTAL(103,$B$3:B25))","v":23},"Medicines","BETAHISTINE 16MG","TABLET",13860,null,{"$f":"Table145[[#This Row],[Quantity\nMiktar ]]*Table145[[#This Row],[UNIT PRICE]]","v":0},"Raju"]
[{"$f":"IF(ISBLANK(B26),\"\",SUBTOTAL(103,$B$3:B26))","v":24},"Medicines","BISACODYL 10 MG TAB ( LAXINE )","TABLET",6300,null,{"$f":"Table145[[#This Row],[Quantity\nMiktar ]]*Table145[[#This Row],[UNIT PRICE]]","v":0},"Raju"]
[{"$f":"IF(ISBLANK(B27),\"\",SUBTOTAL(103,$B$3:B27))","v":25},"Medicines","BISOPROLOL FUMARATE, 5 MG, BREAK.TAB.","TABLET",36000,null,{"$f":"Table145[[#This Row],[Quantity\nMiktar ]]*Table145[[#This Row],[UNIT PRICE]]","v":0},"Raju"]
[{"$f":"IF(ISBLANK(B28),\"\",SUBTOTAL(103,$B$3:B28))","v":26},"Medicines","CALCIUM+VIT D3","TABLET",18000,null,{"$f":"Table145[[#This Row],[Quantity\nMiktar ]]*Table145[[#This Row],[UNIT PRICE]]","v":0},"Raju"]
[{"$f":"IF(ISBLANK(B29),\"\",SUBTOTAL(103,$B$3:B29))","v":27},"Medicines","CARBAMAZEPINE, 200 MG, TAB.","TABLET",15120,null,{"$f":"Table145[[#This Row],[Quantity\nMiktar ]]*Table145[[#This Row],[UNIT PRICE]]","v":0},"Raju"]
[{"$f":"IF(ISBLANK(B30),\"\",SUBTOTAL(103,$B$3:B30))","v":28},"Medicines","CARBAMAZEPINE, 400MG, TAB.","TABLET",3600,null,{"$f":"Table145[[#This Row],[Quantity\nMiktar ]]*Table145[[#This Row],[UNIT PRICE]]","v":0},"Raju"]
[{"$f":"IF(ISBLANK(B31),\"\",SUBTOTAL(103,$B$3:B31))","v":29},"Medicines","CARBAMAZEPINE,100 MG","SYRUP",378,null,{"$f":"Table145[[#This Row],[Quantity\nMiktar ]]*Table145[[#This Row],[UNIT PRICE]]","v":0},"Raju"]
[{"$f":"IF(ISBLANK(B32),\"\",SUBTOTAL(103,$B$3:B32))","v":30},"Medicines","CEFIXIME 400 MG","TABLET",7560,null,{"$f":"Table145[[#This Row],[Quantity\nMiktar ]]*Table145[[#This Row],[UNIT PRICE]]","v":0},"Raju"]
[{"$f":"IF(ISBLANK(B33),\"\",SUBTOTAL(103,$B$3:B33))","v":31},"Medicines","CEFIXIME, 100MG/5ML, POWDER FOR ORAL SUSP., 60 ML, BOT.","BOTTLE",630,null,{"$f":"Table145[[#This Row],[Quantity\nMiktar ]]*Table145[[#This Row],[UNIT PRICE]]","v":0},"Raju"]
[{"$f":"IF(ISBLANK(B34),\"\",SUBTOTAL(103,$B$3:B34))","v":32},"Medicines","CEFTRIAXONE SODIUM, EQ.1 G BASE, POWDER, VIAL + LIDOCAINE IM","VIAL",2500,null,{"$f":"Table145[[#This Row],[Quantity\nMiktar ]]*Table145[[#This Row],[UNIT PRICE]]","v":0},"Raju"]
[{"$f":"IF(ISBLANK(B35),\"\",SUBTOTAL(103,$B$3:B35))","v":33},"Medicines","CEFTRIAXONE SODIUM, EQ.500 MG","VIAL",3000,null,{"$f":"Table145[[#This Row],[Quantity\nMiktar ]]*Table145[[#This Row],[UNIT PRICE]]","v":0},"Raju"]
[{"$f":"IF(ISBLANK(B36),\"\",SUBTOTAL(103,$B$3:B36))","v":34},"Medicines","CHLORPHENIRAMINE MALEATE","AMPOULE",1008,null,{"$f":"Table145[[#This Row],[Quantity\nMiktar ]]*Table145[[#This Row],[UNIT PRICE]]","v":0},"Raju"]
[{"$f":"IF(ISBLANK(B37),\"\",SUBTOTAL(103,$B$3:B37))","v":35},"Medicines","CHLORPHENIRAMINE MALEATE (2MG) + PARACETAMOL (500MG) + PHENYLEPHRINE (10MG) TAB","TABLET",18900,null,{"$f":"Table145[[#This Row],[Quantity\nMiktar ]]*Table145[[#This Row],[UNIT PRICE]]","v":0},"Raju"]
[{"$f":"IF(ISBLANK(B38),\"\",SUBTOTAL(103,$B$3:B38))","v":36},"Medicines","CIPROFLOXACIN HYDROCHLORIDE, EQ. 500 MG BASE, TAB.","TABLET",11340,null,{"$f":"Table145[[#This Row],[Quantity\nMiktar ]]*Table145[[#This Row],[UNIT PRICE]]","v":0},"Raju"]
[{"$f":"IF(ISBLANK(B39),\"\",SUBTOTAL(103,$B$3:B39))","v":37},"Medicines","CLOPIDOGREL 75MG","TABLET",36000,null,{"$f":"Table145[[#This Row],[Quantity\nMiktar ]]*Table145[[#This Row],[UNIT PRICE]]","v":0},"Raju"]
[{"$f":"IF(ISBLANK(B40),\"\",SUBTOTAL(103,$B$3:B40))","v":38},"Medicines","CLOTRIMAZOLE 1% TOPICAL CREAM, TUBE 20GR TUBE","CREAM",1260,null,{"$f":"Table145[[#This Row],[Quantity\nMiktar ]]*Table145[[#This Row],[UNIT PRICE]]","v":0},"Raju"]
[{"$f":"IF(ISBLANK(B41),\"\",SUBTOTAL(103,$B$3:B41))","v":39},"Medicines","CLOTRIMAZOLE, 500 MG, VAGINAL TAB. + APPLICATOR","OVUOL",1890,null,{"$f":"Table145[[#This Row],[Quantity\nMiktar ]]*Table145[[#This Row],[UNIT PRICE]]","v":0},"Raju"]
[{"$f":"IF(ISBLANK(B42),\"\",SUBTOTAL(103,$B$3:B42))","v":40},"Medicines","DEXAMETHASONE 8MG/ML 2 ML","AMPOULE",3780,null,{"$f":"Table145[[#This Row],[Quantity\nMiktar ]]*Table145[[#This Row],[UNIT PRICE]]","v":0},"Raju"]
[{"$f":"IF(ISBLANK(B43),\"\",SUBTOTAL(103,$B$3:B43))","v":41},"Medicines","DEXTROSE (GLUCOSE), 5%, 1000 ML, FLEX. BAG, PVC FREE","BAG",630,null,{"$f":"Table145[[#This Row],[Quantity\nMiktar ]]*Table145[[#This Row],[UNIT PRICE]]","v":0},"Raju"]
[{"$f":"IF(ISBLANK(B44),\"\",SUBTOTAL(103,$B$3:B44))","v":42},"Medicines","DIAZEPAM 5MG/ML ,2ML","AMPOULE",190,null,{"$f":"Table145[[#This Row],[Quantity\nMiktar ]]*Table145[[#This Row],[UNIT PRICE]]","v":0},"Raju"]
[{"$f":"IF(ISBLANK(B45),\"\",SUBTOTAL(103,$B$3:B45))","v":43},"Medicines","DICLOFENAC SODIUM 25 MG","SUPP",12000,null,{"$f":"Table145[[#This Row],[Quantity\nMiktar ]]*Table145[[#This Row],[UNIT PRICE]]","v":0},"Raju"]
[{"$f":"IF(ISBLANK(B46),\"\",SUBTOTAL(103,$B$3:B46))","v":44},"Medicines","DICLOFENAC SODIUM 50MG","TABLET",15000,null,{"$f":"Table145[[#This Row],[Quantity\nMiktar ]]*Table145[[#This Row],[UNIT PRICE]]","v":0},"Raju"]
[{"$f":"IF(ISBLANK(B47),\"\",SUBTOTAL(103,$B$3:B47))","v":45},"Medicines","DICLOFENAC SODIUM 75 MG","AMPOULE",2520,null,{"$f":"Table145[[#This Row],[Quantity\nMiktar ]]*Table145[[#This Row],[UNIT PRICE]]","v":0},"Raju"]
[{"$f":"IF(ISBLANK(B48),\"\",SUBTOTAL(103,$B$3:B48))","v":46},"Medicines","DICLOFENAC SODIUM GEL","GEL",1134,null,{"$f":"Table145[[#This Row],[Quantity\nMiktar ]]*Table145[[#This Row],[UNIT PRICE]]","v":0},"Raju"]
[{"$f":"IF(ISBLANK(B49),\"\",SUBTOTAL(103,$B$3:B49))","v":47},"Medicines","DIGOXIN 0.25 MG","TABLET",3780,null,{"$f":"Table145[[#This Row],[Quantity\nMiktar ]]*Table145[[#This Row],[UNIT PRICE]]","v":0},"Raju"]
[{"$f":"IF(ISBLANK(B50),\"\",SUBTOTAL(103,$B$3:B50))","v":48},"Medicines","ENALAPRIL MALEATE 5MG","TABLET",54000,null,{"$f":"Table145[[#This Row],[Quantity\nMiktar ]]*Table145[[#This Row],[UNIT PRICE]]","v":0},"Raju"]
[{"$f":"IF(ISBLANK(B51),\"\",SUBTOTAL(103,$B$3:B51))","v":49},"Medicines","EPINEPHRINE (ADRENALINE) TARTRATE, EQ.1MG/ML BASE, IM INJECT., 1ML","AMPOULE",1260,null,{"$f":"Table145[[#This Row],[Quantity\nMiktar ]]*Table145[[#This Row],[UNIT PRICE]]","v":0},"Raju"]
[{"$f":"IF(ISBLANK(B52),\"\",SUBTOTAL(103,$B$3:B52))","v":50},"Medicines","ETHINYLESTR. 0.03 MG / LEVONORGESTREL 0.15 MG, BLISTER 28TAB","TABLET",35280,null,{"$f":"Table145[[#This Row],[Quantity\nMiktar ]]*Table145[[#This Row],[UNIT PRICE]]","v":0},"Raju"]
[{"$f":"IF(ISBLANK(B53),\"\",SUBTOTAL(103,$B$3:B53))","v":51},"Medicines","ETORICOXIBE 90MG","TABLET",15120,null,{"$f":"Table145[[#This Row],[Quantity\nMiktar ]]*Table145[[#This Row],[UNIT PRICE]]","v":0},"Raju"]
[{"$f":"IF(ISBLANK(B54),\"\",SUBTOTAL(103,$B$3:B54))","v":52},"Medicines","FERROUS SALT EQ. 60 MG IRON / FOLIC ACID 0.4 MG, TAB","TABLET",37800,null,{"$f":"Table145[[#This Row],[Quantity\nMiktar ]]*Table145[[#This Row],[UNIT PRICE]]","v":0},"Raju"]
[{"$f":"IF(ISBLANK(B55),\"\",SUBTOTAL(103,$B$3:B55))","v":53},"Medicines","FERROUS SALT, EQ. IRON 45MG/5ML, SYRUP, 200ML, BOT.","BOTTLE",500,null,{"$f":"Table145[[#This Row],[Quantity\nMiktar ]]*Table145[[#This Row],[UNIT PRICE]]","v":0},"Raju"]
[{"$f":"IF(ISBLANK(B56),\"\",SUBTOTAL(103,$B$3:B56))","v":54},"Medicines","FOLIC ACID 5MG","TABLET",18900,null,{"$f":"Table145[[#This Row],[Quantity\nMiktar ]]*Table145[[#This Row],[UNIT PRICE]]","v":0},"Raju"]
[{"$f":"IF(ISBLANK(B57),\"\",SUBTOTAL(103,$B$3:B57))","v":55},"Medicines","FUROSEMIDE, 40 MG, TAB.","TABLET",18900,null,{"$f":"Table145[[#This Row],[Quantity\nMiktar ]]*Table145[[#This Row],[UNIT PRICE]]","v":0},"Raju"]
[{"$f":"IF(ISBLANK(B58),\"\",SUBTOTAL(103,$B$3:B58))","v":56},"Medicines","GLEBENGLAMIDE 5MG","TABLET",36000,null,{"$f":"Table145[[#This Row],[Quantity\nMiktar ]]*Table145[[#This Row],[UNIT PRICE]]","v":0},"Raju"]
[{"$f":"IF(ISBLANK(B59),\"\",SUBTOTAL(103,$B$3:B59))","v":57},"Medicines","GLICLAZIDE 80MG","TABLET",37800,null,{"$f":"Table145[[#This Row],[Quantity\nMiktar ]]*Table145[[#This Row],[UNIT PRICE]]","v":0},"Raju"]
[{"$f":"IF(ISBLANK(B60),\"\",SUBTOTAL(103,$B$3:B60))","v":58},"Medicines","GLYCERIN ","SUPP",1890,null,{"$f":"Table145[[#This Row],[Quantity\nMiktar ]]*Table145[[#This Row],[UNIT PRICE]]","v":0},"Raju"]
[{"$f":"IF(ISBLANK(B61),\"\",SUBTOTAL(103,$B$3:B61))","v":59},"Medicines","HYDROCORTISONE 1% CREAM, TOPICAL 20MG","CREAM",1260,null,{"$f":"Table145[[#This Row],[Quantity\nMiktar ]]*Table145[[#This Row],[UNIT PRICE]]","v":0},"Raju"]
[{"$f":"IF(ISBLANK(B62),\"\",SUBTOTAL(103,$B$3:B62))","v":60},"Medicines","HYDROCORTISONE 100MG","VIAL",630,null,{"$f":"Table145[[#This Row],[Quantity\nMiktar ]]*Table145[[#This Row],[UNIT PRICE]]","v":0},"Raju"]
[{"$f":"IF(ISBLANK(B63),\"\",SUBTOTAL(103,$B$3:B63))","v":61},"Medicines","HYOSCINE BUTYLBROMIDE (SCOPOLAMINE BUTYLBROM), 20 MG/1ML,AMP","AMPOULE",1890,null,{"$f":"Table145[[#This Row],[Quantity\nMiktar ]]*Table145[[#This Row],[UNIT PRICE]]","v":0},"Raju"]
[{"$f":"IF(ISBLANK(B64),\"\",SUBTOTAL(103,$B$3:B64))","v":62},"Medicines","HYOSCINE BUTYLBROMIDE (SCOPOLAMINE BUTYLBROMIDE), 10 MG, TAB","TABLET",24000,null,{"$f":"Table145[[#This Row],[Quantity\nMiktar ]]*Table145[[#This Row],[UNIT PRICE]]","v":0},"Raju"]
[{"$f":"IF(ISBLANK(B65),\"\",SUBTOTAL(103,$B$3:B65))","v":63},"Medicines","IBUPROFEN 400MG","TABLET",60000,null,{"$f":"Table145[[#This Row],[Quantity\nMiktar ]]*Table145[[#This Row],[UNIT PRICE]]","v":0},"Raju"]
[{"$f":"IF(ISBLANK(B66),\"\",SUBTOTAL(103,$B$3:B66))","v":64},"Medicines","IBUPROFEN, 100MG/5ML, ORAL SUSP., 150 ML, BOT.","ORAL SUSPENSION",1260,null,{"$f":"Table145[[#This Row],[Quantity\nMiktar ]]*Table145[[#This Row],[UNIT PRICE]]","v":0},"Raju"]
[{"$f":"IF(ISBLANK(B67),\"\",SUBTOTAL(103,$B$3:B67))","v":65},"Medicines","IDROCIL","EYE DROP",600,null,{"$f":"Table145[[#This Row],[Quantity\nMiktar ]]*Table145[[#This Row],[UNIT PRICE]]","v":0},"Raju"]
[{"$f":"IF(ISBLANK(B68),\"\",SUBTOTAL(103,$B$3:B68))","v":66},"Medicines","INSULIN HUMAN, BIPHASIC 30-70 IU/ML, 10ML, VIAL N","VIAL",1200,null,{"$f":"Table145[[#This Row],[Quantity\nMiktar ]]*Table145[[#This Row],[UNIT PRICE]]","v":0},"Raju"]
[{"$f":"IF(ISBLANK(B69),\"\",SUBTOTAL(103,$B$3:B69))","v":67},"Medicines","ISOSORBIDE DINITRATE 10MG","TABLET",7560,null,{"$f":"Table145[[#This Row],[Quantity\nMiktar ]]*Table145[[#This Row],[UNIT PRICE]]","v":0},"Raju"]
[{"$f":"IF(ISBLANK(B70),\"\",SUBTOTAL(103,$B$3:B70))","v":68},"Medicines","LACTULOSE, 3.1 G/5ML, ORAL SOL., BOT.","BOTTLE",315,null,{"$f":"Table145[[#This Row],[Quantity\nMiktar ]]*Table145[[#This Row],[UNIT PRICE]]","v":0},"Raju"]
[{"$f":"IF(ISBLANK(B71),\"\",SUBTOTAL(103,$B$3:B71))","v":69},"Medicines","LEVETIRACETAM 500 MG TAB","TABLET",5040,null,{"$f":"Table145[[#This Row],[Quantity\nMiktar ]]*Table145[[#This Row],[UNIT PRICE]]","v":0},"Raju"]
[{"$f":"IF(ISBLANK(B72),\"\",SUBTOTAL(103,$B$3:B72))","v":70},"Medicines","LEVOTHYROXINE SODIUM 100 MCG TAB","TABLET",7560,null,{"$f":"Table145[[#This Row],[Quantity\nMiktar ]]*Table145[[#This Row],[UNIT PRICE]]","v":0},"Raju"]
[{"$f":"IF(ISBLANK(B73),\"\",SUBTOTAL(103,$B$3:B73))","v":71},"Medicines","LIDOCAINE HYDROCHLORIDE, 2%, PRESERVATIVE-FREE, 20 ML, AMP","AMPOULE",378,null,{"$f":"Table145[[#This Row],[Quantity\nMiktar ]]*Table145[[#This Row],[UNIT PRICE]]","v":0},"Raju"]
[{"$f":"IF(ISBLANK(B74),\"\",SUBTOTAL(103,$B$3:B74))","v":72},"Medicines","LINCOMYCIN-300MG","AMPOULE",882,null,{"$f":"Table145[[#This Row],[Quantity\nMiktar ]]*Table145[[#This Row],[UNIT PRICE]]","v":0},"Raju"]
[{"$f":"IF(ISBLANK(B75),\"\",SUBTOTAL(103,$B$3:B75))","v":73},"Medicines","LINCOMYCIN-600 MG","AMPOULE",1134,null,{"$f":"Table145[[#This Row],[Quantity\nMiktar ]]*Table145[[#This Row],[UNIT PRICE]]","v":0},"Raju"]
[{"$f":"IF(ISBLANK(B76),\"\",SUBTOTAL(103,$B$3:B76))","v":74},"Medicines","LORATADINE 2.5MG/5ML","ORAL SUSPENSION",378,null,{"$f":"Table145[[#This Row],[Quantity\nMiktar ]]*Table145[[#This Row],[UNIT PRICE]]","v":0},"Raju"]
[{"$f":"IF(ISBLANK(B77),\"\",SUBTOTAL(103,$B$3:B77))","v":75},"Medicines","LORATADINE, 10MG, TAB.","TABLET",12600,null,{"$f":"Table145[[#This Row],[Quantity\nMiktar ]]*Table145[[#This Row],[UNIT PRICE]]","v":0},"Raju"]
[{"$f":"IF(ISBLANK(B78),\"\",SUBTOTAL(103,$B$3:B78))","v":76},"Medicines","LOSARTAN 50MG+HYDROCHLORTHIAZIDE 12.5","TABLET",12600,null,{"$f":"Table145[[#This Row],[Quantity\nMiktar ]]*Table145[[#This Row],[UNIT PRICE]]","v":0},"Raju"]
[{"$f":"IF(ISBLANK(B79),\"\",SUBTOTAL(103,$B$3:B79))","v":77},"Medicines","MEFENAMIC ACID 500 MG","TABLET",5040,null,{"$f":"Table145[[#This Row],[Quantity\nMiktar ]]*Table145[[#This Row],[UNIT PRICE]]","v":0},"Raju"]
[{"$f":"IF(ISBLANK(B80),\"\",SUBTOTAL(103,$B$3:B80))","v":78},"Medicines","METFORMIN HCL 500 MG","TABLET",54000,null,{"$f":"Table145[[#This Row],[Quantity\nMiktar ]]*Table145[[#This Row],[UNIT PRICE]]","v":0},"Raju"]
[{"$f":"IF(ISBLANK(B81),\"\",SUBTOTAL(103,$B$3:B81))","v":79},"Medicines","METOPROLOL TARTARAT 50 MG","TABLET",6300,null,{"$f":"Table145[[#This Row],[Quantity\nMiktar ]]*Table145[[#This Row],[UNIT PRICE]]","v":0},"Raju"]
[{"$f":"IF(ISBLANK(B82),\"\",SUBTOTAL(103,$B$3:B82))","v":80},"Medicines","METRONIDAZOLE + MICONAZOLE","SUPP",2400,null,{"$f":"Table145[[#This Row],[Quantity\nMiktar ]]*Table145[[#This Row],[UNIT PRICE]]","v":0},"Raju"]
[{"$f":"IF(ISBLANK(B83),\"\",SUBTOTAL(103,$B$3:B83))","v":81},"Medicines","METRONIDAZOLE 125MG/5ML SYRUP","BOTTLE",1134,null,{"$f":"Table145[[#This Row],[Quantity\nMiktar ]]*Table145[[#This Row],[UNIT PRICE]]","v":0},"Raju"]
[{"$f":"IF(ISBLANK(B84),\"\",SUBTOTAL(103,$B$3:B84))","v":82},"Medicines","METRONIDAZOLE 500MG","TABLET",18900,null,{"$f":"Table145[[#This Row],[Quantity\nMiktar ]]*Table145[[#This Row],[UNIT PRICE]]","v":0},"Raju"]
[{"$f":"IF(ISBLANK(B85),\"\",SUBTOTAL(103,$B$3:B85))","v":83},"Medicines","METRONIDAZOLE, 5 MG/ML, 100 ML, SEMI-RIGID BOT. PVC FREE","VIAL",945,null,{"$f":"Table145[[#This Row],[Quantity\nMiktar ]]*Table145[[#This Row],[UNIT PRICE]]","v":0},"Raju"]
[{"$f":"IF(ISBLANK(B86),\"\",SUBTOTAL(103,$B$3:B86))","v":84},"Medicines","MICONAZOLE NITRATE, 2%, CREAM, 30 G, TUBE","TUBE",1260,null,{"$f":"Table145[[#This Row],[Quantity\nMiktar ]]*Table145[[#This Row],[UNIT PRICE]]","v":0},"Raju"]
[{"$f":"IF(ISBLANK(B87),\"\",SUBTOTAL(103,$B$3:B87))","v":85},"Medicines","MISOPROSTOL 200MCG","TABLET",1260,null,{"$f":"Table145[[#This Row],[Quantity\nMiktar ]]*Table145[[#This Row],[UNIT PRICE]]","v":0},"Raju"]
[{"$f":"IF(ISBLANK(B88),\"\",SUBTOTAL(103,$B$3:B88))","v":86},"Medicines","NIMESULIDE 100 MG","TABLET",15000,null,{"$f":"Table145[[#This Row],[Quantity\nMiktar ]]*Table145[[#This Row],[UNIT PRICE]]","v":0},"Raju"]
[{"$f":"IF(ISBLANK(B89),\"\",SUBTOTAL(103,$B$3:B89))","v":87},"Medicines","NITROFURANTOIN 100 MG","TABLET",6000,null,{"$f":"Table145[[#This Row],[Quantity\nMiktar ]]*Table145[[#This Row],[UNIT PRICE]]","v":0},"Raju"]
[{"$f":"IF(ISBLANK(B90),\"\",SUBTOTAL(103,$B$3:B90))","v":88},"Medicines","NYSTATIN, 100,000 IU/ML, ORAL SUSP. + GRADUATED DROPPER","ORAL SUSPENSION",1260,null,{"$f":"Table145[[#This Row],[Quantity\nMiktar ]]*Table145[[#This Row],[UNIT PRICE]]","v":0},"Raju"]
[{"$f":"IF(ISBLANK(B91),\"\",SUBTOTAL(103,$B$3:B91))","v":89},"Medicines","OMEPRAZOLE SODIUM, EQ. 40 MG BASE, POWDER, VIAL, FR INFUSION","VIAL",1260,null,{"$f":"Table145[[#This Row],[Quantity\nMiktar ]]*Table145[[#This Row],[UNIT PRICE]]","v":0},"Raju"]
[{"$f":"IF(ISBLANK(B92),\"\",SUBTOTAL(103,$B$3:B92))","v":90},"Medicines","OMEPRAZOLE, 40 MG","CAPSULE",16000,null,{"$f":"Table145[[#This Row],[Quantity\nMiktar ]]*Table145[[#This Row],[UNIT PRICE]]","v":0},"Raju"]
[{"$f":"IF(ISBLANK(B93),\"\",SUBTOTAL(103,$B$3:B93))","v":91},"Medicines","ONDANSETRON HYDROCHLORIDE, EQ. 8 MG BASE, TAB.","TABLET",9000,null,{"$f":"Table145[[#This Row],[Quantity\nMiktar ]]*Table145[[#This Row],[UNIT PRICE]]","v":0},"Raju"]
[{"$f":"IF(ISBLANK(B94),\"\",SUBTOTAL(103,$B$3:B94))","v":92},"Medicines","ONDANSTERONE 4MG/5ML SYR","SYR",567,null,{"$f":"Table145[[#This Row],[Quantity\nMiktar ]]*Table145[[#This Row],[UNIT PRICE]]","v":0},"Raju"]
[{"$f":"IF(ISBLANK(B95),\"\",SUBTOTAL(103,$B$3:B95))","v":93},"Medicines","ONDANSTERONE 8MG AMP","AMPOULE",1890,null,{"$f":"Table145[[#This Row],[Quantity\nMiktar ]]*Table145[[#This Row],[UNIT PRICE]]","v":0},"Raju"]
[{"$f":"IF(ISBLANK(B96),\"\",SUBTOTAL(103,$B$3:B96))","v":94},"Medicines","OXYTOCIN 10 UI / ML","AMPOULE",315,null,{"$f":"Table145[[#This Row],[Quantity\nMiktar ]]*Table145[[#This Row],[UNIT PRICE]]","v":0},"Raju"]
[{"$f":"IF(ISBLANK(B97),\"\",SUBTOTAL(103,$B$3:B97))","v":95},"Medicines","PARACETAMOL (ACETAMINOPHEN), 120MG/5ML,ORAL SUSP.,100ML BOT.","ORAL SUSPENSION",1890,null,{"$f":"Table145[[#This Row],[Quantity\nMiktar ]]*Table145[[#This Row],[UNIT PRICE]]","v":0},"Raju"]
[{"$f":"IF(ISBLANK(B98),\"\",SUBTOTAL(103,$B$3:B98))","v":96},"Medicines","PARACETAMOL (ACETAMINOPHEN), 500 MG, TAB.","TABLET",75600,null,{"$f":"Table145[[#This Row],[Quantity\nMiktar ]]*Table145[[#This Row],[UNIT PRICE]]","v":0},"Raju"]
[{"$f":"IF(ISBLANK(B99),\"\",SUBTOTAL(103,$B$3:B99))","v":97},"Medicines","PARACETAMOL (ACETAMINOPHEN),10 MG/ML, 100ML, BOT.","BOTTLE",1260,null,{"$f":"Table145[[#This Row],[Quantity\nMiktar ]]*Table145[[#This Row],[UNIT PRICE]]","v":0},"Raju"]
[{"$f":"IF(ISBLANK(B100),\"\",SUBTOTAL(103,$B$3:B100))","v":98},"Medicines","PARACETAMOL 300MG + CHLOREZOXAZONE 250MG TAB","TABLET",12600,null,{"$f":"Table145[[#This Row],[Quantity\nMiktar ]]*Table145[[#This Row],[UNIT PRICE]]","v":0},"Raju"]
[{"$f":"IF(ISBLANK(B101),\"\",SUBTOTAL(103,$B$3:B101))","v":99},"Medicines","PHENOBARBITAL 15MG","TABLET",1890,null,{"$f":"Table145[[#This Row],[Quantity\nMiktar ]]*Table145[[#This Row],[UNIT PRICE]]","v":0},"Raju"]
[{"$f":"IF(ISBLANK(B102),\"\",SUBTOTAL(103,$B$3:B102))","v":100},"Medicines","PHENYTOIN SODIUM, 100 MG, TAB.","TABLET",2520,null,{"$f":"Table145[[#This Row],[Quantity\nMiktar ]]*Table145[[#This Row],[UNIT PRICE]]","v":0},"Raju"]
[{"$f":"IF(ISBLANK(B103),\"\",SUBTOTAL(103,$B$3:B103))","v":101},"Medicines","POLYVIDONE IODINE, 10%, SOLUTION, 1000ML, DROPPER BOT.","BOTTLE",126,null,{"$f":"Table145[[#This Row],[Quantity\nMiktar ]]*Table145[[#This Row],[UNIT PRICE]]","v":0},"Raju"]
[{"$f":"IF(ISBLANK(B104),\"\",SUBTOTAL(103,$B$3:B104))","v":102},"Medicines","PREDNISOLONE 20 MG","TABLET",6000,null,{"$f":"Table145[[#This Row],[Quantity\nMiktar ]]*Table145[[#This Row],[UNIT PRICE]]","v":0},"Raju"]
[{"$f":"IF(ISBLANK(B105),\"\",SUBTOTAL(103,$B$3:B105))","v":103},"Medicines","PREDNISOLONE 5MG","TABLET",12600,null,{"$f":"Table145[[#This Row],[Quantity\nMiktar ]]*Table145[[#This Row],[UNIT PRICE]]","v":0},"Raju"]
[{"$f":"IF(ISBLANK(B106),\"\",SUBTOTAL(103,$B$3:B377))","v":375},"Medicines","RECSIL","SUPP",12000,null,{"$f":"Table145[[#This Row],[Quantity\nMiktar ]]*Table145[[#This Row],[UNIT PRICE]]","v":0},"Raju"]
[{"$f":"IF(ISBLANK(B107),\"\",SUBTOTAL(103,$B$3:B107))","v":105},"Medicines","RINGER LACTATE, 500 ML, FLEX. BAG, PVC FREE","BAG",1260,null,{"$f":"Table145[[#This Row],[Quantity\nMiktar ]]*Table145[[#This Row],[UNIT PRICE]]","v":0},"Raju"]
[{"$f":"IF(ISBLANK(B108),\"\",SUBTOTAL(103,$B$3:B108))","v":106},"Medicines","SALBUTAMOL 2.5MG/ 2.5ML NEBULIZED","NEBULIZED",3780,null,{"$f":"Table145[[#This Row],[Quantity\nMiktar ]]*Table145[[#This Row],[UNIT PRICE]]","v":0},"Raju"]
[{"$f":"IF(ISBLANK(B109),\"\",SUBTOTAL(103,$B$3:B109))","v":107},"Medicines","SALBUTAMOL 2MG -100MCG/ML 200 DOSES SPRAY","INHALER",2520,null,{"$f":"Table145[[#This Row],[Quantity\nMiktar ]]*Table145[[#This Row],[UNIT PRICE]]","v":0},"Raju"]
[{"$f":"IF(ISBLANK(B110),\"\",SUBTOTAL(103,$B$3:B110))","v":108},"Medicines","SODIUM CHLORIDE, 0.9%, 1 L, FLEX. BAG, PVC FREE","BAG",378,null,{"$f":"Table145[[#This Row],[Quantity\nMiktar ]]*Table145[[#This Row],[UNIT PRICE]]","v":0},"Raju"]
[{"$f":"IF(ISBLANK(B111),\"\",SUBTOTAL(103,$B$3:B111))","v":109},"Medicines","SULFADIAZINE SILVER, 1%, CREAM, STERILE, 50 G, TUBE","TUBE",378,null,{"$f":"Table145[[#This Row],[Quantity\nMiktar ]]*Table145[[#This Row],[UNIT PRICE]]","v":0},"Raju"]
[{"$f":"IF(ISBLANK(B112),\"\",SUBTOTAL(103,$B$3:B112))","v":110},"Medicines","TEMPRA (PARACETAMOL 100 MG / 1ML )","DROPS",2000,null,{"$f":"Table145[[#This Row],[Quantity\nMiktar ]]*Table145[[#This Row],[UNIT PRICE]]","v":0},"Raju"]
[{"$f":"IF(ISBLANK(B113),\"\",SUBTOTAL(103,$B$3:B113))","v":111},"Medicines","TRAMADOL HYDROCHLORIDE, 50 MG/ML, 2 ML, AMP.","AMPOULE",126,null,{"$f":"Table145[[#This Row],[Quantity\nMiktar ]]*Table145[[#This Row],[UNIT PRICE]]","v":0},"Raju"]
[{"$f":"IF(ISBLANK(B114),\"\",SUBTOTAL(103,$B$3:B114))","v":112},"Medicines","ULTRASOUND -GEL","PIECE",13,null,{"$f":"Table145[[#This Row],[Quantity\nMiktar ]]*Table145[[#This Row],[UNIT PRICE]]","v":0},"Raju"]
[{"$f":"IF(ISBLANK(B115),\"\",SUBTOTAL(103,$B$3:B115))","v":113},"Medicines","VALPROATE SODIUM, 200 MG, GASTRO-RESISTANT TAB.","TABLET",5670,null,{"$f":"Table145[[#This Row],[Quantity\nMiktar ]]*Table145[[#This Row],[UNIT PRICE]]","v":0},"Raju"]
[{"$f":"IF(ISBLANK(B116),\"\",SUBTOTAL(103,$B$3:B116))","v":114},"Medicines","VALPROATE SODIUM, 200 MG/ML, 40 ML, BOT. + SYRINGE","BOTTLE",391,null,{"$f":"Table145[[#This Row],[Quantity\nMiktar ]]*Table145[[#This Row],[UNIT PRICE]]","v":0},"Raju"]
[{"$f":"IF(ISBLANK(B117),\"\",SUBTOTAL(103,$B$3:B117))","v":115},"Medicines","VALPROATE SODIUM, 500 MG, GASTRO-RESISTANT TAB.","TABLET",18900,null,{"$f":"Table145[[#This Row],[Quantity\nMiktar ]]*Table145[[#This Row],[UNIT PRICE]]","v":0},"Raju"]
[{"$f":"IF(ISBLANK(B118),\"\",SUBTOTAL(103,$B$3:B118))","v":116},"Medicines","VIT D3 400 IU SYR","SYR",1260,null,{"$f":"Table145[[#This Row],[Quantity\nMiktar ]]*Table145[[#This Row],[UNIT PRICE]]","v":0},"Raju"]
[{"$f":"IF(ISBLANK(B119),\"\",SUBTOTAL(103,$B$3:B119))","v":117},"Medicines","VITAMIN K AMP 1MG/ML","AMPOULE",630,null,{"$f":"Table145[[#This Row],[Quantity\nMiktar ]]*Table145[[#This Row],[UNIT PRICE]]","v":0},"Raju"]
[{"$f":"IF(ISBLANK(B120),\"\",SUBTOTAL(103,$B$3:B120))","v":118},"Medicines","WARFARIN 5 MG ","TABLET",3600,null,{"$f":"Table145[[#This Row],[Quantity\nMiktar ]]*Table145[[#This Row],[UNIT PRICE]]","v":0},"Raju"]
[{"$f":"IF(ISBLANK(B121),\"\",SUBTOTAL(103,$B$3:B121))","v":119},"Medicines","ZINC OXIDE, 10%, OINTMENT, 100 G, TUBE","TUBE",1260,null,{"$f":"Table145[[#This Row],[Quantity\nMiktar ]]*Table145[[#This Row],[UNIT PRICE]]","v":0},"Raju"]
[{"$f":"IF(ISBLANK(B122),\"\",SUBTOTAL(103,$B$3:B122))","v":120},"Medicines","ZINC SULFATE, EQ. TO 20 MG ZINC MINERAL, DISPERSIBLE TAB.","TABLET",12000,null,{"$f":"Table145[[#This Row],[Quantity\nMiktar ]]*Table145[[#This Row],[UNIT PRICE]]","v":0},"Raju"]
[{"$f":"IF(ISBLANK(B123),\"\",SUBTOTAL(103,$B$3:B123))","v":121},"Medicines","ACETYLSALICYLIC ACID (ASPIRIN), 75 MG, GASTRO-RESISTANT TAB.","TABLET",10000,null,{"$f":"Table145[[#This Row],[Quantity\nMiktar ]]*Table145[[#This Row],[UNIT PRICE]]","v":0},"Badanli"]
[{"$f":"IF(ISBLANK(B124),\"\",SUBTOTAL(103,$B$3:B124))","v":122},"Medicines","ACETYLSALICYLIC ACID 100MG","TABLET",36000,null,{"$f":"Table145[[#This Row],[Quantity\nMiktar ]]*Table145[[#This Row],[UNIT PRICE]]","v":0},"Badanli"]
[{"$f":"IF(ISBLANK(B125),\"\",SUBTOTAL(103,$B$3:B125))","v":123},"Medicines","ALBENDAZOL 400 MG TAB","TABLET",2000,null,{"$f":"Table145[[#This Row],[Quantity\nMiktar ]]*Table145[[#This Row],[UNIT PRICE]]","v":0},"Badanli"]
[{"$f":"IF(ISBLANK(B126),\"\",SUBTOTAL(103,$B$3:B126))","v":124},"Medicines","ALBENDAZOLE 100MG/15ML","SYR",100,null,{"$f":"Table145[[#This Row],[Quantity\nMiktar ]]*Table145[[#This Row],[UNIT PRICE]]","v":0},"Badanli"]
[{"$f":"IF(ISBLANK(B127),\"\",SUBTOTAL(103,$B$3:B127))","v":125},"Medicines","ALLOPURINOL 300MG TAB","TABLET",1500,null,{"$f":"Table145[[#This Row],[Quantity\nMiktar ]]*Table145[[#This Row],[UNIT PRICE]]","v":0},"Badanli"]
[{"$f":"IF(ISBLANK(B128),\"\",SUBTOTAL(103,$B$3:B128))","v":126},"Medicines","AMIKACIN 100MG","VIAL",600,null,{"$f":"Table145[[#This Row],[Quantity\nMiktar ]]*Table145[[#This Row],[UNIT PRICE]]","v":0},"Badanli"]
[{"$f":"IF(ISBLANK(B129),\"\",SUBTOTAL(103,$B$3:B129))","v":127},"Medicines","AMIKACIN 500MG","VIAL",1500,null,{"$f":"Table145[[#This Row],[Quantity\nMiktar ]]*Table145[[#This Row],[UNIT PRICE]]","v":0},"Badanli"]
[{"$f":"IF(ISBLANK(B130),\"\",SUBTOTAL(103,$B$3:B130))","v":128},"Medicines","AMLODIPINE 10 MG TAB","TABLET",5000,null,{"$f":"Table145[[#This Row],[Quantity\nMiktar ]]*Table145[[#This Row],[UNIT PRICE]]","v":0},"Badanli"]
[{"$f":"IF(ISBLANK(B131),\"\",SUBTOTAL(103,$B$3:B131))","v":129},"Medicines","AMLODIPINE 5MG","TABLET",30000,null,{"$f":"Table145[[#This Row],[Quantity\nMiktar ]]*Table145[[#This Row],[UNIT PRICE]]","v":0},"Badanli"]
[{"$f":"IF(ISBLANK(B132),\"\",SUBTOTAL(103,$B$3:B132))","v":130},"Medicines","AMLODIPINE/VALSARTAN 160/10","TABLET",10000,null,{"$f":"Table145[[#This Row],[Quantity\nMiktar ]]*Table145[[#This Row],[UNIT PRICE]]","v":0},"Badanli"]
[{"$f":"IF(ISBLANK(B133),\"\",SUBTOTAL(103,$B$3:B133))","v":131},"Medicines","AMLODIPINE/VALSARTAN 160/5","TABLET",10000,null,{"$f":"Table145[[#This Row],[Quantity\nMiktar ]]*Table145[[#This Row],[UNIT PRICE]]","v":0},"Badanli"]
[{"$f":"IF(ISBLANK(B134),\"\",SUBTOTAL(103,$B$3:B134))","v":132},"Medicines","AMOXICILLIN 228MG / CLAVULANIC ACID, SYRUP 70ML","ORAL SUSPENSION",800,null,{"$f":"Table145[[#This Row],[Quantity\nMiktar ]]*Table145[[#This Row],[UNIT PRICE]]","v":0},"Badanli"]
[{"$f":"IF(ISBLANK(B135),\"\",SUBTOTAL(103,$B$3:B135))","v":133},"Medicines","AMOXICILLIN 400MG / CLAVULANIC ACID, 57 MG / 5ML, POWDER ORAL SUSP 70ML","ORAL SUSPENSION",1000,null,{"$f":"Table145[[#This Row],[Quantity\nMiktar ]]*Table145[[#This Row],[UNIT PRICE]]","v":0},"Badanli"]
[{"$f":"IF(ISBLANK(B136),\"\",SUBTOTAL(103,$B$3:B136))","v":134},"Medicines","AMOXICILLIN 500MG / CLAVULANIC ACID, 62.5 MG, TAB.","TABLET",6000,null,{"$f":"Table145[[#This Row],[Quantity\nMiktar ]]*Table145[[#This Row],[UNIT PRICE]]","v":0},"Badanli"]
[{"$f":"IF(ISBLANK(B137),\"\",SUBTOTAL(103,$B$3:B137))","v":135},"Medicines","AMOXICILLIN 875MG / CLAVULANIC ACID 125MG, TAB","TABLET",12000,null,{"$f":"Table145[[#This Row],[Quantity\nMiktar ]]*Table145[[#This Row],[UNIT PRICE]]","v":0},"Badanli"]
[{"$f":"IF(ISBLANK(B138),\"\",SUBTOTAL(103,$B$3:B138))","v":136},"Medicines","AMOXICILLIN, 125MG/5ML, POWDER ORAL SUSP., 100 ML, BOT.","TABLET",1000,null,{"$f":"Table145[[#This Row],[Quantity\nMiktar ]]*Table145[[#This Row],[UNIT PRICE]]","v":0},"Badanli"]
[{"$f":"IF(ISBLANK(B139),\"\",SUBTOTAL(103,$B$3:B139))","v":137},"Medicines","ASCORBIC ACID (VITAMIN C), 250 MG, TAB.","TABLET",12000,null,{"$f":"Table145[[#This Row],[Quantity\nMiktar ]]*Table145[[#This Row],[UNIT PRICE]]","v":0},"Badanli"]
[{"$f":"IF(ISBLANK(B140),\"\",SUBTOTAL(103,$B$3:B140))","v":138},"Medicines","ATENOLOL 50MG","TABLET",12000,null,{"$f":"Table145[[#This Row],[Quantity\nMiktar ]]*Table145[[#This Row],[UNIT PRICE]]","v":0},"Badanli"]
[{"$f":"IF(ISBLANK(B141),\"\",SUBTOTAL(103,$B$3:B141))","v":139},"Medicines","ATORVASTATIN 20MG","TABLET",25000,null,{"$f":"Table145[[#This Row],[Quantity\nMiktar ]]*Table145[[#This Row],[UNIT PRICE]]","v":0},"Badanli"]
[{"$f":"IF(ISBLANK(B142),\"\",SUBTOTAL(103,$B$3:B142))","v":140},"Medicines","ATORVASTATIN 40MG","TABLET",25000,null,{"$f":"Table145[[#This Row],[Quantity\nMiktar ]]*Table145[[#This Row],[UNIT PRICE]]","v":0},"Badanli"]
[{"$f":"IF(ISBLANK(B143),\"\",SUBTOTAL(103,$B$3:B143))","v":141},"Medicines","ATOXIA 90MG / TAB","TABLET",6000,null,{"$f":"Table145[[#This Row],[Quantity\nMiktar ]]*Table145[[#This Row],[UNIT PRICE]]","v":0},"Badanli"]
[{"$f":"IF(ISBLANK(B144),\"\",SUBTOTAL(103,$B$3:B144))","v":142},"Medicines","AZITHROMYCIN 200MG/5ML SYRUP","BOTTLE",1200,null,{"$f":"Table145[[#This Row],[Quantity\nMiktar ]]*Table145[[#This Row],[UNIT PRICE]]","v":0},"Badanli"]
[{"$f":"IF(ISBLANK(B145),\"\",SUBTOTAL(103,$B$3:B145))","v":143},"Medicines","AZITHROMYCIN 500MG","TABLET",12000,null,{"$f":"Table145[[#This Row],[Quantity\nMiktar ]]*Table145[[#This Row],[UNIT PRICE]]","v":0},"Badanli"]
[{"$f":"IF(ISBLANK(B146),\"\",SUBTOTAL(103,$B$3:B146))","v":144},"Medicines","AZITHROMYCIN, 250 MG, TAB.","TABLET",6000,null,{"$f":"Table145[[#This Row],[Quantity\nMiktar ]]*Table145[[#This Row],[UNIT PRICE]]","v":0},"Badanli"]
[{"$f":"IF(ISBLANK(B147),\"\",SUBTOTAL(103,$B$3:B147))","v":145},"Medicines","B.COMBLEX / TAB","TABLET",15000,null,{"$f":"Table145[[#This Row],[Quantity\nMiktar ]]*Table145[[#This Row],[UNIT PRICE]]","v":0},"Badanli"]
[{"$f":"IF(ISBLANK(B148),\"\",SUBTOTAL(103,$B$3:B148))","v":146},"Medicines","B1+B6+B12","TABLET",10000,null,{"$f":"Table145[[#This Row],[Quantity\nMiktar ]]*Table145[[#This Row],[UNIT PRICE]]","v":0},"Badanli"]
[{"$f":"IF(ISBLANK(B149),\"\",SUBTOTAL(103,$B$3:B149))","v":147},"Medicines","BECLOMETASONE DIPROPIONATE, 0.10MG","INHALATION",600,null,{"$f":"Table145[[#This Row],[Quantity\nMiktar ]]*Table145[[#This Row],[UNIT PRICE]]","v":0},"Badanli"]
[{"$f":"IF(ISBLANK(B150),\"\",SUBTOTAL(103,$B$3:B150))","v":148},"Medicines","BENZYL BENZOATE, 25%, LOTION, 1 L, BOT","BOTTLE",200,null,{"$f":"Table145[[#This Row],[Quantity\nMiktar ]]*Table145[[#This Row],[UNIT PRICE]]","v":0},"Badanli"]
[{"$f":"IF(ISBLANK(B151),\"\",SUBTOTAL(103,$B$3:B151))","v":149},"Medicines","BETAHISTINE 16 MG TAB","TABLET",6000,null,{"$f":"Table145[[#This Row],[Quantity\nMiktar ]]*Table145[[#This Row],[UNIT PRICE]]","v":0},"Badanli"]
[{"$f":"IF(ISBLANK(B152),\"\",SUBTOTAL(103,$B$3:B152))","v":150},"Medicines","BETAMETHASONE VALERATE 0.1% 15G CREAM","TUBE",100,null,{"$f":"Table145[[#This Row],[Quantity\nMiktar ]]*Table145[[#This Row],[UNIT PRICE]]","v":0},"Badanli"]
[{"$f":"IF(ISBLANK(B153),\"\",SUBTOTAL(103,$B$3:B153))","v":151},"Medicines","BISOPROLOL 5MG","TABLET",25000,null,{"$f":"Table145[[#This Row],[Quantity\nMiktar ]]*Table145[[#This Row],[UNIT PRICE]]","v":0},"Badanli"]
[{"$f":"IF(ISBLANK(B154),\"\",SUBTOTAL(103,$B$3:B154))","v":152},"Medicines","BISOPROLOL FUMARATE, 10 MG, BREAK.TAB.","TABLET",12000,null,{"$f":"Table145[[#This Row],[Quantity\nMiktar ]]*Table145[[#This Row],[UNIT PRICE]]","v":0},"Badanli"]
[{"$f":"IF(ISBLANK(B155),\"\",SUBTOTAL(103,$B$3:B155))","v":153},"Medicines","CALAMINE, 15%, LOTION, 500 ML, BOT.","BOTTLE",200,null,{"$f":"Table145[[#This Row],[Quantity\nMiktar ]]*Table145[[#This Row],[UNIT PRICE]]","v":0},"Badanli"]
[{"$f":"IF(ISBLANK(B156),\"\",SUBTOTAL(103,$B$3:B156))","v":154},"Medicines","CALCIUM+VIT D3","TABLET",6000,null,{"$f":"Table145[[#This Row],[Quantity\nMiktar ]]*Table145[[#This Row],[UNIT PRICE]]","v":0},"Badanli"]
[{"$f":"IF(ISBLANK(B157),\"\",SUBTOTAL(103,$B$3:B157))","v":155},"Medicines","CAPTOPRIL 25MG","TABLET",2000,null,{"$f":"Table145[[#This Row],[Quantity\nMiktar ]]*Table145[[#This Row],[UNIT PRICE]]","v":0},"Badanli"]
[{"$f":"IF(ISBLANK(B158),\"\",SUBTOTAL(103,$B$3:B158))","v":156},"Medicines","CARBAMAZEPINE, 200 MG, TAB.","TABLET",6000,null,{"$f":"Table145[[#This Row],[Quantity\nMiktar ]]*Table145[[#This Row],[UNIT PRICE]]","v":0},"Badanli"]
[{"$f":"IF(ISBLANK(B159),\"\",SUBTOTAL(103,$B$3:B159))","v":157},"Medicines","CARBAMAZEPINE, 400 MG, TAB.","TABLET",6000,null,{"$f":"Table145[[#This Row],[Quantity\nMiktar ]]*Table145[[#This Row],[UNIT PRICE]]","v":0},"Badanli"]
[{"$f":"IF(ISBLANK(B160),\"\",SUBTOTAL(103,$B$3:B160))","v":158},"Medicines","CEFIXIME 400 MG","TABLET",6000,null,{"$f":"Table145[[#This Row],[Quantity\nMiktar ]]*Table145[[#This Row],[UNIT PRICE]]","v":0},"Badanli"]
[{"$f":"IF(ISBLANK(B161),\"\",SUBTOTAL(103,$B$3:B161))","v":159},"Medicines","CEFIXIME, 100MG/5ML, POWDER FOR ORAL SUSP., 60 ML, BOT.","BOTTLE",400,null,{"$f":"Table145[[#This Row],[Quantity\nMiktar ]]*Table145[[#This Row],[UNIT PRICE]]","v":0},"Badanli"]
[{"$f":"IF(ISBLANK(B162),\"\",SUBTOTAL(103,$B$3:B162))","v":160},"Medicines","CEFIXIME, 200 MG, TAB.","TABLET",6000,null,{"$f":"Table145[[#This Row],[Quantity\nMiktar ]]*Table145[[#This Row],[UNIT PRICE]]","v":0},"Badanli"]
[{"$f":"IF(ISBLANK(B163),\"\",SUBTOTAL(103,$B$3:B163))","v":161},"Medicines","CEFTRIAXONE SODIUM, EQ.1 G BASE, POWDER, VIAL + LIDOCAINE IM","VIAL",3000,null,{"$f":"Table145[[#This Row],[Quantity\nMiktar ]]*Table145[[#This Row],[UNIT PRICE]]","v":0},"Badanli"]
[{"$f":"IF(ISBLANK(B164),\"\",SUBTOTAL(103,$B$3:B164))","v":162},"Medicines","CEFTRIAXONE SODIUM, EQ.500 MG BASE, POWDER, VIAL","VIAL",2500,null,{"$f":"Table145[[#This Row],[Quantity\nMiktar ]]*Table145[[#This Row],[UNIT PRICE]]","v":0},"Badanli"]
[{"$f":"IF(ISBLANK(B165),\"\",SUBTOTAL(103,$B$3:B165))","v":163},"Medicines","CETIRIZINE 10MG","TABLET",6000,null,{"$f":"Table145[[#This Row],[Quantity\nMiktar ]]*Table145[[#This Row],[UNIT PRICE]]","v":0},"Badanli"]
[{"$f":"IF(ISBLANK(B166),\"\",SUBTOTAL(103,$B$3:B166))","v":164},"Medicines","CHLORHEXIDINE DIGLUCONATE 5%, SOLUTION, 1 L, BOT.","BOTTLE",100,null,{"$f":"Table145[[#This Row],[Quantity\nMiktar ]]*Table145[[#This Row],[UNIT PRICE]]","v":0},"Badanli"]
[{"$f":"IF(ISBLANK(B167),\"\",SUBTOTAL(103,$B$3:B167))","v":165},"Medicines","CIPROFLOXACIN HYDROCHLORIDE, EQ. 500 MG BASE, TAB.","TABLET",6000,null,{"$f":"Table145[[#This Row],[Quantity\nMiktar ]]*Table145[[#This Row],[UNIT PRICE]]","v":0},"Badanli"]
[{"$f":"IF(ISBLANK(B168),\"\",SUBTOTAL(103,$B$3:B168))","v":166},"Medicines","CIPROFLOXACIN, 0.3%, EAR/EYE DROPS, STERILE, BOT.","BOTTLE",300,null,{"$f":"Table145[[#This Row],[Quantity\nMiktar ]]*Table145[[#This Row],[UNIT PRICE]]","v":0},"Badanli"]
[{"$f":"IF(ISBLANK(B169),\"\",SUBTOTAL(103,$B$3:B169))","v":167},"Medicines","CLOPIDOGREL 75MG","TABLET",25000,null,{"$f":"Table145[[#This Row],[Quantity\nMiktar ]]*Table145[[#This Row],[UNIT PRICE]]","v":0},"Badanli"]
[{"$f":"IF(ISBLANK(B170),\"\",SUBTOTAL(103,$B$3:B170))","v":168},"Medicines","CLORPHENIRAMINE AMP","AMPOULE",300,null,{"$f":"Table145[[#This Row],[Quantity\nMiktar ]]*Table145[[#This Row],[UNIT PRICE]]","v":0},"Badanli"]
[{"$f":"IF(ISBLANK(B171),\"\",SUBTOTAL(103,$B$3:B171))","v":169},"Medicines","CLOTRIMAZOLE 1% TOPICAL CREAM, TUBE 20GR TUBE","CREAM",1000,null,{"$f":"Table145[[#This Row],[Quantity\nMiktar ]]*Table145[[#This Row],[UNIT PRICE]]","v":0},"Badanli"]
[{"$f":"IF(ISBLANK(B172),\"\",SUBTOTAL(103,$B$3:B172))","v":170},"Medicines","CLOTRIMAZOLE, 500 MG, VAGINAL TAB. + APPLICATOR","OVUOL",2000,null,{"$f":"Table145[[#This Row],[Quantity\nMiktar ]]*Table145[[#This Row],[UNIT PRICE]]","v":0},"Badanli"]
[{"$f":"IF(ISBLANK(B173),\"\",SUBTOTAL(103,$B$3:B173))","v":171},"Medicines","COTRIMOXAZOLE SYRUP","BOTTLE",300,null,{"$f":"Table145[[#This Row],[Quantity\nMiktar ]]*Table145[[#This Row],[UNIT PRICE]]","v":0},"Badanli"]
[{"$f":"IF(ISBLANK(B174),\"\",SUBTOTAL(103,$B$3:B174))","v":172},"Medicines","DEPAKINE 200 MG SYR","BOTTLE",200,null,{"$f":"Table145[[#This Row],[Quantity\nMiktar ]]*Table145[[#This Row],[UNIT PRICE]]","v":0},"Badanli"]
[{"$f":"IF(ISBLANK(B175),\"\",SUBTOTAL(103,$B$3:B175))","v":173},"Medicines","DEPAKINE 500 TAB","TABLET",10000,null,{"$f":"Table145[[#This Row],[Quantity\nMiktar ]]*Table145[[#This Row],[UNIT PRICE]]","v":0},"Badanli"]
[{"$f":"IF(ISBLANK(B176),\"\",SUBTOTAL(103,$B$3:B176))","v":174},"Medicines","DEXAMETHASONE 8MG/ML 2 ML","AMPOULE",1500,null,{"$f":"Table145[[#This Row],[Quantity\nMiktar ]]*Table145[[#This Row],[UNIT PRICE]]","v":0},"Badanli"]
[{"$f":"IF(ISBLANK(B177),\"\",SUBTOTAL(103,$B$3:B177))","v":175},"Medicines","DEXTROSE (GLUCOSE), 5%, 1 L, FLEX. BAG, PVC FREE","BAG",200,null,{"$f":"Table145[[#This Row],[Quantity\nMiktar ]]*Table145[[#This Row],[UNIT PRICE]]","v":0},"Badanli"]
[{"$f":"IF(ISBLANK(B178),\"\",SUBTOTAL(103,$B$3:B178))","v":176},"Medicines","DEXTROSE (GLUCOSE), 5%, 500 ML, FLEX. BAG, PVC FREE","BAG",100,null,{"$f":"Table145[[#This Row],[Quantity\nMiktar ]]*Table145[[#This Row],[UNIT PRICE]]","v":0},"Badanli"]
[{"$f":"IF(ISBLANK(B179),\"\",SUBTOTAL(103,$B$3:B179))","v":177},"Medicines","DICLOFENAC 12.5 SUPPOSTORIES","SUPP",2500,null,{"$f":"Table145[[#This Row],[Quantity\nMiktar ]]*Table145[[#This Row],[UNIT PRICE]]","v":0},"Badanli"]
[{"$f":"IF(ISBLANK(B180),\"\",SUBTOTAL(103,$B$3:B180))","v":178},"Medicines","DICLOFENAC 25 MG SUPPOSTORIES","SUPP",2500,null,{"$f":"Table145[[#This Row],[Quantity\nMiktar ]]*Table145[[#This Row],[UNIT PRICE]]","v":0},"Badanli"]
[{"$f":"IF(ISBLANK(B181),\"\",SUBTOTAL(103,$B$3:B181))","v":179},"Medicines","DICLOFENAC CREEM","TUBE",600,null,{"$f":"Table145[[#This Row],[Quantity\nMiktar ]]*Table145[[#This Row],[UNIT PRICE]]","v":0},"Badanli"]
[{"$f":"IF(ISBLANK(B182),\"\",SUBTOTAL(103,$B$3:B182))","v":180},"Medicines","DICLOFENAC POTASSIUM 50 MG, TAB","TABLET",4000,null,{"$f":"Table145[[#This Row],[Quantity\nMiktar ]]*Table145[[#This Row],[UNIT PRICE]]","v":0},"Badanli"]
[{"$f":"IF(ISBLANK(B183),\"\",SUBTOTAL(103,$B$3:B183))","v":181},"Medicines","DICLOFENAC SODIUM 50MG","TABLET",3000,null,{"$f":"Table145[[#This Row],[Quantity\nMiktar ]]*Table145[[#This Row],[UNIT PRICE]]","v":0},"Badanli"]
[{"$f":"IF(ISBLANK(B184),\"\",SUBTOTAL(103,$B$3:B184))","v":182},"Medicines","DICLOFENAC SODIUM 75 MG","AMPOULE",1500,null,{"$f":"Table145[[#This Row],[Quantity\nMiktar ]]*Table145[[#This Row],[UNIT PRICE]]","v":0},"Badanli"]
[{"$f":"IF(ISBLANK(B185),\"\",SUBTOTAL(103,$B$3:B185))","v":183},"Medicines","DIGOXIN 0.25 MG","TABLET",4000,null,{"$f":"Table145[[#This Row],[Quantity\nMiktar ]]*Table145[[#This Row],[UNIT PRICE]]","v":0},"Badanli"]
[{"$f":"IF(ISBLANK(B186),\"\",SUBTOTAL(103,$B$3:B186))","v":184},"Medicines","DILTIAZEM 60","TUBE",2000,null,{"$f":"Table145[[#This Row],[Quantity\nMiktar ]]*Table145[[#This Row],[UNIT PRICE]]","v":0},"Badanli"]
[{"$f":"IF(ISBLANK(B187),\"\",SUBTOTAL(103,$B$3:B187))","v":185},"Medicines","ENALAPRIL 10 MG TAB","TABLET",6000,null,{"$f":"Table145[[#This Row],[Quantity\nMiktar ]]*Table145[[#This Row],[UNIT PRICE]]","v":0},"Badanli"]
[{"$f":"IF(ISBLANK(B188),\"\",SUBTOTAL(103,$B$3:B188))","v":186},"Medicines","ENALAPRIL MALEATE 5MG","TABLET",40000,null,{"$f":"Table145[[#This Row],[Quantity\nMiktar ]]*Table145[[#This Row],[UNIT PRICE]]","v":0},"Badanli"]
[{"$f":"IF(ISBLANK(B189),\"\",SUBTOTAL(103,$B$3:B189))","v":187},"Medicines","EPINEPHRINE (ADRENALINE) TARTRATE, EQ.1MG/ML BASE, IM INJECT., 1ML","AMPOULE",1000,null,{"$f":"Table145[[#This Row],[Quantity\nMiktar ]]*Table145[[#This Row],[UNIT PRICE]]","v":0},"Badanli"]
[{"$f":"IF(ISBLANK(B190),\"\",SUBTOTAL(103,$B$3:B190))","v":188},"Medicines","ETORICOXIBE 90MG","TABLET",6000,null,{"$f":"Table145[[#This Row],[Quantity\nMiktar ]]*Table145[[#This Row],[UNIT PRICE]]","v":0},"Badanli"]
[{"$f":"IF(ISBLANK(B191),\"\",SUBTOTAL(103,$B$3:B191))","v":189},"Medicines","FERROUS SALT EQ. 60 MG IRON / FOLIC ACID 0.4 MG, TAB","TABLET",15000,null,{"$f":"Table145[[#This Row],[Quantity\nMiktar ]]*Table145[[#This Row],[UNIT PRICE]]","v":0},"Badanli"]
[{"$f":"IF(ISBLANK(B192),\"\",SUBTOTAL(103,$B$3:B192))","v":190},"Medicines","FERROUS SALT, EQ. IRON 45MG/5ML, SYRUP, 200ML, BOT.","BOTTLE",500,null,{"$f":"Table145[[#This Row],[Quantity\nMiktar ]]*Table145[[#This Row],[UNIT PRICE]]","v":0},"Badanli"]
[{"$f":"IF(ISBLANK(B193),\"\",SUBTOTAL(103,$B$3:B193))","v":191},"Medicines","FLOCNAZOL 200 MG TAB","TABLET",1000,null,{"$f":"Table145[[#This Row],[Quantity\nMiktar ]]*Table145[[#This Row],[UNIT PRICE]]","v":0},"Badanli"]
[{"$f":"IF(ISBLANK(B194),\"\",SUBTOTAL(103,$B$3:B194))","v":192},"Medicines","FOLIC ACID 5MG","TABLET",25000,null,{"$f":"Table145[[#This Row],[Quantity\nMiktar ]]*Table145[[#This Row],[UNIT PRICE]]","v":0},"Badanli"]
[{"$f":"IF(ISBLANK(B195),\"\",SUBTOTAL(103,$B$3:B195))","v":193},"Medicines","FUCINE OINTMENT ","TUBE",500,null,{"$f":"Table145[[#This Row],[Quantity\nMiktar ]]*Table145[[#This Row],[UNIT PRICE]]","v":0},"Badanli"]
[{"$f":"IF(ISBLANK(B196),\"\",SUBTOTAL(103,$B$3:B196))","v":194},"Medicines","FUROSEMIDE 40MG","TABLET",25000,null,{"$f":"Table145[[#This Row],[Quantity\nMiktar ]]*Table145[[#This Row],[UNIT PRICE]]","v":0},"Badanli"]
[{"$f":"IF(ISBLANK(B197),\"\",SUBTOTAL(103,$B$3:B197))","v":195},"Medicines","GENTAMICIN 0.3% EYE / EAR DROP","EYE DROP",300,null,{"$f":"Table145[[#This Row],[Quantity\nMiktar ]]*Table145[[#This Row],[UNIT PRICE]]","v":0},"Badanli"]
[{"$f":"IF(ISBLANK(B198),\"\",SUBTOTAL(103,$B$3:B198))","v":196},"Medicines","GENTAMICIN SULFATE, EQ. 40 MG/ML BASE, 2 ML, AMP.","AMPOULE",200,null,{"$f":"Table145[[#This Row],[Quantity\nMiktar ]]*Table145[[#This Row],[UNIT PRICE]]","v":0},"Badanli"]
[{"$f":"IF(ISBLANK(B199),\"\",SUBTOTAL(103,$B$3:B199))","v":197},"Medicines","GLIBENCLAMIDE, 5 MG, TAB.","TABLET",36000,null,{"$f":"Table145[[#This Row],[Quantity\nMiktar ]]*Table145[[#This Row],[UNIT PRICE]]","v":0},"Badanli"]
[{"$f":"IF(ISBLANK(B200),\"\",SUBTOTAL(103,$B$3:B200))","v":198},"Medicines","GLICLAZIDE 80MG","TABLET",40000,null,{"$f":"Table145[[#This Row],[Quantity\nMiktar ]]*Table145[[#This Row],[UNIT PRICE]]","v":0},"Badanli"]
[{"$f":"IF(ISBLANK(B201),\"\",SUBTOTAL(103,$B$3:B201))","v":199},"Medicines","GLYCERYL TRINITRATE, 0.5 MG, SUBLINGUAL TAB.","TABLET",5000,null,{"$f":"Table145[[#This Row],[Quantity\nMiktar ]]*Table145[[#This Row],[UNIT PRICE]]","v":0},"Badanli"]
[{"$f":"IF(ISBLANK(B202),\"\",SUBTOTAL(103,$B$3:B202))","v":200},"Medicines","HYDROCORTISONE (ACETATE OR BASE), 1%, OINTMENT, 15 G, TUBE","TUBE",600,null,{"$f":"Table145[[#This Row],[Quantity\nMiktar ]]*Table145[[#This Row],[UNIT PRICE]]","v":0},"Badanli"]
[{"$f":"IF(ISBLANK(B203),\"\",SUBTOTAL(103,$B$3:B203))","v":201},"Medicines","HYDROCORTISONE 1% CREAM, TOPICAL 20MG","TUBE",1000,null,{"$f":"Table145[[#This Row],[Quantity\nMiktar ]]*Table145[[#This Row],[UNIT PRICE]]","v":0},"Badanli"]
[{"$f":"IF(ISBLANK(B204),\"\",SUBTOTAL(103,$B$3:B204))","v":202},"Medicines","HYDROCORTISONE 100 MG VAIL","VIAL",300,null,{"$f":"Table145[[#This Row],[Quantity\nMiktar ]]*Table145[[#This Row],[UNIT PRICE]]","v":0},"Badanli"]
[{"$f":"IF(ISBLANK(B205),\"\",SUBTOTAL(103,$B$3:B205))","v":203},"Medicines","HYOSCINE BUTYLBROMIDE (SCOPOLAMINE BUTYLBROM), 20 MG/1ML,AMP","AMPOULE",300,null,{"$f":"Table145[[#This Row],[Quantity\nMiktar ]]*Table145[[#This Row],[UNIT PRICE]]","v":0},"Badanli"]
[{"$f":"IF(ISBLANK(B206),\"\",SUBTOTAL(103,$B$3:B206))","v":204},"Medicines","HYOSCINE BUTYLBROMIDE (SCOPOLAMINE BUTYLBROMIDE), 10 MG, TAB","TABLET",25000,null,{"$f":"Table145[[#This Row],[Quantity\nMiktar ]]*Table145[[#This Row],[UNIT PRICE]]","v":0},"Badanli"]
[{"$f":"IF(ISBLANK(B207),\"\",SUBTOTAL(103,$B$3:B207))","v":205},"Medicines","IBUPROFEN 400MG","TABLET",50000,null,{"$f":"Table145[[#This Row],[Quantity\nMiktar ]]*Table145[[#This Row],[UNIT PRICE]]","v":0},"Badanli"]
[{"$f":"IF(ISBLANK(B208),\"\",SUBTOTAL(103,$B$3:B208))","v":206},"Medicines","IBUPROFEN, 100MG/5ML, ORAL SUSP., 150 ML, BOT.","BOTTLE",1800,null,{"$f":"Table145[[#This Row],[Quantity\nMiktar ]]*Table145[[#This Row],[UNIT PRICE]]","v":0},"Badanli"]
[{"$f":"IF(ISBLANK(B209),\"\",SUBTOTAL(103,$B$3:B209))","v":207},"Medicines","IBUPROFEN, 200 MG, TAB.","TABLET",3000,null,{"$f":"Table145[[#This Row],[Quantity\nMiktar ]]*Table145[[#This Row],[UNIT PRICE]]","v":0},"Badanli"]
[{"$f":"IF(ISBLANK(B210),\"\",SUBTOTAL(103,$B$3:B210))","v":208},"Medicines","INSULIN HUMAN, BIPHASIC 30-70 IU/ML, 10ML, VIAL N","VIAL",1000,null,{"$f":"Table145[[#This Row],[Quantity\nMiktar ]]*Table145[[#This Row],[UNIT PRICE]]","v":0},"Badanli"]
[{"$f":"IF(ISBLANK(B211),\"\",SUBTOTAL(103,$B$3:B211))","v":209},"Medicines","ISOSORBIDE DINITRATE 10MG","TABLET",1000,null,{"$f":"Table145[[#This Row],[Quantity\nMiktar ]]*Table145[[#This Row],[UNIT PRICE]]","v":0},"Badanli"]
[{"$f":"IF(ISBLANK(B212),\"\",SUBTOTAL(103,$B$3:B212))","v":210},"Medicines","ISOSORBIDE DINITRATE, 5 MG, SUBLINGUAL TAB.","TABLET",1000,null,{"$f":"Table145[[#This Row],[Quantity\nMiktar ]]*Table145[[#This Row],[UNIT PRICE]]","v":0},"Badanli"]
[{"$f":"IF(ISBLANK(B213),\"\",SUBTOTAL(103,$B$3:B213))","v":211},"Medicines","LACTULOSE, 3.1 G/5ML, ORAL SOL., BOT.","BOTTLE",100,null,{"$f":"Table145[[#This Row],[Quantity\nMiktar ]]*Table145[[#This Row],[UNIT PRICE]]","v":0},"Badanli"]
[{"$f":"IF(ISBLANK(B214),\"\",SUBTOTAL(103,$B$3:B214))","v":212},"Medicines","LANSOPRAZOLE 30MG","CAPSULE",5000,null,{"$f":"Table145[[#This Row],[Quantity\nMiktar ]]*Table145[[#This Row],[UNIT PRICE]]","v":0},"Badanli"]
[{"$f":"IF(ISBLANK(B215),\"\",SUBTOTAL(103,$B$3:B215))","v":213},"Medicines","LEVETIRACETAM 100 MG SYR","BOTTLE",30,null,{"$f":"Table145[[#This Row],[Quantity\nMiktar ]]*Table145[[#This Row],[UNIT PRICE]]","v":0},"Badanli"]
[{"$f":"IF(ISBLANK(B216),\"\",SUBTOTAL(103,$B$3:B216))","v":214},"Medicines","LEVETIRACETAM 500 MG TAB","TABLET",1000,null,{"$f":"Table145[[#This Row],[Quantity\nMiktar ]]*Table145[[#This Row],[UNIT PRICE]]","v":0},"Badanli"]
[{"$f":"IF(ISBLANK(B217),\"\",SUBTOTAL(103,$B$3:B217))","v":215},"Medicines","LEVOFLOXACINE 500 MG TAB","TABLET",3000,null,{"$f":"Table145[[#This Row],[Quantity\nMiktar ]]*Table145[[#This Row],[UNIT PRICE]]","v":0},"Badanli"]
[{"$f":"IF(ISBLANK(B218),\"\",SUBTOTAL(103,$B$3:B218))","v":216},"Medicines","LEVONORGESTERL+ETHYNILESTRADYOL 150MCG + 30MCG","TABLET",4000,null,{"$f":"Table145[[#This Row],[Quantity\nMiktar ]]*Table145[[#This Row],[UNIT PRICE]]","v":0},"Badanli"]
[{"$f":"IF(ISBLANK(B219),\"\",SUBTOTAL(103,$B$3:B219))","v":217},"Medicines","LIDOCAINE HYDROCHLORIDE, 1%, PRESERVATIVE-FREE, 10 ML, AMP","AMPOULE",2000,null,{"$f":"Table145[[#This Row],[Quantity\nMiktar ]]*Table145[[#This Row],[UNIT PRICE]]","v":0},"Badanli"]
[{"$f":"IF(ISBLANK(B220),\"\",SUBTOTAL(103,$B$3:B220))","v":218},"Medicines","LINCOMYCIN-600 MG","AMPOULE",1000,null,{"$f":"Table145[[#This Row],[Quantity\nMiktar ]]*Table145[[#This Row],[UNIT PRICE]]","v":0},"Badanli"]
[{"$f":"IF(ISBLANK(B221),\"\",SUBTOTAL(103,$B$3:B221))","v":219},"Medicines","LORATADINE 2.5MG/5ML","BOTTLE",600,null,{"$f":"Table145[[#This Row],[Quantity\nMiktar ]]*Table145[[#This Row],[UNIT PRICE]]","v":0},"Badanli"]
[{"$f":"IF(ISBLANK(B222),\"\",SUBTOTAL(103,$B$3:B222))","v":220},"Medicines","LORATADINE, 10MG, TAB.","TABLET",7000,null,{"$f":"Table145[[#This Row],[Quantity\nMiktar ]]*Table145[[#This Row],[UNIT PRICE]]","v":0},"Badanli"]
[{"$f":"IF(ISBLANK(B223),\"\",SUBTOTAL(103,$B$3:B223))","v":221},"Medicines","LOSARTAN 50MG+HYDROCHLORTHIAZIDE 12.5","TABLET",24000,null,{"$f":"Table145[[#This Row],[Quantity\nMiktar ]]*Table145[[#This Row],[UNIT PRICE]]","v":0},"Badanli"]
[{"$f":"IF(ISBLANK(B224),\"\",SUBTOTAL(103,$B$3:B224))","v":222},"Medicines","METFORMIN HCL 1000MG","TABLET",60000,null,{"$f":"Table145[[#This Row],[Quantity\nMiktar ]]*Table145[[#This Row],[UNIT PRICE]]","v":0},"Badanli"]
[{"$f":"IF(ISBLANK(B225),\"\",SUBTOTAL(103,$B$3:B225))","v":223},"Medicines","METFORMIN HYDROCHLORIDE, 500 MG, TAB.","TABLET",40000,null,{"$f":"Table145[[#This Row],[Quantity\nMiktar ]]*Table145[[#This Row],[UNIT PRICE]]","v":0},"Badanli"]
[{"$f":"IF(ISBLANK(B226),\"\",SUBTOTAL(103,$B$3:B226))","v":224},"Medicines","METFORMIN HYDROCHLORIDE, 850 MG, TAB.","TABLET",15000,null,{"$f":"Table145[[#This Row],[Quantity\nMiktar ]]*Table145[[#This Row],[UNIT PRICE]]","v":0},"Badanli"]
[{"$f":"IF(ISBLANK(B227),\"\",SUBTOTAL(103,$B$3:B227))","v":225},"Medicines","METHYLDOPA, 250 MG","TABLET",1500,null,{"$f":"Table145[[#This Row],[Quantity\nMiktar ]]*Table145[[#This Row],[UNIT PRICE]]","v":0},"Badanli"]
[{"$f":"IF(ISBLANK(B228),\"\",SUBTOTAL(103,$B$3:B228))","v":226},"Medicines","METOPROLOL TARTARAT 50 MG","TABLET",24000,null,{"$f":"Table145[[#This Row],[Quantity\nMiktar ]]*Table145[[#This Row],[UNIT PRICE]]","v":0},"Badanli"]
[{"$f":"IF(ISBLANK(B229),\"\",SUBTOTAL(103,$B$3:B229))","v":227},"Medicines","METRONIDAZOLE 125MG/5ML SYRUP","BOTTLE",1000,null,{"$f":"Table145[[#This Row],[Quantity\nMiktar ]]*Table145[[#This Row],[UNIT PRICE]]","v":0},"Badanli"]
[{"$f":"IF(ISBLANK(B230),\"\",SUBTOTAL(103,$B$3:B230))","v":228},"Medicines","METRONIDAZOLE 500MG","TABLET",12000,null,{"$f":"Table145[[#This Row],[Quantity\nMiktar ]]*Table145[[#This Row],[UNIT PRICE]]","v":0},"Badanli"]
[{"$f":"IF(ISBLANK(B231),\"\",SUBTOTAL(103,$B$3:B231))","v":229},"Medicines","METRONIDAZOLE 500MG VAGINAL SUPP","VAGINAL",1000,null,{"$f":"Table145[[#This Row],[Quantity\nMiktar ]]*Table145[[#This Row],[UNIT PRICE]]","v":0},"Badanli"]
[{"$f":"IF(ISBLANK(B232),\"\",SUBTOTAL(103,$B$3:B232))","v":230},"Medicines","METRONIDAZOLE, 5 MG/ML, 100 ML, SEMI-RIGID BOT. PVC FREE","VIAL",500,null,{"$f":"Table145[[#This Row],[Quantity\nMiktar ]]*Table145[[#This Row],[UNIT PRICE]]","v":0},"Badanli"]
[{"$f":"IF(ISBLANK(B233),\"\",SUBTOTAL(103,$B$3:B233))","v":231},"Medicines","MICONAZOLE NITRATE, 2%, CREAM, 30 G, TUBE","TUBE",1000,null,{"$f":"Table145[[#This Row],[Quantity\nMiktar ]]*Table145[[#This Row],[UNIT PRICE]]","v":0},"Badanli"]
[{"$f":"IF(ISBLANK(B234),\"\",SUBTOTAL(103,$B$3:B234))","v":232},"Medicines","MICROLUT (LEVONORGESTREL)","TUBE",4000,null,{"$f":"Table145[[#This Row],[Quantity\nMiktar ]]*Table145[[#This Row],[UNIT PRICE]]","v":0},"Badanli"]
[{"$f":"IF(ISBLANK(B235),\"\",SUBTOTAL(103,$B$3:B235))","v":233},"Medicines","MULTI VITAMINES AND MINERALS FOR PREGNANTS","TABLET",15000,null,{"$f":"Table145[[#This Row],[Quantity\nMiktar ]]*Table145[[#This Row],[UNIT PRICE]]","v":0},"Badanli"]
[{"$f":"IF(ISBLANK(B236),\"\",SUBTOTAL(103,$B$3:B236))","v":234},"Medicines","MULTIVITAMIN","TABLET",25000,null,{"$f":"Table145[[#This Row],[Quantity\nMiktar ]]*Table145[[#This Row],[UNIT PRICE]]","v":0},"Badanli"]
[{"$f":"IF(ISBLANK(B237),\"\",SUBTOTAL(103,$B$3:B237))","v":235},"Medicines","MULTIVITAMINS, TAB.","TABLET",10000,null,{"$f":"Table145[[#This Row],[Quantity\nMiktar ]]*Table145[[#This Row],[UNIT PRICE]]","v":0},"Badanli"]
[{"$f":"IF(ISBLANK(B238),\"\",SUBTOTAL(103,$B$3:B238))","v":236},"Medicines","MUPIROCIN 2% TOPICAL CREAM 15G","TUBE",300,null,{"$f":"Table145[[#This Row],[Quantity\nMiktar ]]*Table145[[#This Row],[UNIT PRICE]]","v":0},"Badanli"]
[{"$f":"IF(ISBLANK(B239),\"\",SUBTOTAL(103,$B$3:B239))","v":237},"Medicines","NIMSULIDE 100 MG TAB","TABLET",1000,null,{"$f":"Table145[[#This Row],[Quantity\nMiktar ]]*Table145[[#This Row],[UNIT PRICE]]","v":0},"Badanli"]
[{"$f":"IF(ISBLANK(B240),\"\",SUBTOTAL(103,$B$3:B240))","v":238},"Medicines","NITROFURANTOINE 100MG TAB","TABLET",3000,null,{"$f":"Table145[[#This Row],[Quantity\nMiktar ]]*Table145[[#This Row],[UNIT PRICE]]","v":0},"Badanli"]
[{"$f":"IF(ISBLANK(B241),\"\",SUBTOTAL(103,$B$3:B241))","v":239},"Medicines","NITROFURANTOINE 50MG/5ML SUSP","BOTTLE",200,null,{"$f":"Table145[[#This Row],[Quantity\nMiktar ]]*Table145[[#This Row],[UNIT PRICE]]","v":0},"Badanli"]
[{"$f":"IF(ISBLANK(B242),\"\",SUBTOTAL(103,$B$3:B242))","v":240},"Medicines","NYSTATIN, 100,000 IU/ML, ORAL SUSP. + GRADUATED DROPPER","BOTTLE",600,null,{"$f":"Table145[[#This Row],[Quantity\nMiktar ]]*Table145[[#This Row],[UNIT PRICE]]","v":0},"Badanli"]
[{"$f":"IF(ISBLANK(B243),\"\",SUBTOTAL(103,$B$3:B243))","v":241},"Medicines","OMEPRAZOLE SODIUM, EQ. 40 MG BASE, POWDER, VIAL, FR INFUSION","VIAL",200,null,{"$f":"Table145[[#This Row],[Quantity\nMiktar ]]*Table145[[#This Row],[UNIT PRICE]]","v":0},"Badanli"]
[{"$f":"IF(ISBLANK(B244),\"\",SUBTOTAL(103,$B$3:B244))","v":242},"Medicines","OMEPRAZOLE, 40 MG","CAPSULE",40000,null,{"$f":"Table145[[#This Row],[Quantity\nMiktar ]]*Table145[[#This Row],[UNIT PRICE]]","v":0},"Badanli"]
[{"$f":"IF(ISBLANK(B245),\"\",SUBTOTAL(103,$B$3:B245))","v":243},"Medicines","ONDANESTRON HYDROCHLORIDE EQ, 4MG BASE, TAB","TABLET",3000,null,{"$f":"Table145[[#This Row],[Quantity\nMiktar ]]*Table145[[#This Row],[UNIT PRICE]]","v":0},"Badanli"]
[{"$f":"IF(ISBLANK(B246),\"\",SUBTOTAL(103,$B$3:B246))","v":244},"Medicines","ONDANSETRON HYDROCHLORIDE, EQ. 2MG/ML BASE, 2 ML, AMP.","AMPOULE",500,null,{"$f":"Table145[[#This Row],[Quantity\nMiktar ]]*Table145[[#This Row],[UNIT PRICE]]","v":0},"Badanli"]
[{"$f":"IF(ISBLANK(B247),\"\",SUBTOTAL(103,$B$3:B247))","v":245},"Medicines","ONDANSETRON HYDROCHLORIDE, EQ. 8 MG BASE, TAB.","TABLET",1000,null,{"$f":"Table145[[#This Row],[Quantity\nMiktar ]]*Table145[[#This Row],[UNIT PRICE]]","v":0},"Badanli"]
[{"$f":"IF(ISBLANK(B248),\"\",SUBTOTAL(103,$B$3:B248))","v":246},"Medicines","ONDANSTERONE 4MG/5ML SYR","SYR",200,null,{"$f":"Table145[[#This Row],[Quantity\nMiktar ]]*Table145[[#This Row],[UNIT PRICE]]","v":0},"Badanli"]
[{"$f":"IF(ISBLANK(B249),\"\",SUBTOTAL(103,$B$3:B249))","v":247},"Medicines","ONDANSTERONE 8MG AMP","AMPOULE",500,null,{"$f":"Table145[[#This Row],[Quantity\nMiktar ]]*Table145[[#This Row],[UNIT PRICE]]","v":0},"Badanli"]
[{"$f":"IF(ISBLANK(B250),\"\",SUBTOTAL(103,$B$3:B250))","v":248},"Medicines","PARACETAMOL (ACETAMINOPHEN), 100 MG, TAB.","TABLET",24000,null,{"$f":"Table145[[#This Row],[Quantity\nMiktar ]]*Table145[[#This Row],[UNIT PRICE]]","v":0},"Badanli"]
[{"$f":"IF(ISBLANK(B251),\"\",SUBTOTAL(103,$B$3:B251))","v":249},"Medicines","PARACETAMOL (ACETAMINOPHEN), 120MG/5ML,ORAL SUSP.,100ML BOT.","BOTTLE",3000,null,{"$f":"Table145[[#This Row],[Quantity\nMiktar ]]*Table145[[#This Row],[UNIT PRICE]]","v":0},"Badanli"]
[{"$f":"IF(ISBLANK(B252),\"\",SUBTOTAL(103,$B$3:B252))","v":250},"Medicines","PARACETAMOL (ACETAMINOPHEN), 500 MG, TAB.","TABLET",100000,null,{"$f":"Table145[[#This Row],[Quantity\nMiktar ]]*Table145[[#This Row],[UNIT PRICE]]","v":0},"Badanli"]
[{"$f":"IF(ISBLANK(B253),\"\",SUBTOTAL(103,$B$3:B253))","v":251},"Medicines","PARACETAMOL (ACETAMINOPHEN),100 MG/ML, 50 ML, BOT.","BOTTLE",2500,null,{"$f":"Table145[[#This Row],[Quantity\nMiktar ]]*Table145[[#This Row],[UNIT PRICE]]","v":0},"Badanli"]
[{"$f":"IF(ISBLANK(B254),\"\",SUBTOTAL(103,$B$3:B254))","v":252},"Medicines","PARACETAMOL 200 MG SYR","BOTTLE",500,null,{"$f":"Table145[[#This Row],[Quantity\nMiktar ]]*Table145[[#This Row],[UNIT PRICE]]","v":0},"Badanli"]
[{"$f":"IF(ISBLANK(B255),\"\",SUBTOTAL(103,$B$3:B255))","v":253},"Medicines","PARACETAMOL 300MG + CHLOREZOXAZONE 250MG TAB","TABLET",1000,null,{"$f":"Table145[[#This Row],[Quantity\nMiktar ]]*Table145[[#This Row],[UNIT PRICE]]","v":0},"Badanli"]
[{"$f":"IF(ISBLANK(B256),\"\",SUBTOTAL(103,$B$3:B256))","v":254},"Medicines","PARACETAMOL 500 MG FLACONسيتامول وريدي","VIAL",1000,null,{"$f":"Table145[[#This Row],[Quantity\nMiktar ]]*Table145[[#This Row],[UNIT PRICE]]","v":0},"Badanli"]
[{"$f":"IF(ISBLANK(B257),\"\",SUBTOTAL(103,$B$3:B257))","v":255},"Medicines","PERMETHRIN 1% SHAMPOO","BOTTLE",200,null,{"$f":"Table145[[#This Row],[Quantity\nMiktar ]]*Table145[[#This Row],[UNIT PRICE]]","v":0},"Badanli"]
[{"$f":"IF(ISBLANK(B258),\"\",SUBTOTAL(103,$B$3:B258))","v":256},"Medicines","PERMETHRIN, 5%, CREAM, TUBE","TUBE",3000,null,{"$f":"Table145[[#This Row],[Quantity\nMiktar ]]*Table145[[#This Row],[UNIT PRICE]]","v":0},"Badanli"]
[{"$f":"IF(ISBLANK(B259),\"\",SUBTOTAL(103,$B$3:B259))","v":257},"Medicines","PERMETHRIN, LOTION","TUBE",200,null,{"$f":"Table145[[#This Row],[Quantity\nMiktar ]]*Table145[[#This Row],[UNIT PRICE]]","v":0},"Badanli"]
[{"$f":"IF(ISBLANK(B260),\"\",SUBTOTAL(103,$B$3:B260))","v":258},"Medicines","PHENYTOIN SODIUM, 100 MG, TAB.","TABLET",2000,null,{"$f":"Table145[[#This Row],[Quantity\nMiktar ]]*Table145[[#This Row],[UNIT PRICE]]","v":0},"Badanli"]
[{"$f":"IF(ISBLANK(B261),\"\",SUBTOTAL(103,$B$3:B261))","v":259},"Medicines","POLYVIDONE IODINE, 10%, SOLUTION, 200 ML, DROPPER BOT.","BOTTLE",2000,null,{"$f":"Table145[[#This Row],[Quantity\nMiktar ]]*Table145[[#This Row],[UNIT PRICE]]","v":0},"Badanli"]
[{"$f":"IF(ISBLANK(B262),\"\",SUBTOTAL(103,$B$3:B262))","v":260},"Medicines","PREDNISOLONE 5MG","TABLET",12000,null,{"$f":"Table145[[#This Row],[Quantity\nMiktar ]]*Table145[[#This Row],[UNIT PRICE]]","v":0},"Badanli"]
[{"$f":"IF(ISBLANK(B263),\"\",SUBTOTAL(103,$B$3:B263))","v":261},"Medicines","PROGESTERONE 100MG","CAPSULE",100,null,{"$f":"Table145[[#This Row],[Quantity\nMiktar ]]*Table145[[#This Row],[UNIT PRICE]]","v":0},"Badanli"]
[{"$f":"IF(ISBLANK(B264),\"\",SUBTOTAL(103,$B$3:B264))","v":262},"Medicines","PROSPAN SYR","BOTTLE",1000,null,{"$f":"Table145[[#This Row],[Quantity\nMiktar ]]*Table145[[#This Row],[UNIT PRICE]]","v":0},"Badanli"]
[{"$f":"IF(ISBLANK(B265),\"\",SUBTOTAL(103,$B$3:B265))","v":263},"Medicines","PROSTASIN 0.4 MG /TAB","TABLET",6000,null,{"$f":"Table145[[#This Row],[Quantity\nMiktar ]]*Table145[[#This Row],[UNIT PRICE]]","v":0},"Badanli"]
[{"$f":"IF(ISBLANK(B266),\"\",SUBTOTAL(103,$B$3:B266))","v":264},"Medicines","RIVAROXABAN 20","TABLET",6000,null,{"$f":"Table145[[#This Row],[Quantity\nMiktar ]]*Table145[[#This Row],[UNIT PRICE]]","v":0},"Badanli"]
[{"$f":"IF(ISBLANK(B267),\"\",SUBTOTAL(103,$B$3:B267))","v":265},"Medicines","SALBUTAMOL 2.5MG/ML NEBULES 2.5ML","BOTTLE",6000,null,{"$f":"Table145[[#This Row],[Quantity\nMiktar ]]*Table145[[#This Row],[UNIT PRICE]]","v":0},"Badanli"]
[{"$f":"IF(ISBLANK(B268),\"\",SUBTOTAL(103,$B$3:B268))","v":266},"Medicines","SALBUTAMOL 2MG -100MCG/ML 200 DOSES SPRAY","INHALER",1000,null,{"$f":"Table145[[#This Row],[Quantity\nMiktar ]]*Table145[[#This Row],[UNIT PRICE]]","v":0},"Badanli"]
[{"$f":"IF(ISBLANK(B269),\"\",SUBTOTAL(103,$B$3:B269))","v":267},"Medicines","SIMETHICONE ORAL DROP 30ML","BOTTLE",500,null,{"$f":"Table145[[#This Row],[Quantity\nMiktar ]]*Table145[[#This Row],[UNIT PRICE]]","v":0},"Badanli"]
[{"$f":"IF(ISBLANK(B270),\"\",SUBTOTAL(103,$B$3:B270))","v":268},"Medicines","SODIUM CHLORIDE, 0.9%, 1 L, FLEX. BAG, PVC FREE","BAG",300,null,{"$f":"Table145[[#This Row],[Quantity\nMiktar ]]*Table145[[#This Row],[UNIT PRICE]]","v":0},"Badanli"]
[{"$f":"IF(ISBLANK(B271),\"\",SUBTOTAL(103,$B$3:B271))","v":269},"Medicines","SODIUM CHLORIDE, 0.9%, 500ML, PLAST. BOT.,IRRIGATION,STERILE","BAG",200,null,{"$f":"Table145[[#This Row],[Quantity\nMiktar ]]*Table145[[#This Row],[UNIT PRICE]]","v":0},"Badanli"]
[{"$f":"IF(ISBLANK(B272),\"\",SUBTOTAL(103,$B$3:B272))","v":270},"Medicines","SPIRONOLACTONE, 25 MG, TAB.","TABLET",5000,null,{"$f":"Table145[[#This Row],[Quantity\nMiktar ]]*Table145[[#This Row],[UNIT PRICE]]","v":0},"Badanli"]
[{"$f":"IF(ISBLANK(B273),\"\",SUBTOTAL(103,$B$3:B273))","v":271},"Medicines","SULFADIAZINE SILVER, 1%, CREAM, STERILE, 50 G, TUBE","TUBE",300,null,{"$f":"Table145[[#This Row],[Quantity\nMiktar ]]*Table145[[#This Row],[UNIT PRICE]]","v":0},"Badanli"]
[{"$f":"IF(ISBLANK(B274),\"\",SUBTOTAL(103,$B$3:B274))","v":272},"Medicines","TETRACYCLINE HYDROCHLORIDE, 1%, EYE OINTMENT, STER, 5G, TUBE","TUBE",1000,null,{"$f":"Table145[[#This Row],[Quantity\nMiktar ]]*Table145[[#This Row],[UNIT PRICE]]","v":0},"Badanli"]
[{"$f":"IF(ISBLANK(B275),\"\",SUBTOTAL(103,$B$3:B275))","v":273},"Medicines","TRIAMCINOLONE ACETONIDE 0.1 %, NEOMYCIN 0.25%, GRAMICIDIN 0.025%, NYSTATIN 100,000 UNITS CREAM 30GR","TUBE",200,null,{"$f":"Table145[[#This Row],[Quantity\nMiktar ]]*Table145[[#This Row],[UNIT PRICE]]","v":0},"Badanli"]
[{"$f":"IF(ISBLANK(B276),\"\",SUBTOTAL(103,$B$3:B276))","v":274},"Medicines","VALPROATE SODIUM, 200 MG, GASTRO-RESISTANT TAB.","TABLET",2000,null,{"$f":"Table145[[#This Row],[Quantity\nMiktar ]]*Table145[[#This Row],[UNIT PRICE]]","v":0},"Badanli"]
[{"$f":"IF(ISBLANK(B277),\"\",SUBTOTAL(103,$B$3:B277))","v":275},"Medicines","VALPROATE SODIUM, 200 MG/ML, 40 ML, BOT. + SYRINGE","BOTTLE",300,null,{"$f":"Table145[[#This Row],[Quantity\nMiktar ]]*Table145[[#This Row],[UNIT PRICE]]","v":0},"Badanli"]
[{"$f":"IF(ISBLANK(B278),\"\",SUBTOTAL(103,$B$3:B278))","v":276},"Medicines","VALPROATE SODIUM, 500 MG, GASTRO-RESISTANT TAB.","TABLET",8000,null,{"$f":"Table145[[#This Row],[Quantity\nMiktar ]]*Table145[[#This Row],[UNIT PRICE]]","v":0},"Badanli"]
[{"$f":"IF(ISBLANK(B279),\"\",SUBTOTAL(103,$B$3:B279))","v":277},"Medicines","VALSARTAN+HYDROCHLOROTHIAZIDE 160/25 MG TAB","TABLET",2000,null,{"$f":"Table145[[#This Row],[Quantity\nMiktar ]]*Table145[[#This Row],[UNIT PRICE]]","v":0},"Badanli"]
[{"$f":"IF(ISBLANK(B280),\"\",SUBTOTAL(103,$B$3:B280))","v":278},"Medicines","VALSARTAN+HYDROCHLOROTHIAZIDE 80/12.5 MG TAB","TABLET",2000,null,{"$f":"Table145[[#This Row],[Quantity\nMiktar ]]*Table145[[#This Row],[UNIT PRICE]]","v":0},"Badanli"]
[{"$f":"IF(ISBLANK(B281),\"\",SUBTOTAL(103,$B$3:B281))","v":279},"Medicines","VIT D3 400 IU SYR","SYR",700,null,{"$f":"Table145[[#This Row],[Quantity\nMiktar ]]*Table145[[#This Row],[UNIT PRICE]]","v":0},"Badanli"]
[{"$f":"IF(ISBLANK(B282),\"\",SUBTOTAL(103,$B$3:B282))","v":280},"Medicines","WARFARIN SODIUM 5MG TAB","TABLET",2000,null,{"$f":"Table145[[#This Row],[Quantity\nMiktar ]]*Table145[[#This Row],[UNIT PRICE]]","v":0},"Badanli"]
[{"$f":"IF(ISBLANK(B283),\"\",SUBTOTAL(103,$B$3:B283))","v":281},"Medicines","ZINC OXIDE, 10%, OINTMENT, 100 G, TUBE","TUBE",300,null,{"$f":"Table145[[#This Row],[Quantity\nMiktar ]]*Table145[[#This Row],[UNIT PRICE]]","v":0},"Badanli"]
[{"$f":"IF(ISBLANK(B284),\"\",SUBTOTAL(103,$B$3:B284))","v":282},"Medicines","ZINC SULFATE, EQ. TO 20 MG ZINC MINERAL, DISPERSIBLE","TABLET",12000,null,{"$f":"Table145[[#This Row],[Quantity\nMiktar ]]*Table145[[#This Row],[UNIT PRICE]]","v":0},"Badanli"]
[{"$f":"IF(ISBLANK(B285),\"\",SUBTOTAL(103,$B$3:B285))","v":283},"Medicines","ACETYLSALICYLIC ACID 100MG","TABLET",16000,null,{"$f":"Table145[[#This Row],[Quantity\nMiktar ]]*Table145[[#This Row],[UNIT PRICE]]","v":0},"Ariha"]
[{"$f":"IF(ISBLANK(B286),\"\",SUBTOTAL(103,$B$3:B286))","v":284},"Medicines","ALBENDAZOLE 100MG/15ML","SYR",500,null,{"$f":"Table145[[#This Row],[Quantity\nMiktar ]]*Table145[[#This Row],[UNIT PRICE]]","v":0},"Ariha"]
[{"$f":"IF(ISBLANK(B287),\"\",SUBTOTAL(103,$B$3:B287))","v":285},"Medicines","AMIKACIN 500MG","AMPOULE",600,null,{"$f":"Table145[[#This Row],[Quantity\nMiktar ]]*Table145[[#This Row],[UNIT PRICE]]","v":0},"Ariha"]
[{"$f":"IF(ISBLANK(B288),\"\",SUBTOTAL(103,$B$3:B288))","v":286},"Medicines","AMLODIPINE 5MG","TABLET",10000,null,{"$f":"Table145[[#This Row],[Quantity\nMiktar ]]*Table145[[#This Row],[UNIT PRICE]]","v":0},"Ariha"]
[{"$f":"IF(ISBLANK(B289),\"\",SUBTOTAL(103,$B$3:B289))","v":287},"Medicines","AMOXICILLIN 250 SYRUP","BOTTLE",800,null,{"$f":"Table145[[#This Row],[Quantity\nMiktar ]]*Table145[[#This Row],[UNIT PRICE]]","v":0},"Ariha"]
[{"$f":"IF(ISBLANK(B290),\"\",SUBTOTAL(103,$B$3:B290))","v":288},"Medicines","AMOXICILLIN 500MG","TABLET",16000,null,{"$f":"Table145[[#This Row],[Quantity\nMiktar ]]*Table145[[#This Row],[UNIT PRICE]]","v":0},"Ariha"]
[{"$f":"IF(ISBLANK(B291),\"\",SUBTOTAL(103,$B$3:B291))","v":289},"Medicines","AMOXICILLIN+ CLAVULANIC ACID SYRUP 228MG-70ML","BOTTLE",600,null,{"$f":"Table145[[#This Row],[Quantity\nMiktar ]]*Table145[[#This Row],[UNIT PRICE]]","v":0},"Ariha"]
[{"$f":"IF(ISBLANK(B292),\"\",SUBTOTAL(103,$B$3:B292))","v":290},"Medicines","AMOXICILLIN+ CLAVULANIC ACID SYRUP 400MG+57MG- 70ML","BOTTLE",600,null,{"$f":"Table145[[#This Row],[Quantity\nMiktar ]]*Table145[[#This Row],[UNIT PRICE]]","v":0},"Ariha"]
[{"$f":"IF(ISBLANK(B293),\"\",SUBTOTAL(103,$B$3:B293))","v":291},"Medicines","AMOXICILLIN+ CLAVULANIC ACID TABLET 1. G","TABLET",20000,null,{"$f":"Table145[[#This Row],[Quantity\nMiktar ]]*Table145[[#This Row],[UNIT PRICE]]","v":0},"Ariha"]
[{"$f":"IF(ISBLANK(B294),\"\",SUBTOTAL(103,$B$3:B294))","v":292},"Medicines","ATENOLOL 50MG","TABLET",5000,null,{"$f":"Table145[[#This Row],[Quantity\nMiktar ]]*Table145[[#This Row],[UNIT PRICE]]","v":0},"Ariha"]
[{"$f":"IF(ISBLANK(B295),\"\",SUBTOTAL(103,$B$3:B295))","v":293},"Medicines","ATORVASTATIN 20MG","TABLET",20000,null,{"$f":"Table145[[#This Row],[Quantity\nMiktar ]]*Table145[[#This Row],[UNIT PRICE]]","v":0},"Ariha"]
[{"$f":"IF(ISBLANK(B296),\"\",SUBTOTAL(103,$B$3:B296))","v":294},"Medicines","ATORVASTATIN 40MG","TABLET",10000,null,{"$f":"Table145[[#This Row],[Quantity\nMiktar ]]*Table145[[#This Row],[UNIT PRICE]]","v":0},"Ariha"]
[{"$f":"IF(ISBLANK(B297),\"\",SUBTOTAL(103,$B$3:B297))","v":295},"Medicines","AZITHROMYCIN 200MG/5ML SYRUP","BOTTLE",800,null,{"$f":"Table145[[#This Row],[Quantity\nMiktar ]]*Table145[[#This Row],[UNIT PRICE]]","v":0},"Ariha"]
[{"$f":"IF(ISBLANK(B298),\"\",SUBTOTAL(103,$B$3:B298))","v":296},"Medicines","AZITHROMYCIN 500MG","TABLET",2400,null,{"$f":"Table145[[#This Row],[Quantity\nMiktar ]]*Table145[[#This Row],[UNIT PRICE]]","v":0},"Ariha"]
[{"$f":"IF(ISBLANK(B299),\"\",SUBTOTAL(103,$B$3:B299))","v":297},"Medicines","BETAMETHASONE VALERATE 0.1% 15G CREAM","TUBE",600,null,{"$f":"Table145[[#This Row],[Quantity\nMiktar ]]*Table145[[#This Row],[UNIT PRICE]]","v":0},"Ariha"]
[{"$f":"IF(ISBLANK(B300),\"\",SUBTOTAL(103,$B$3:B300))","v":298},"Medicines","BISOPROLOL 5MG","TABLET",8000,null,{"$f":"Table145[[#This Row],[Quantity\nMiktar ]]*Table145[[#This Row],[UNIT PRICE]]","v":0},"Ariha"]
[{"$f":"IF(ISBLANK(B301),\"\",SUBTOTAL(103,$B$3:B301))","v":299},"Medicines","CALCIUM+VIT D3","EFF TABLET",10000,null,{"$f":"Table145[[#This Row],[Quantity\nMiktar ]]*Table145[[#This Row],[UNIT PRICE]]","v":0},"Ariha"]
[{"$f":"IF(ISBLANK(B302),\"\",SUBTOTAL(103,$B$3:B302))","v":300},"Medicines","CAPTOPRIL 25MG","TABLET",4000,null,{"$f":"Table145[[#This Row],[Quantity\nMiktar ]]*Table145[[#This Row],[UNIT PRICE]]","v":0},"Ariha"]
[{"$f":"IF(ISBLANK(B303),\"\",SUBTOTAL(103,$B$3:B303))","v":301},"Medicines","CEFIXIME 100 MG SYRUP","BOTTLE",1000,null,{"$f":"Table145[[#This Row],[Quantity\nMiktar ]]*Table145[[#This Row],[UNIT PRICE]]","v":0},"Ariha"]
[{"$f":"IF(ISBLANK(B304),\"\",SUBTOTAL(103,$B$3:B304))","v":302},"Medicines","CEFIXIME 400 MG","TABLET",6000,null,{"$f":"Table145[[#This Row],[Quantity\nMiktar ]]*Table145[[#This Row],[UNIT PRICE]]","v":0},"Ariha"]
[{"$f":"IF(ISBLANK(B305),\"\",SUBTOTAL(103,$B$3:B305))","v":303},"Medicines","CEFTRIAXONE 1000 MG","VIAL",4000,null,{"$f":"Table145[[#This Row],[Quantity\nMiktar ]]*Table145[[#This Row],[UNIT PRICE]]","v":0},"Ariha"]
[{"$f":"IF(ISBLANK(B306),\"\",SUBTOTAL(103,$B$3:B306))","v":304},"Medicines","CEFTRIAXONE 500MG","VIAL",3000,null,{"$f":"Table145[[#This Row],[Quantity\nMiktar ]]*Table145[[#This Row],[UNIT PRICE]]","v":0},"Ariha"]
[{"$f":"IF(ISBLANK(B307),\"\",SUBTOTAL(103,$B$3:B307))","v":305},"Medicines","CETIRIZINE 10MG","TABLET",2000,null,{"$f":"Table145[[#This Row],[Quantity\nMiktar ]]*Table145[[#This Row],[UNIT PRICE]]","v":0},"Ariha"]
[{"$f":"IF(ISBLANK(B308),\"\",SUBTOTAL(103,$B$3:B308))","v":306},"Medicines","CHLORPHENAMINE/ PHENIRAMINE 45.5MG/2ML IN 5ML","TABLET",2000,null,{"$f":"Table145[[#This Row],[Quantity\nMiktar ]]*Table145[[#This Row],[UNIT PRICE]]","v":0},"Ariha"]
[{"$f":"IF(ISBLANK(B309),\"\",SUBTOTAL(103,$B$3:B309))","v":307},"Medicines","CIPROFLOXACIN 500","TABLET",4000,null,{"$f":"Table145[[#This Row],[Quantity\nMiktar ]]*Table145[[#This Row],[UNIT PRICE]]","v":0},"Ariha"]
[{"$f":"IF(ISBLANK(B310),\"\",SUBTOTAL(103,$B$3:B310))","v":308},"Medicines","CLOPIDOGREL 75MG","TABLET",8000,null,{"$f":"Table145[[#This Row],[Quantity\nMiktar ]]*Table145[[#This Row],[UNIT PRICE]]","v":0},"Ariha"]
[{"$f":"IF(ISBLANK(B311),\"\",SUBTOTAL(103,$B$3:B311))","v":309},"Medicines","CLOTRIMAZOLE 1% TOPICAL CREAM, TUBE 20GR TUBE","CREAM",600,null,{"$f":"Table145[[#This Row],[Quantity\nMiktar ]]*Table145[[#This Row],[UNIT PRICE]]","v":0},"Ariha"]
[{"$f":"IF(ISBLANK(B312),\"\",SUBTOTAL(103,$B$3:B312))","v":310},"Medicines","DEXAMETHASONE 8MG/ML 2 ML","AMPOULE",500,null,{"$f":"Table145[[#This Row],[Quantity\nMiktar ]]*Table145[[#This Row],[UNIT PRICE]]","v":0},"Ariha"]
[{"$f":"IF(ISBLANK(B313),\"\",SUBTOTAL(103,$B$3:B313))","v":311},"Medicines","DICLOFENAC SODIUM 50MG","TABLET",1000,null,{"$f":"Table145[[#This Row],[Quantity\nMiktar ]]*Table145[[#This Row],[UNIT PRICE]]","v":0},"Ariha"]
[{"$f":"IF(ISBLANK(B314),\"\",SUBTOTAL(103,$B$3:B314))","v":312},"Medicines","DICLOFENAC SODIUM 75 MG","AMPOULE",1000,null,{"$f":"Table145[[#This Row],[Quantity\nMiktar ]]*Table145[[#This Row],[UNIT PRICE]]","v":0},"Ariha"]
[{"$f":"IF(ISBLANK(B315),\"\",SUBTOTAL(103,$B$3:B315))","v":313},"Medicines","DIGOXIN 0.25 MG","TABLET",3000,null,{"$f":"Table145[[#This Row],[Quantity\nMiktar ]]*Table145[[#This Row],[UNIT PRICE]]","v":0},"Ariha"]
[{"$f":"IF(ISBLANK(B316),\"\",SUBTOTAL(103,$B$3:B316))","v":314},"Medicines","ENALAPRIL MALEATE 5MG","TABLET",8000,null,{"$f":"Table145[[#This Row],[Quantity\nMiktar ]]*Table145[[#This Row],[UNIT PRICE]]","v":0},"Ariha"]
[{"$f":"IF(ISBLANK(B317),\"\",SUBTOTAL(103,$B$3:B317))","v":315},"Medicines","ETORICOXIBE 90MG","TABLET",4000,null,{"$f":"Table145[[#This Row],[Quantity\nMiktar ]]*Table145[[#This Row],[UNIT PRICE]]","v":0},"Ariha"]
[{"$f":"IF(ISBLANK(B318),\"\",SUBTOTAL(103,$B$3:B318))","v":316},"Medicines","FERRUM FOLIC ACID 200 MG+0.4MG","TABLET",6000,null,{"$f":"Table145[[#This Row],[Quantity\nMiktar ]]*Table145[[#This Row],[UNIT PRICE]]","v":0},"Ariha"]
[{"$f":"IF(ISBLANK(B319),\"\",SUBTOTAL(103,$B$3:B319))","v":317},"Medicines","FLUNARIZINE 10MG CAP","CAPSULE",1000,null,{"$f":"Table145[[#This Row],[Quantity\nMiktar ]]*Table145[[#This Row],[UNIT PRICE]]","v":0},"Ariha"]
[{"$f":"IF(ISBLANK(B320),\"\",SUBTOTAL(103,$B$3:B320))","v":318},"Medicines","FOLIC ACID 5MG","TABLET",10000,null,{"$f":"Table145[[#This Row],[Quantity\nMiktar ]]*Table145[[#This Row],[UNIT PRICE]]","v":0},"Ariha"]
[{"$f":"IF(ISBLANK(B321),\"\",SUBTOTAL(103,$B$3:B321))","v":319},"Medicines","FUROSEMIDE 40MG","TABLET",10000,null,{"$f":"Table145[[#This Row],[Quantity\nMiktar ]]*Table145[[#This Row],[UNIT PRICE]]","v":0},"Ariha"]
[{"$f":"IF(ISBLANK(B322),\"\",SUBTOTAL(103,$B$3:B322))","v":320},"Medicines","FUROSEMIDE 40MG","AMPOULE",500,null,{"$f":"Table145[[#This Row],[Quantity\nMiktar ]]*Table145[[#This Row],[UNIT PRICE]]","v":0},"Ariha"]
[{"$f":"IF(ISBLANK(B323),\"\",SUBTOTAL(103,$B$3:B323))","v":321},"Medicines","GLICLAZIDE 80MG","TABLET",20000,null,{"$f":"Table145[[#This Row],[Quantity\nMiktar ]]*Table145[[#This Row],[UNIT PRICE]]","v":0},"Ariha"]
[{"$f":"IF(ISBLANK(B324),\"\",SUBTOTAL(103,$B$3:B324))","v":322},"Medicines","GENTAMICIN 0.3% EYE / EAR DROP","EYE DROP",200,null,{"$f":"Table145[[#This Row],[Quantity\nMiktar ]]*Table145[[#This Row],[UNIT PRICE]]","v":0},"Ariha"]
[{"$f":"IF(ISBLANK(B325),\"\",SUBTOTAL(103,$B$3:B325))","v":323},"Medicines","HYDROCORTISONE 1% CREAM, TOPICAL 20MG","VIAL",500,null,{"$f":"Table145[[#This Row],[Quantity\nMiktar ]]*Table145[[#This Row],[UNIT PRICE]]","v":0},"Ariha"]
[{"$f":"IF(ISBLANK(B326),\"\",SUBTOTAL(103,$B$3:B326))","v":324},"Medicines","HYOSCINE N-BUTYL BROMIDE 10 MG","TABLET",3000,null,{"$f":"Table145[[#This Row],[Quantity\nMiktar ]]*Table145[[#This Row],[UNIT PRICE]]","v":0},"Ariha"]
[{"$f":"IF(ISBLANK(B327),\"\",SUBTOTAL(103,$B$3:B327))","v":325},"Medicines","IBUPROFEN 100MG/5ML SYRUP","BOTTLE",500,null,{"$f":"Table145[[#This Row],[Quantity\nMiktar ]]*Table145[[#This Row],[UNIT PRICE]]","v":0},"Ariha"]
[{"$f":"IF(ISBLANK(B328),\"\",SUBTOTAL(103,$B$3:B328))","v":326},"Medicines","IBUPROFEN 400MG","TABLET",10000,null,{"$f":"Table145[[#This Row],[Quantity\nMiktar ]]*Table145[[#This Row],[UNIT PRICE]]","v":0},"Ariha"]
[{"$f":"IF(ISBLANK(B329),\"\",SUBTOTAL(103,$B$3:B329))","v":327},"Medicines","ISOSORBIDE DINITRATE 5MG","TABLET",3000,null,{"$f":"Table145[[#This Row],[Quantity\nMiktar ]]*Table145[[#This Row],[UNIT PRICE]]","v":0},"Ariha"]
[{"$f":"IF(ISBLANK(B330),\"\",SUBTOTAL(103,$B$3:B330))","v":328},"Medicines","ISOSORBIDE DINITRATE 10MG","TABLET",3000,null,{"$f":"Table145[[#This Row],[Quantity\nMiktar ]]*Table145[[#This Row],[UNIT PRICE]]","v":0},"Ariha"]
[{"$f":"IF(ISBLANK(B331),\"\",SUBTOTAL(103,$B$3:B331))","v":329},"Medicines","KENACOMB TOPICAL CREAM 30GR","TUBE",1000,null,{"$f":"Table145[[#This Row],[Quantity\nMiktar ]]*Table145[[#This Row],[UNIT PRICE]]","v":0},"Ariha"]
[{"$f":"IF(ISBLANK(B332),\"\",SUBTOTAL(103,$B$3:B332))","v":330},"Medicines","LANSOPRAZOLE 30MG","CAPSULE",8000,null,{"$f":"Table145[[#This Row],[Quantity\nMiktar ]]*Table145[[#This Row],[UNIT PRICE]]","v":0},"Ariha"]
[{"$f":"IF(ISBLANK(B333),\"\",SUBTOTAL(103,$B$3:B333))","v":331},"Medicines","LEVONORGESTERL+ETHYNILESTRADYOL 150MCG + 30MCG","TABLET",7560,null,{"$f":"Table145[[#This Row],[Quantity\nMiktar ]]*Table145[[#This Row],[UNIT PRICE]]","v":0},"Ariha"]
[{"$f":"IF(ISBLANK(B334),\"\",SUBTOTAL(103,$B$3:B334))","v":332},"Medicines","LINCOMYCIN-600 MG","AMPOULE",1000,null,{"$f":"Table145[[#This Row],[Quantity\nMiktar ]]*Table145[[#This Row],[UNIT PRICE]]","v":0},"Ariha"]
[{"$f":"IF(ISBLANK(B335),\"\",SUBTOTAL(103,$B$3:B335))","v":333},"Medicines","LORATADINE 2.5MG/5ML","SYR",2000,null,{"$f":"Table145[[#This Row],[Quantity\nMiktar ]]*Table145[[#This Row],[UNIT PRICE]]","v":0},"Ariha"]
[{"$f":"IF(ISBLANK(B336),\"\",SUBTOTAL(103,$B$3:B336))","v":334},"Medicines","LORATADINE 5MG","TABLET",2000,null,{"$f":"Table145[[#This Row],[Quantity\nMiktar ]]*Table145[[#This Row],[UNIT PRICE]]","v":0},"Ariha"]
[{"$f":"IF(ISBLANK(B337),\"\",SUBTOTAL(103,$B$3:B337))","v":335},"Medicines","LOSARTAN 50MG+HYDROCHLORTHIAZIDE 12.5","TABLET",6000,null,{"$f":"Table145[[#This Row],[Quantity\nMiktar ]]*Table145[[#This Row],[UNIT PRICE]]","v":0},"Ariha"]
[{"$f":"IF(ISBLANK(B338),\"\",SUBTOTAL(103,$B$3:B338))","v":336},"Medicines","METFORMIN HCL 1000MG","TABLET",12000,null,{"$f":"Table145[[#This Row],[Quantity\nMiktar ]]*Table145[[#This Row],[UNIT PRICE]]","v":0},"Ariha"]
[{"$f":"IF(ISBLANK(B339),\"\",SUBTOTAL(103,$B$3:B339))","v":337},"Medicines","METHYLDOPA, 250 MG","TABLET",2000,null,{"$f":"Table145[[#This Row],[Quantity\nMiktar ]]*Table145[[#This Row],[UNIT PRICE]]","v":0},"Ariha"]
[{"$f":"IF(ISBLANK(B340),\"\",SUBTOTAL(103,$B$3:B340))","v":338},"Medicines","METOPROLOL TARTARAT 50 MG","TABLET",3000,null,{"$f":"Table145[[#This Row],[Quantity\nMiktar ]]*Table145[[#This Row],[UNIT PRICE]]","v":0},"Ariha"]
[{"$f":"IF(ISBLANK(B341),\"\",SUBTOTAL(103,$B$3:B341))","v":339},"Medicines","METRONIDAZOLE 500MG VAGINAL SUPP","VAGINAL",400,null,{"$f":"Table145[[#This Row],[Quantity\nMiktar ]]*Table145[[#This Row],[UNIT PRICE]]","v":0},"Ariha"]
[{"$f":"IF(ISBLANK(B342),\"\",SUBTOTAL(103,$B$3:B342))","v":340},"Medicines","METRONIDAZOLE 500MG","TABLET",4000,null,{"$f":"Table145[[#This Row],[Quantity\nMiktar ]]*Table145[[#This Row],[UNIT PRICE]]","v":0},"Ariha"]
[{"$f":"IF(ISBLANK(B343),\"\",SUBTOTAL(103,$B$3:B343))","v":341},"Medicines","METRONIDAZOLE 125MG/5ML SYRUP","BOTTLE",500,null,{"$f":"Table145[[#This Row],[Quantity\nMiktar ]]*Table145[[#This Row],[UNIT PRICE]]","v":0},"Ariha"]
[{"$f":"IF(ISBLANK(B344),\"\",SUBTOTAL(103,$B$3:B344))","v":342},"Medicines","MULTI VITAMINES AND MINERALS FOR PREGNANTS","TABLET",194400,null,{"$f":"Table145[[#This Row],[Quantity\nMiktar ]]*Table145[[#This Row],[UNIT PRICE]]","v":0},"Ariha"]
[{"$f":"IF(ISBLANK(B345),\"\",SUBTOTAL(103,$B$3:B345))","v":343},"Medicines","MUPIROCIN 2% TOPICAL CREAM 15G","TUBE",6000,null,{"$f":"Table145[[#This Row],[Quantity\nMiktar ]]*Table145[[#This Row],[UNIT PRICE]]","v":0},"Ariha"]
[{"$f":"IF(ISBLANK(B346),\"\",SUBTOTAL(103,$B$3:B346))","v":344},"Medicines","NITROFURANTOINE 100MG TAB","TABLET",5000,null,{"$f":"Table145[[#This Row],[Quantity\nMiktar ]]*Table145[[#This Row],[UNIT PRICE]]","v":0},"Ariha"]
[{"$f":"IF(ISBLANK(B347),\"\",SUBTOTAL(103,$B$3:B347))","v":345},"Medicines","NITROFURANTOINE 50MG/5ML SUSP","BOTTLE",200,null,{"$f":"Table145[[#This Row],[Quantity\nMiktar ]]*Table145[[#This Row],[UNIT PRICE]]","v":0},"Ariha"]
[{"$f":"IF(ISBLANK(B348),\"\",SUBTOTAL(103,$B$3:B348))","v":346},"Medicines","OMEPRAZOLE, 40 MG","CAPSULE",5000,null,{"$f":"Table145[[#This Row],[Quantity\nMiktar ]]*Table145[[#This Row],[UNIT PRICE]]","v":0},"Ariha"]
[{"$f":"IF(ISBLANK(B349),\"\",SUBTOTAL(103,$B$3:B349))","v":347},"Medicines","ONDANSTERONE 4MG/5ML SYR","SYR",1200,null,{"$f":"Table145[[#This Row],[Quantity\nMiktar ]]*Table145[[#This Row],[UNIT PRICE]]","v":0},"Ariha"]
[{"$f":"IF(ISBLANK(B350),\"\",SUBTOTAL(103,$B$3:B350))","v":348},"Medicines","ONDANSTERONE 8MG AMP","AMPOULE",3000,null,{"$f":"Table145[[#This Row],[Quantity\nMiktar ]]*Table145[[#This Row],[UNIT PRICE]]","v":0},"Ariha"]
[{"$f":"IF(ISBLANK(B351),\"\",SUBTOTAL(103,$B$3:B351))","v":349},"Medicines","ONDANSTERONE 8MG TAB","TABLET",5000,null,{"$f":"Table145[[#This Row],[Quantity\nMiktar ]]*Table145[[#This Row],[UNIT PRICE]]","v":0},"Ariha"]
[{"$f":"IF(ISBLANK(B352),\"\",SUBTOTAL(103,$B$3:B352))","v":350},"Medicines","ORAL REHYDRATION SALTS (O.R.S.), SACHET 20.5 G/1 L","SACCHE",2000,null,{"$f":"Table145[[#This Row],[Quantity\nMiktar ]]*Table145[[#This Row],[UNIT PRICE]]","v":0},"Ariha"]
[{"$f":"IF(ISBLANK(B353),\"\",SUBTOTAL(103,$B$3:B353))","v":351},"Medicines","OXYMETAZOLINE 0.05%","NASAL SPRAY",500,null,{"$f":"Table145[[#This Row],[Quantity\nMiktar ]]*Table145[[#This Row],[UNIT PRICE]]","v":0},"Ariha"]
[{"$f":"IF(ISBLANK(B354),\"\",SUBTOTAL(103,$B$3:B354))","v":352},"Medicines","PARACETAMOL 120MG/5ML SYRUP","BOTTLE",2000,null,{"$f":"Table145[[#This Row],[Quantity\nMiktar ]]*Table145[[#This Row],[UNIT PRICE]]","v":0},"Ariha"]
[{"$f":"IF(ISBLANK(B355),\"\",SUBTOTAL(103,$B$3:B355))","v":353},"Medicines","PARACETAMOL 500MG","TABLET",20000,null,{"$f":"Table145[[#This Row],[Quantity\nMiktar ]]*Table145[[#This Row],[UNIT PRICE]]","v":0},"Ariha"]
[{"$f":"IF(ISBLANK(B356),\"\",SUBTOTAL(103,$B$3:B356))","v":354},"Medicines","PARACETAMOL 300MG + CHLOREZOXAZONE 250MG TAB","TABLET",5000,null,{"$f":"Table145[[#This Row],[Quantity\nMiktar ]]*Table145[[#This Row],[UNIT PRICE]]","v":0},"Ariha"]
[{"$f":"IF(ISBLANK(B357),\"\",SUBTOTAL(103,$B$3:B357))","v":355},"Medicines","PERMETHRIN 1% SHAMPOO","BOTTLE",2000,null,{"$f":"Table145[[#This Row],[Quantity\nMiktar ]]*Table145[[#This Row],[UNIT PRICE]]","v":0},"Ariha"]
[{"$f":"IF(ISBLANK(B358),\"\",SUBTOTAL(103,$B$3:B358))","v":356},"Medicines","PHENOBARBITAL 15MG","TABLET",1000,null,{"$f":"Table145[[#This Row],[Quantity\nMiktar ]]*Table145[[#This Row],[UNIT PRICE]]","v":0},"Ariha"]
[{"$f":"IF(ISBLANK(B359),\"\",SUBTOTAL(103,$B$3:B359))","v":357},"Medicines","PHYNETOIN 100MG","TABLET",1000,null,{"$f":"Table145[[#This Row],[Quantity\nMiktar ]]*Table145[[#This Row],[UNIT PRICE]]","v":0},"Ariha"]
[{"$f":"IF(ISBLANK(B360),\"\",SUBTOTAL(103,$B$3:B360))","v":358},"Medicines","PREDNISOLONE 5MG","TABLET",3500,null,{"$f":"Table145[[#This Row],[Quantity\nMiktar ]]*Table145[[#This Row],[UNIT PRICE]]","v":0},"Ariha"]
[{"$f":"IF(ISBLANK(B361),\"\",SUBTOTAL(103,$B$3:B361))","v":359},"Medicines","PREDNISOLONE 40MG","AMPOULE",300,null,{"$f":"Table145[[#This Row],[Quantity\nMiktar ]]*Table145[[#This Row],[UNIT PRICE]]","v":0},"Ariha"]
[{"$f":"IF(ISBLANK(B362),\"\",SUBTOTAL(103,$B$3:B362))","v":360},"Medicines","PROGESTERONE 100MG","TABLET",5000,null,{"$f":"Table145[[#This Row],[Quantity\nMiktar ]]*Table145[[#This Row],[UNIT PRICE]]","v":0},"Ariha"]
[{"$f":"IF(ISBLANK(B363),\"\",SUBTOTAL(103,$B$3:B363))","v":361},"Medicines","PROSPAN SYR","SYR",1300,null,{"$f":"Table145[[#This Row],[Quantity\nMiktar ]]*Table145[[#This Row],[UNIT PRICE]]","v":0},"Ariha"]
[{"$f":"IF(ISBLANK(B364),\"\",SUBTOTAL(103,$B$3:B364))","v":362},"Medicines","PHENYLEPHRINE,TRIPROLIDINE1.25MG 100 ML SYR","SYR",200,null,{"$f":"Table145[[#This Row],[Quantity\nMiktar ]]*Table145[[#This Row],[UNIT PRICE]]","v":0},"Ariha"]
[{"$f":"IF(ISBLANK(B365),\"\",SUBTOTAL(103,$B$3:B365))","v":363},"Medicines","SALBUTAMOL 2MG -100MCG/ML 200 DOSES SPRAY","INHALER",1000,null,{"$f":"Table145[[#This Row],[Quantity\nMiktar ]]*Table145[[#This Row],[UNIT PRICE]]","v":0},"Ariha"]
[{"$f":"IF(ISBLANK(B366),\"\",SUBTOTAL(103,$B$3:B366))","v":364},"Medicines","SALBUTAMOL 2.5MG/ML NEBULES 2.5ML","BOTTLE",1000,null,{"$f":"Table145[[#This Row],[Quantity\nMiktar ]]*Table145[[#This Row],[UNIT PRICE]]","v":0},"Ariha"]
[{"$f":"IF(ISBLANK(B367),\"\",SUBTOTAL(103,$B$3:B367))","v":365},"Medicines","SIMETHICONE ORAL DROP 30ML","BOTTLE",1200,null,{"$f":"Table145[[#This Row],[Quantity\nMiktar ]]*Table145[[#This Row],[UNIT PRICE]]","v":0},"Ariha"]
[{"$f":"IF(ISBLANK(B368),\"\",SUBTOTAL(103,$B$3:B368))","v":366},"Medicines","SPIRONOLACTONE 25MG","BOTTLE",1000,null,{"$f":"Table145[[#This Row],[Quantity\nMiktar ]]*Table145[[#This Row],[UNIT PRICE]]","v":0},"Ariha"]
[{"$f":"IF(ISBLANK(B369),\"\",SUBTOTAL(103,$B$3:B369))","v":367},"Medicines","SULFADIAZINE SILVER, 1%, CREAM, STERILE, 40 G","TUBE",1000,null,{"$f":"Table145[[#This Row],[Quantity\nMiktar ]]*Table145[[#This Row],[UNIT PRICE]]","v":0},"Ariha"]
[{"$f":"IF(ISBLANK(B370),\"\",SUBTOTAL(103,$B$3:B370))","v":368},"Medicines","SULFAMETHOXAZOLE + TRIMETHOPRIM 480MG","TABLET",5000,null,{"$f":"Table145[[#This Row],[Quantity\nMiktar ]]*Table145[[#This Row],[UNIT PRICE]]","v":0},"Ariha"]
[{"$f":"IF(ISBLANK(B371),\"\",SUBTOTAL(103,$B$3:B371))","v":369},"Medicines","SULFAMETHOXAZOLE + TRIMETHOPRIM 240MG 100ML SUSP","BOTTLE",2000,null,{"$f":"Table145[[#This Row],[Quantity\nMiktar ]]*Table145[[#This Row],[UNIT PRICE]]","v":0},"Ariha"]
[{"$f":"IF(ISBLANK(B372),\"\",SUBTOTAL(103,$B$3:B372))","v":370},"Medicines","TETRACYCLINE HYDROCHLORIDE, 1%, EYE OINTMENT, 5 G","TUBE",600,null,{"$f":"Table145[[#This Row],[Quantity\nMiktar ]]*Table145[[#This Row],[UNIT PRICE]]","v":0},"Ariha"]
[{"$f":"IF(ISBLANK(B373),\"\",SUBTOTAL(103,$B$3:B373))","v":371},"Medicines","VIT D3 2.000 IU TAB","TABLET",8000,null,{"$f":"Table145[[#This Row],[Quantity\nMiktar ]]*Table145[[#This Row],[UNIT PRICE]]","v":0},"Ariha"]
[{"$f":"IF(ISBLANK(B374),\"\",SUBTOTAL(103,$B$3:B374))","v":372},"Medicines","VIT D3 400 IU SYR","SYR",2000,null,{"$f":"Table145[[#This Row],[Quantity\nMiktar ]]*Table145[[#This Row],[UNIT PRICE]]","v":0},"Ariha"]
[{"$f":"IF(ISBLANK(B375),\"\",SUBTOTAL(103,$B$3:B375))","v":373},"Medicines","ZOLMITRIPTANE 5MG 4 TABS","TABLET",1000,null,{"$f":"Table145[[#This Row],[Quantity\nMiktar ]]*Table145[[#This Row],[UNIT PRICE]]","v":0},"Ariha"]
[{"$f":"IF(ISBLANK(B376),\"\",SUBTOTAL(103,$B$3:B376))","v":374},"Medicines","SODIUM CHLORID 0.9 % 1 LITRE","INFUSION",10000,null,{"$f":"Table145[[#This Row],[Quantity\nMiktar ]]*Table145[[#This Row],[UNIT PRICE]]","v":0},"Ariha"]
[{"$f":"IF(ISBLANK(B377),\"\",SUBTOTAL(103,$B$3:B377))","v":375},"Medicines","GLUCOSE 5% 1 LITRE","INFUSION",500,null,{"$f":"Table145[[#This Row],[Quantity\nMiktar ]]*Table145[[#This Row],[UNIT PRICE]]","v":0},"Ariha"]
[null,null,"Total",null,null,null,{"$f":"SUBTOTAL(109,Table145[TOTAL PRICE])","v":0}]
["Supplier Name | Tedarikçi Adı | اسم المزود"]
["Supplier Stamp & Signature | Tedarikçi Mühür ve İmzası | توقيع وختم المزود"]

{"sheet":"QUOTATION","index":2,"n_rows":29,"n_cols":8,"rows_kept":29,"cut":false,"hidden":false,"merged":[[25,2,25,3],[28,2,29,3],[28,7,29,7],[24,2,24,3],[18,2,18,5],[22,2,22,3],[23,2,23,3],[1,1,1,7],[4,4,4,6],[5,4,5,6],[16,2,16,3],[17,2,17,3],[7,7,8,7],[9,6,9,7],[7,2,8,4]]}
[null,"QUOTATION REQUEST | TEKLİF TALEBİ - AL AMEEN FOR HUMANITARIAN SUPPORT "]
[null,"طلب عرض سعر"]
[]
[]
[null,null,"PR date | SAT tarihi:",null,"2025-02-28",null,null,"تاريخ طلب الشراء:"]
[null,null,"\nReference of the PR | SAT'nin referansı:",null,"PR/Multi/MSF-FRB.01-D.01-B.09/GZT/PRO-HE/28-2-2025/Ra-Ba-Ar-B.01-D.01-B.09-02",null,null,"الرقم المرجعي لطلب الشراء:"]
[]
[null,null,"Quotation valid* from ....../......./........... until ....../......./...........\nTeklif geçerli*  tarihinden ....../......./........... tarihine kadar ....../....../…….... ",null,null,null,null,"صلاحية عرض السعر* من ....../......./........... إلى ....../......./..........."]
[]
[null,null,"*Please note that the offer cannot be valid for less than 10 months. | Teklifin 10 aydan daha kısa bir süre için geçerli olamayacağını lütfen unutmayın.",null,null,null," ملاحظة : عرض السعر يكون غير صالح لمدة أقل من 10 أشهر."]
[null,null,"Company | Şirket:",null,null,null,null,"الشركة/المؤسسة:"]
[null,null,"Representative | Temsilci:",null,null,null,null,"اسم الشخص المسؤول:"]
[null,null,"Tel:",null,null,null,null,"الهاتف:"]
[null,null,"Email | E-posta:",null,null,null,null,"البريد الالكتروني:"]
[null,null,"Address | Adres:",null,null,null,null,"العنوان:"]
[]
[null,null,"Items |\nالعناصر",null,"Unit | Birim\nالواحدة","Quantity | Miktar\nالكمية","Unit Price in EURO includes taxes and delivery | Birim Fiyata vergiler ve teslimat dahildir\n| السعر الإفرادي متضمناً الضريبة ","Total Price in EURO includes taxes and delivery  | Toplam Fiyata vergiler ve teslimat dahildir| السعر الإجمالي متضمناً الضريبة والتوصيل"]
[null,1,"Medications - PHC (BoQ 01)",null,"PCs",1]
[null,null,"Total | Toplam |  المجموع"]
[]
[null," Comments/Technical specifications | Yorumlar/Teknik özellikler | التعليقات/المواصفات التقنية"]
[]
[null,null,"Total price (in letter) | Toplam fiyat (mektupla)",null,null,null,null," السعر الكلي ( كتابةً) :"]
[null,null,"Available now | Şu an müsait:",null,null,null,null," كل العناصر متوفرة:"]
[null,null,"The requested quantity is entirely available | İstenen miktar tamamen mevcuttur",null,null,null,null," الكمية المطلوبة متوفرة :"]
[null,null,"Delivery date | Teslim tarihi",null,null,null,null," تاريخ التسليم:"]
[]
[]
[null,null,"\nSupplier's signature and stamp | Tedarikçinin imzası ve kaşesi: ",null,null,null,null,"ختم وتوقيع المورد : "]